Workbook

Sheet ГРАФИК И.Б.НОЯБРЬ
IH1: СЕГОДНЯ
IH2: =TODAY() -> 2020-05-29
IH3: =TEXT(HZ2,"дддд") -> суббота
IH4: =WEEKNUM(IH2,2)&"-ая неделя" -> 22-ая неделя
I5: =IF(OR(#REF!<D3,AND(#REF!<D2,#REF!=D3)),$CN$19,IF(OR(#REF!>D3,AND(#REF!>D2,#REF!=D3)),0,DAY(A2))) ->  | IH5: =IF(OR(#REF!<IC3,AND(#REF!<IC2,#REF!=IC3)),$CN$19,IF(OR(#REF!>IC3,AND(#REF!>IC2,#REF!=IC3)),0,DAY(HZ2))) -> 
IG6: время
HA7: 1 | IB7: количество дней месяца | IE7: =VLOOKUP(HY17,'[4]производственный календарь '!B2:F13,5,0) -> 30
HA8: 2 | IB8: месяц | IE8: =VLOOKUP(HY17,'[4]производственный календарь '!B2:F13,4,0) -> 11 | IG8: Столбец1
IB9: год | IE9: =YEAR(A17) -> 2020 | IG9: 0
GI10: УТВЕРЖДАЮ | IG10: 0.25
IB11: 0бед | IE11: 0.04166666667 | IG11: 0.2916666667
GI12: _______________Л.А.Синченко | IG12: 0.3125
GH13: "__"________2020 | IG13: 0.3333333333
IG14: 0.375 | IJ14: Столбец1 | IK14: Столбец2 | IL14: Столбец3 | IM14: Столбец4 | IN14: Столбец5 | IP14: 1
A15: ГРАФИК | IG15: 0.4166666667 | IJ15: Сапожников А.С., управляющий участка | IP15: 0.5
A16: УЧЕТА ИСПОЛЬЗОВАНИЯ РАБОЧЕГО ВРЕМЕНИ ОБСЛУЖИВАЮЩЕГО ПЕРСОНАЛА | IG16: 0.4583333333 | IJ16: Сперанский А.А., слесарь-ремонтник | IP16: 0.25
A17: 2020-11-01 | HY17: ноябрь | IG17: 0.5 | IJ17: Лагутенко В.А., кассир билетный Ч
IG18: 0.5416666667 | IJ18: Купцова Г.И., кассир билетный НЧ
A19: № п/п | F19: Фамилия Инициалы | X19: Ставка | AC19: 1900-01-01 | AI19: 2 | AO19: 1900-01-03 | AU19: 4 | BA19: 5 | BG19: 6 | BM19: 7 | BS19: 8 | BY19: 9 | CE19: 10 | CK19: 11 | CQ19: 12 | CW19: 13 | DC19: 14 | DI19: 15 | DO19: 16 | DU19: 17 | EA19: 18 | EG19: 19 | EM19: 20 | ES19: 21 | EY19: 22 | FE19: 23 | FK19: 24 | FQ19: 25 | FW19: 26 | GC19: 27 | GI19: 28 | GO19: =IF(29<=$IE$7,29,"-") -> 29 | GU19: =IF(30<=$IE$7,30,"-") -> 30 | HA19: =IF(31<=$IE$7,31,"-") -> - | HG19: ВСЕГО | IG19: 0.5833333333 | IJ19: Кипкаева Л.А., дворник
HG20: дней | HY20: часов | IG20: 0.625 | IJ20: Сапожников А.С., управляющий участка
AC21: =IFERROR($A$17+AC19-1,"-") -> 2020-11-01 | AI21: =IFERROR($A$17+AI19-1,"-") -> 2020-11-02 | AO21: =IFERROR($A$17+AO19-1,"-") -> 2020-11-03 | AU21: =IFERROR($A$17+AU19-1,"-") -> 2020-11-04 | BA21: =IFERROR($A$17+BA19-1,"-") -> 2020-11-05 | BG21: =IFERROR($A$17+BG19-1,"-") -> 2020-11-06 | BM21: =IFERROR($A$17+BM19-1,"-") -> 2020-11-07 | BS21: =IFERROR($A$17+BS19-1,"-") -> 2020-11-08 | BY21: =IFERROR($A$17+BY19-1,"-") -> 2020-11-09 | CE21: =IFERROR($A$17+CE19-1,"-") -> 2020-11-10 | CK21: =IFERROR($A$17+CK19-1,"-") -> 2020-11-11 | CQ21: =IFERROR($A$17+CQ19-1,"-") -> 2020-11-12 | CW21: =IFERROR($A$17+CW19-1,"-") -> 2020-11-13 | DC21: =IFERROR($A$17+DC19-1,"-") -> 2020-11-14 | DI21: =IFERROR($A$17+DI19-1,"-") -> 2020-11-15 | DO21: =IFERROR($A$17+DO19-1,"-") -> 2020-11-16 | DU21: =IFERROR($A$17+DU19-1,"-") -> 2020-11-17 | EA21: =IFERROR($A$17+EA19-1,"-") -> 2020-11-18 | EG21: =IFERROR($A$17+EG19-1,"-") -> 2020-11-19 | EM21: =IFERROR($A$17+EM19-1,"-") -> 2020-11-20 | ES21: =IFERROR($A$17+ES19-1,"-") -> 2020-11-21 | EY21: =IFERROR($A$17+EY19-1,"-") -> 2020-11-22 | FE21: =IFERROR($A$17+FE19-1,"-") -> 2020-11-23 | FK21: =IFERROR($A$17+FK19-1,"-") -> 2020-11-24 | FQ21: =IFERROR($A$17+FQ19-1,"-") -> 2020-11-25 | FW21: =IFERROR($A$17+FW19-1,"-") -> 2020-11-26 | GC21: =IFERROR($A$17+GC19-1,"-") -> 2020-11-27 | GI21: =IFERROR($A$17+GI19-1,"-") -> 2020-11-28 | GO21: =IFERROR($A$17+GO19-1,"-") -> 2020-11-29 | GU21: =IFERROR($A$17+GU19-1,"-") -> 2020-11-30 | HA21: =IFERROR($A$17+HA19-1,"-") -> - | IG21: 0.6666666667 | IJ21: Сперанский А.А., слесарь-ремонтник
F22: Сапожников А.С., управляющий участка | X22: 1 | HG22: =COUNT(AC22:HF22) -> 0 | HY22: =SUM(IFERROR(AC23:HF23-AC22:HF22-AC24:HF24,0)) -> 0 | IA22: =VLOOKUP($HY$17,'[4]производственный календарь '!$B2:$F13,2,0) -> 159 | IG22: 0.7083333333 | IJ22: Лагутенко В.А., кассир билетный НЧ
IG23: 0.75 | IJ23: Купцова Г.И., кассир билетный НЧ
X24: обед | Y24: обед | IG24: 0.7916666667 | IJ24: Кипкаева Л.А., дворник
Y25: р.д. | AC25: =IFERROR(AC23-AC22-AC24,0) -> 0 | AI25: =IFERROR(AI23-AI22-AI24,0) -> 00:00:00 | AO25: =IFERROR(AO23-AO22-AO24,0) -> 0 | AU25: =IFERROR(AU23-AU22-AU24,0) -> 0 | BA25: =IFERROR(BA23-BA22-BA24,0) -> 0 | BG25: =IFERROR(BG23-BG22-BG24,0) -> 00:00:00 | BM25: =IFERROR(BM23-BM22-BM24,0) -> 0 | BS25: =IFERROR(BS23-BS22-BS24,0) -> 0 | BY25: =IFERROR(BY23-BY22-BY24,0) -> 00:00:00 | CE25: =IFERROR(CE23-CE22-CE24,0) -> 0 | CK25: =IFERROR(CK23-CK22-CK24,0) -> 0 | CQ25: =IFERROR(CQ23-CQ22-CQ24,0) -> 0 | CW25: =IFERROR(CW23-CW22-CW24,0) -> 00:00:00 | DC25: =IFERROR(DC23-DC22-DC24,0) -> 0 | DI25: =IFERROR(DI23-DI22-DI24,0) -> 0 | DO25: =IFERROR(DO23-DO22-DO24,0) -> 00:00:00 | DU25: =IFERROR(DU23-DU22-DU24,0) -> 0 | EA25: =IFERROR(EA23-EA22-EA24,0) -> 0 | EG25: =IFERROR(EG23-EG22-EG24,0) -> 0 | EM25: =IFERROR(EM23-EM22-EM24,0) -> 00:00:00 | ES25: =IFERROR(ES23-ES22-ES24,0) -> 0 | EY25: =IFERROR(EY23-EY22-EY24,0) -> 0 | FE25: =IFERROR(FE23-FE22-FE24,0) -> 00:00:00 | FK25: =IFERROR(FK23-FK22-FK24,0) -> 0 | FQ25: =IFERROR(FQ23-FQ22-FQ24,0) -> 0 | FW25: =IFERROR(FW23-FW22-FW24,0) -> 0 | GC25: =IFERROR(GC23-GC22-GC24,0) -> 00:00:00 | GI25: =IFERROR(GI23-GI22-GI24,0) -> 0 | GO25: =IFERROR(GO23-GO22-GO24,0) -> 0 | GU25: =IFERROR(GU23-GU22-GU24,0) -> 00:00:00 | HA25: =IFERROR(HA23-HA22-HA24,0) -> 0 | HY25: =SUM(AC25:HF25) -> 0 | IG25: 0.8333333333 | IJ25: Морозова Г.Н., контролёр-посадчик аттракциона НЧ
X26: пр | Y26: пр | HG26: =SUM(AC26:HF26) -> 00:00:00 | IG26: 0.875 | IJ26: Нурлиева Е.А., котролёр-посадчик аттракциона Ч
A27: 1 | Y27: от | HG27: =COUNTIF(AC28:HF28,"=От") -> 0 | IA27: =VLOOKUP($HY$17,'[4]производственный календарь '!$B2:$F$13,2,0) -> 159 | IG27: 0.9166666667 | IJ27: Нурлиева Е.А., котролёр-посадчик аттракциона НЧ
F28: Сперанский А.А., слесарь-ремонтник | X28: 1 | HG28: =COUNT(AC28:HF28) -> 0 | HY28: =SUM(IFERROR(AC29:HF29-AC28:HF28-AC30:HF30,0)) -> 0 | IG28: 0.9583333333 | IJ28: Хомченко Л.Е., контролёр-посадчик аттракциона НЧ
IG29: 1 | IJ29: Кондратюк Н.В., сторож
X30: обед | Y30: обед | IJ30: Лагутенко В.А., кассир билетный НЧ
Y31: р.д. | AC31: =IFERROR(AC29-AC28-AC30,0) -> 00:00:00 | AI31: =IFERROR(AI29-AI28-AI30,0) -> 00:00:00 | AO31: =IFERROR(AO29-AO28-AO30,0) -> 0 | AU31: =IFERROR(AU29-AU28-AU30,0) -> 0 | BA31: =IFERROR(BA29-BA28-BA30,0) -> 00:00:00 | BG31: =IFERROR(BG29-BG28-BG30,0) -> 00:00:00 | BM31: =IFERROR(BM29-BM28-BM30,0) -> 00:00:00 | BS31: =IFERROR(BS29-BS28-BS30,0) -> 00:00:00 | BY31: =IFERROR(BY29-BY28-BY30,0) -> 00:00:00 | CE31: =IFERROR(CE29-CE28-CE30,0) -> 0 | CK31: =IFERROR(CK29-CK28-CK30,0) -> 0 | CQ31: =IFERROR(CQ29-CQ28-CQ30,0) -> 00:00:00 | CW31: =IFERROR(CW29-CW28-CW30,0) -> 00:00:00 | DC31: =IFERROR(DC29-DC28-DC30,0) -> 00:00:00 | DI31: =IFERROR(DI29-DI28-DI30,0) -> 00:00:00 | DO31: =IFERROR(DO29-DO28-DO30,0) -> 00:00:00 | DU31: =IFERROR(DU29-DU28-DU30,0) -> 0 | EA31: =IFERROR(EA29-EA28-EA30,0) -> 0 | EG31: =IFERROR(EG29-EG28-EG30,0) -> 00:00:00 | EM31: =IFERROR(EM29-EM28-EM30,0) -> 00:00:00 | ES31: =IFERROR(ES29-ES28-ES30,0) -> 0 | EY31: =IFERROR(EY29-EY28-EY30,0) -> 0 | FE31: =IFERROR(FE29-FE28-FE30,0) -> 00:00:00 | FK31: =IFERROR(FK29-FK28-FK30,0) -> 0 | FQ31: =IFERROR(FQ29-FQ28-FQ30,0) -> 0 | FW31: =IFERROR(FW29-FW28-FW30,0) -> 00:00:00 | GC31: =IFERROR(GC29-GC28-GC30,0) -> 00:00:00 | GI31: =IFERROR(GI29-GI28-GI30,0) -> 00:00:00 | GO31: =IFERROR(GO29-GO28-GO30,0) -> 00:00:00 | GU31: =IFERROR(GU29-GU28-GU30,0) -> 00:00:00 | HA31: =IFERROR(HA29-HA28-HA30,0) -> 0 | HY31: =SUM(AC31:HF31) -> 0 | IA31: =VLOOKUP($HY$17,'[4]производственный календарь '!$B2:$F13,2,0) -> 159 | IJ31: Купцова Г.И., кассир билетный Ч
X32: пр | Y32: пр | HG32: =SUM(AC32:HF32) -> 00:00:00 | IJ32: Морозова Г.Н., контролёр-посадчик аттракциона Ч
A33: 2 | Y33: от | HG33: =COUNTIF(AC34:HF34,"=От") -> 0 | IJ33: Хомченко Л.Е., контролёр-посадчик аттракциона Ч
F34: Лагутенко В.А., кассир билетный Ч | X34: 1 | HG34: =COUNT(AC34:HF34) -> 0 | HY34: =SUM(IFERROR(AC35:HF35-AC34:HF34-AC36:HF36,0)) -> 0 | IJ34: Чижова В.В., контролёр-посадчик аттракциона
IJ35: Середка С.Л., контролёр-посадчик аттракциона
X36: обед | Y36: обед
Y37: р.д. | AC37: =IFERROR(AC35-AC34-AC36,0) -> 00:00:00 | AI37: =IFERROR(AI35-AI34-AI36,0) -> 00:00:00 | AO37: =IFERROR(AO35-AO34-AO36,0) -> 0 | AU37: =IFERROR(AU35-AU34-AU36,0) -> 0 | BA37: =IFERROR(BA35-BA34-BA36,0) -> 0 | BG37: =IFERROR(BG35-BG34-BG36,0) -> 00:00:00 | BM37: =IFERROR(BM35-BM34-BM36,0) -> 00:00:00 | BS37: =IFERROR(BS35-BS34-BS36,0) -> 00:00:00 | BY37: =IFERROR(BY35-BY34-BY36,0) -> 00:00:00 | CE37: =IFERROR(CE35-CE34-CE36,0) -> 0 | CK37: =IFERROR(CK35-CK34-CK36,0) -> 0 | CQ37: =IFERROR(CQ35-CQ34-CQ36,0) -> 0 | CW37: =IFERROR(CW35-CW34-CW36,0) -> 00:00:00 | DC37: =IFERROR(DC35-DC34-DC36,0) -> 00:00:00 | DI37: =IFERROR(DI35-DI34-DI36,0) -> 00:00:00 | DO37: =IFERROR(DO35-DO34-DO36,0) -> 00:00:00 | DU37: =IFERROR(DU35-DU34-DU36,0) -> 0 | EA37: =IFERROR(EA35-EA34-EA36,0) -> 0 | EG37: =IFERROR(EG35-EG34-EG36,0) -> 0 | EM37: =IFERROR(EM35-EM34-EM36,0) -> 00:00:00 | ES37: =IFERROR(ES35-ES34-ES36,0) -> 00:00:00 | EY37: =IFERROR(EY35-EY34-EY36,0) -> 00:00:00 | FE37: =IFERROR(FE35-FE34-FE36,0) -> 00:00:00 | FK37: =IFERROR(FK35-FK34-FK36,0) -> 0 | FQ37: =IFERROR(FQ35-FQ34-FQ36,0) -> 0 | FW37: =IFERROR(FW35-FW34-FW36,0) -> 0 | GC37: =IFERROR(GC35-GC34-GC36,0) -> 00:00:00 | GI37: =IFERROR(GI35-GI34-GI36,0) -> 00:00:00 | GO37: =IFERROR(GO35-GO34-GO36,0) -> 00:00:00 | GU37: =IFERROR(GU35-GU34-GU36,0) -> 00:00:00 | HA37: =IFERROR(HA35-HA34-HA36,0) -> 0 | HY37: =SUM(AC37:HF37) -> 0 | IA37: =VLOOKUP($HY$17,'[4]производственный календарь '!$B$2:$F$13,2,0) -> 159
X38: пр | Y38: пр | HG38: =SUM(AC38:HF38) -> 00:00:00
A39: 3 | Y39: от | HG39: =COUNTIF(AC40:HF40,"=От") -> 0
F40: Купцова Г.И., кассир билетный НЧ | X40: 1 | HG40: =COUNT(AC40:HF40) -> 0 | HY40: =SUM(IFERROR(AC41:HF41-AC40:HF40-AC42:HF42,0)) -> 0
X42: обед | Y42: обед
Y43: р.д. | AC43: =IFERROR(AC41-AC40-AC42,0) -> 0 | AI43: =IFERROR(AI41-AI40-AI42,0) -> 00:00:00 | AO43: =IFERROR(AO41-AO40-AO42,0) -> 0 | AU43: =IFERROR(AU41-AU40-AU42,0) -> 0 | BA43: =IFERROR(BA41-BA40-BA42,0) -> 0 | BG43: =IFERROR(BG41-BG40-BG42,0) -> 00:00:00 | BM43: =IFERROR(BM41-BM40-BM42,0) -> 0 | BS43: =IFERROR(BS41-BS40-BS42,0) -> 0 | BY43: =IFERROR(BY41-BY40-BY42,0) -> 00:00:00 | CE43: =IFERROR(CE41-CE40-CE42,0) -> 0 | CK43: =IFERROR(CK41-CK40-CK42,0) -> 0 | CQ43: =IFERROR(CQ41-CQ40-CQ42,0) -> 0 | CW43: =IFERROR(CW41-CW40-CW42,0) -> 00:00:00 | DC43: =IFERROR(DC41-DC40-DC42,0) -> 0 | DI43: =IFERROR(DI41-DI40-DI42,0) -> 0 | DO43: =IFERROR(DO41-DO40-DO42,0) -> 00:00:00 | DU43: =IFERROR(DU41-DU40-DU42,0) -> 0 | EA43: =IFERROR(EA41-EA40-EA42,0) -> 0 | EG43: =IFERROR(EG41-EG40-EG42,0) -> 0 | EM43: =IFERROR(EM41-EM40-EM42,0) -> 00:00:00 | ES43: =IFERROR(ES41-ES40-ES42,0) -> 0 | EY43: =IFERROR(EY41-EY40-EY42,0) -> 0 | FE43: =IFERROR(FE41-FE40-FE42,0) -> 00:00:00 | FK43: =IFERROR(FK41-FK40-FK42,0) -> 0 | FQ43: =IFERROR(FQ41-FQ40-FQ42,0) -> 0 | FW43: =IFERROR(FW41-FW40-FW42,0) -> 0 | GC43: =IFERROR(GC41-GC40-GC42,0) -> 00:00:00 | GI43: =IFERROR(GI41-GI40-GI42,0) -> 0 | GO43: =IFERROR(GO41-GO40-GO42,0) -> 0 | GU43: =IFERROR(GU41-GU40-GU42,0) -> 00:00:00 | HA43: =IFERROR(HA41-HA40-HA42,0) -> 0 | HY43: =SUM(AC43:GZ43) -> 0 | IA43: =VLOOKUP($HY$17,'[4]производственный календарь '!$B$2:$F$13,2,0) -> 159
X44: пр | Y44: пр | HG44: =SUM(AC44:HF44) -> 00:00:00 | HY44: =SUM(AG44:HQ45) -> 00:00:00
A45: 4 | Y45: от | HG45: =COUNTIF(AC46:HF46,"=От") -> 0
F46: Кипкаева Л.А., дворник | X46: 1 | HG46: =COUNT(AC46:HF46) -> 0 | HY46: =SUM(IFERROR(AC47:HF47-AC46:HF46-AC48:HF48,0)) -> 0
X48: обед | Y48: обед
Y49: р.д. | AC49: =IFERROR(AC47-AC46-AC48,0) -> 0 | AI49: =IFERROR(AI47-AI46-AI48,0) -> 00:00:00 | AO49: =IFERROR(AO47-AO46-AO48,0) -> 0 | AU49: =IFERROR(AU47-AU46-AU48,0) -> 0 | BA49: =IFERROR(BA47-BA46-BA48,0) -> 0 | BG49: =IFERROR(BG47-BG46-BG48,0) -> 00:00:00 | BM49: =IFERROR(BM47-BM46-BM48,0) -> 0 | BS49: =IFERROR(BS47-BS46-BS48,0) -> 0 | BY49: =IFERROR(BY47-BY46-BY48,0) -> 00:00:00 | CE49: =IFERROR(CE47-CE46-CE48,0) -> 0 | CK49: =IFERROR(CK47-CK46-CK48,0) -> 0 | CQ49: =IFERROR(CQ47-CQ46-CQ48,0) -> 0 | CW49: =IFERROR(CW47-CW46-CW48,0) -> 00:00:00 | DC49: =IFERROR(DC47-DC46-DC48,0) -> 0 | DI49: =IFERROR(DI47-DI46-DI48,0) -> 0 | DO49: =IFERROR(DO47-DO46-DO48,0) -> 00:00:00 | DU49: =IFERROR(DU47-DU46-DU48,0) -> 0 | EA49: =IFERROR(EA47-EA46-EA48,0) -> 0 | EG49: =IFERROR(EG47-EG46-EG48,0) -> 0 | EM49: =IFERROR(EM47-EM46-EM48,0) -> 00:00:00 | ES49: =IFERROR(ES47-ES46-ES48,0) -> 0 | EY49: =IFERROR(EY47-EY46-EY48,0) -> 0 | FE49: =IFERROR(FE47-FE46-FE48,0) -> 00:00:00 | FK49: =IFERROR(FK47-FK46-FK48,0) -> 0 | FQ49: =IFERROR(FQ47-FQ46-FQ48,0) -> 0 | FW49: =IFERROR(FW47-FW46-FW48,0) -> 0 | GC49: =IFERROR(GC47-GC46-GC48,0) -> 00:00:00 | GI49: =IFERROR(GI47-GI46-GI48,0) -> 0 | GO49: =IFERROR(GO47-GO46-GO48,0) -> 0 | GU49: =IFERROR(GU47-GU46-GU48,0) -> 00:00:00 | HA49: =IFERROR(HA47-HA46-HA48,0) -> 0 | HY49: =SUM(AC49:GZ49) -> 0 | IA49: =VLOOKUP($HY$17,'[4]производственный календарь '!$B$2:$F$13,2,0) -> 159
X50: пр | Y50: пр | HG50: =SUM(AC50:HF50) -> 00:00:00
A51: 5 | Y51: от | HG51: =COUNTIF(AC52:HF52,"=От") -> 0
F52: Морозова Г.Н., контролёр-посадчик аттракциона Ч | X52: 1 | HG52: =COUNT(AC52:HF52) -> 0 | HY52: =SUM(IFERROR(AC53:HF53-AC52:HF52-AC54:HF54,0)) -> 0
X54: обед | Y54: обед
Y55: р.д. | AC55: =IFERROR(AC53-AC52-AC54,0) -> 00:00:00 | AI55: =IFERROR(AI53-AI52-AI54,0) -> 00:00:00 | AO55: =IFERROR(AO53-AO52-AO54,0) -> 0 | AU55: =IFERROR(AU53-AU52-AU54,0) -> 0 | BA55: =IFERROR(BA53-BA52-BA54,0) -> 00:00:00 | BG55: =IFERROR(BG53-BG52-BG54,0) -> 00:00:00 | BM55: =IFERROR(BM53-BM52-BM54,0) -> 00:00:00 | BS55: =IFERROR(BS53-BS52-BS54,0) -> 00:00:00 | BY55: =IFERROR(BY53-BY52-BY54,0) -> 00:00:00 | CE55: =IFERROR(CE53-CE52-CE54,0) -> 0 | CK55: =IFERROR(CK53-CK52-CK54,0) -> 0 | CQ55: =IFERROR(CQ53-CQ52-CQ54,0) -> 00:00:00 | CW55: =IFERROR(CW53-CW52-CW54,0) -> 00:00:00 | DC55: =IFERROR(DC53-DC52-DC54,0) -> 00:00:00 | DI55: =IFERROR(DI53-DI52-DI54,0) -> 00:00:00 | DO55: =IFERROR(DO53-DO52-DO54,0) -> 00:00:00 | DU55: =IFERROR(DU53-DU52-DU54,0) -> 0 | EA55: =IFERROR(EA53-EA52-EA54,0) -> 0 | EG55: =IFERROR(EG53-EG52-EG54,0) -> 00:00:00 | EM55: =IFERROR(EM53-EM52-EM54,0) -> 00:00:00 | ES55: =IFERROR(ES53-ES52-ES54,0) -> 00:00:00 | EY55: =IFERROR(EY53-EY52-EY54,0) -> 00:00:00 | FE55: =IFERROR(FE53-FE52-FE54,0) -> 00:00:00 | FK55: =IFERROR(FK53-FK52-FK54,0) -> 0 | FQ55: =IFERROR(FQ53-FQ52-FQ54,0) -> 0 | FW55: =IFERROR(FW53-FW52-FW54,0) -> 00:00:00 | GC55: =IFERROR(GC53-GC52-GC54,0) -> 00:00:00 | GI55: =IFERROR(GI53-GI52-GI54,0) -> 00:00:00 | GO55: =IFERROR(GO53-GO52-GO54,0) -> 00:00:00 | GU55: =IFERROR(GU53-GU52-GU54,0) -> 00:00:00 | HA55: =IFERROR(HA53-HA52-HA54,0) -> 0 | HY55: =SUM(AC55:HF55) -> 0 | IA55: =VLOOKUP($HY$17,'[4]производственный календарь '!$B$2:$F$13,2,0) -> 159
X56: пр | Y56: пр | HG56: =SUM(AC56:HF56) -> 00:00:00
A57: 6 | Y57: от | HG57: =COUNTIF(AC58:HF58,"=От") -> 14 | IG57: В
F58: Нурлиева Е.А., котролёр-посадчик аттракциона НЧ | X58: 1 | AC58: 0.3333333333 | AO58: 0.3333333333 | BA58: 0.3333333333 | BM58: 0.3333333333 | BY58: 0.3333333333 | CK58: 0.3333333333 | CW58: 0.3333333333 | DI58: 0.3333333333 | DU58: ОТ | EA58: ОТ | EG58: ОТ | EM58: ОТ | ES58: ОТ | EY58: ОТ | FE58: ОТ | FK58: ОТ | FQ58: ОТ | FW58: ОТ | GC58: ОТ | GI58: ОТ | GO58: ОТ | GU58: ОТ | HG58: =COUNT(AC58:HF58) -> 8 | HY58: =SUM(IFERROR(AC59:HF59-AC58:HF58-AC60:HF60,0)) -> 3.666666667 | IG58: Б
AC59: 0.8333333333 | AO59: 0.8333333333 | BA59: 0.8333333333 | BM59: 0.8333333333 | BY59: 0.8333333333 | CK59: 0.8333333333 | CW59: 0.8333333333 | DI59: 0.8333333333 | DU59: ОТ | EA59: ОТ | EG59: ОТ | EM59: ОТ | ES59: ОТ | EY59: ОТ | FE59: ОТ | FK59: ОТ | FQ59: ОТ | FW59: ОТ | GC59: ОТ | GI59: ОТ | GO59: ОТ | GU59: ОТ | IG59: К
X60: обед | Y60: обед | AC60: 01:00:00 | AO60: 01:00:00 | BA60: 01:00:00 | BM60: 01:00:00 | BY60: 01:00:00 | CK60: 01:00:00 | CW60: 01:00:00 | DI60: 01:00:00 | IG60: О
Y61: р.д. | AC61: =IFERROR(AC59-AC58-AC60,0) -> 11:00:00 | AI61: =IFERROR(AI59-AI58-AI60,0) -> 00:00:00 | AO61: =IFERROR(AO59-AO58-AO60,0) -> 0.4583333333 | AU61: =IFERROR(AU59-AU58-AU60,0) -> 0 | BA61: =IFERROR(BA59-BA58-BA60,0) -> 11:00:00 | BG61: =IFERROR(BG59-BG58-BG60,0) -> 00:00:00 | BM61: =IFERROR(BM59-BM58-BM60,0) -> 11:00:00 | BS61: =IFERROR(BS59-BS58-BS60,0) -> 00:00:00 | BY61: =IFERROR(BY59-BY58-BY60,0) -> 11:00:00 | CE61: =IFERROR(CE59-CE58-CE60,0) -> 0 | CK61: =IFERROR(CK59-CK58-CK60,0) -> 0.4583333333 | CQ61: =IFERROR(CQ59-CQ58-CQ60,0) -> 00:00:00 | CW61: =IFERROR(CW59-CW58-CW60,0) -> 11:00:00 | DC61: =IFERROR(DC59-DC58-DC60,0) -> 00:00:00 | DI61: =IFERROR(DI59-DI58-DI60,0) -> 11:00:00 | DO61: =IFERROR(DO59-DO58-DO60,0) -> 00:00:00 | DU61: =IFERROR(DU59-DU58-DU60,0) -> 0 | EA61: =IFERROR(EA59-EA58-EA60,0) -> 0 | EG61: =IFERROR(EG59-EG58-EG60,0) -> 00:00:00 | EM61: =IFERROR(EM59-EM58-EM60,0) -> 00:00:00 | ES61: =IFERROR(ES59-ES58-ES60,0) -> 00:00:00 | EY61: =IFERROR(EY59-EY58-EY60,0) -> 00:00:00 | FE61: =IFERROR(FE59-FE58-FE60,0) -> 00:00:00 | FK61: =IFERROR(FK59-FK58-FK60,0) -> 0 | FQ61: =IFERROR(FQ59-FQ58-FQ60,0) -> 0 | FW61: =IFERROR(FW59-FW58-FW60,0) -> 00:00:00 | GC61: =IFERROR(GC59-GC58-GC60,0) -> 00:00:00 | GI61: =IFERROR(GI59-GI58-GI60,0) -> 00:00:00 | GO61: =IFERROR(GO59-GO58-GO60,0) -> 00:00:00 | GU61: =IFERROR(GU59-GU58-GU60,0) -> 00:00:00 | HA61: =IFERROR(HA59-HA58-HA60,0) -> 0 | HY61: =SUM(AC61:GZ61) -> 3.666666667 | IA61: =VLOOKUP($HY$17,'[4]производственный календарь '!$B$2:$F$13,2,0) -> 159 | IG61: П
X62: пр | Y62: пр | HG62: =SUM(AC62:HF62) -> 00:00:00 | IG62: ОТ
A63: 7 | Y63: от | HG63: =COUNTIF(AC63:HF63,"=От") -> 0 | IG63: С
DO64: ОТ | DU64: 0.4583333333 | EA64: ОТ | EG64: 0.4166666667 | EM64: ОТ | ES64: 0.4166666667 | EY64: ОТ | FE64: 0.4166666667 | FK64: ОТ | FQ64: 0.4166666667 | FW64: ОТ | GC64: 0.4166666667 | GI64: ОТ | GO64: 0.4166666667 | GU64: ОТ | HY64: =SUM(AC64:HF64) -> 2.958333333
F65: Хомченко Л.Е., контролёр-посадчик аттракциона Ч | X65: 1 | AI65: 0.3333333333 | AU65: 0.3333333333 | BG65: 0.3333333333 | BS65: 0.3333333333 | CE65: 0.3333333333 | CQ65: 0.3333333333 | DC65: 0.3333333333 | DO65: 0.3333333333 | EA65: 0.3333333333 | EM65: 0.3333333333 | EY65: 0.3333333333 | FK65: 0.3333333333 | FW65: 0.3333333333 | GI65: 0.3333333333 | GU65: 0.3333333333 | HG65: =COUNT(AC65:HF65) -> 15 | HY65: =SUM(IFERROR(AC66:HF66-AC65:HF65-AC67:HF67,0)) -> 6.625 | IG65: Р
AI66: 0.8333333333 | AU66: 0.8333333333 | BG66: 0.8333333333 | BS66: 0.8333333333 | CE66: 0.8333333333 | CQ66: 0.8333333333 | DC66: 0.8333333333 | DO66: 0.8333333333 | EA66: 0.8333333333 | EM66: 0.7916666667 | EY66: 0.7916666667 | FK66: 0.7916666667 | FW66: 0.7916666667 | GI66: 0.7916666667 | GU66: 0.7916666667
X67: обед | Y67: обед | AI67: 01:00:00 | AU67: 01:00:00 | BG67: 01:00:00 | BS67: 01:00:00 | CE67: 01:00:00 | CQ67: 01:00:00 | DC67: 01:00:00 | DO67: 01:00:00 | EA67: 01:00:00 | EM67: 01:00:00 | EY67: 01:00:00 | FK67: 01:00:00 | FW67: 01:00:00 | GI67: 01:00:00 | GU67: 01:00:00
Y68: р.д. | AC68: =IFERROR(AC66-AC65-AC67,0) -> 00:00:00 | AI68: =IFERROR(AI66-AI65-AI67,0) -> 11:00:00 | AO68: =IFERROR(AO66-AO65-AO67,0) -> 0 | AU68: =IFERROR(AU66-AU65-AU67,0) -> 0.4583333333 | BA68: =IFERROR(BA66-BA65-BA67,0) -> 00:00:00 | BG68: =IFERROR(BG66-BG65-BG67,0) -> 11:00:00 | BM68: =IFERROR(BM66-BM65-BM67,0) -> 00:00:00 | BS68: =IFERROR(BS66-BS65-BS67,0) -> 11:00:00 | BY68: =IFERROR(BY66-BY65-BY67,0) -> 00:00:00 | CE68: =IFERROR(CE66-CE65-CE67,0) -> 0.4583333333 | CK68: =IFERROR(CK66-CK65-CK67,0) -> 0 | CQ68: =IFERROR(CQ66-CQ65-CQ67,0) -> 11:00:00 | CW68: =IFERROR(CW66-CW65-CW67,0) -> 00:00:00 | DC68: =IFERROR(DC66-DC65-DC67,0) -> 11:00:00 | DI68: =IFERROR(DI66-DI65-DI67,0) -> 00:00:00 | DO68: =IFERROR(DO66-DO65-DO67,0) -> 11:00:00 | DU68: =IFERROR(DU66-DU65-DU67,0) -> 0 | EA68: =IFERROR(EA66-EA65-EA67,0) -> 0.4583333333 | EG68: =IFERROR(EG66-EG65-EG67,0) -> 00:00:00 | EM68: =IFERROR(EM66-EM65-EM67,0) -> 10:00:00 | ES68: =IFERROR(ES66-ES65-ES67,0) -> 00:00:00 | EY68: =IFERROR(EY66-EY65-EY67,0) -> 10:00:00 | FE68: =IFERROR(FE66-FE65-FE67,0) -> 00:00:00 | FK68: =IFERROR(FK66-FK65-FK67,0) -> 0.4166666667 | FQ68: =IFERROR(FQ66-FQ65-FQ67,0) -> 0 | FW68: =IFERROR(FW66-FW65-FW67,0) -> 10:00:00 | GC68: =IFERROR(GC66-GC65-GC67,0) -> 00:00:00 | GI68: =IFERROR(GI66-GI65-GI67,0) -> 10:00:00 | GO68: =IFERROR(GO66-GO65-GO67,0) -> 00:00:00 | GU68: =IFERROR(GU66-GU65-GU67,0) -> 10:00:00 | HA68: =IFERROR(HA66-HA65-HA67,0) -> 0 | HY68: =SUM(AC68:HF68) -> 6.625 | IA68: =VLOOKUP($HY$17,'[4]производственный календарь '!$B$2:$F$13,2,0) -> 159
X69: пр | Y69: пр | HG69: =SUM(AC69:HF69) -> 00:00:00
A70: 8 | Y70: от | DO70: ОТ | DU70: ОТ | EA70: ОТ | EG70: ОТ | EM70: ОТ | ES70: ОТ | EY70: ОТ | FE70: ОТ | FK70: ОТ | FQ70: ОТ | FW70: ОТ | GC70: ОТ | GI70: ОТ | GO70: ОТ | GU70: ОТ | HG70: =COUNTIF(AC70:HF70,"=От") -> 15 | IA70: =VLOOKUP($HY$17,'[4]производственный календарь '!$B$2:$F$13,2,0) -> 159
F71: Чижова В.В., контролёр-посадчик аттракциона | Y71: 0.5 | HG71: =COUNT(AC71:HF71) -> 0 | HY71: =SUM(IFERROR(AC72:HF72-AC71:HF71-AC73:HF73,0)) -> 0 | IA71: =VLOOKUP($HY$17,'[4]производственный календарь '!$B$2:$F$13,2,0) -> 159
IA72: 88
Y73: обед
Y74: р.д. | AC74: =IFERROR(AC72-AC71-AC73,0) -> 00:00:00 | AI74: =IFERROR(AI72-AI71-AI73,0) -> 00:00:00 | AO74: 00:00:00 | AU74: 00:00:00 | BA74: =IFERROR(BA72-BA71-BA73,0) -> 00:00:00 | BG74: 00:00:00 | BM74: 00:00:00 | BS74: 00:00:00 | BY74: 00:00:00 | CE74: 00:00:00 | CK74: 00:00:00 | CQ74: =IFERROR(CQ72-CQ71-CQ73,0) -> 00:00:00 | CW74: 00:00:00 | DC74: 00:00:00 | DI74: 00:00:00 | DO74: 00:00:00 | DU74: 00:00:00 | EA74: 00:00:00 | EG74: 00:00:00 | EM74: 00:00:00 | ES74: =IFERROR(ES72-ES71-ES73,0) -> 00:00:00 | EY74: =IFERROR(EY72-EY71-EY73,0) -> 00:00:00 | FE74: =IFERROR(FE72-FE71-FE73,0) -> 00:00:00 | FK74: 00:00:00 | FQ74: =IFERROR(FQ72-FQ71-FQ73,0) -> 00:00:00 | FW74: 00:00:00 | GC74: =IFERROR(GC72-GC71-GC73,0) -> 00:00:00 | GI74: 00:00:00 | GO74: =IFERROR(GO72-GO71-GO73,0) -> 00:00:00 | GU74: =IFERROR(GU72-GU71-GU73,0) -> 00:00:00 | HA74: 0 | HY74: =SUM(AC74:HF74) -> 0 | IA74: =VLOOKUP($HY$17,'[4]производственный календарь '!$B$2:$F$13,2,0) -> 159
Y75: пр
Y76: от
F77: Середка С.Л., контролёр-посадчик аттракциона | Y77: 0.5 | HG77: =COUNT(AC77:HF77) -> 0 | HY77: =SUM(IFERROR(AC78:HF78-AC77:HF77-AC79:HF79,0)) -> 0 | IA77: =VLOOKUP($HY$17,'[4]производственный календарь '!$B$2:$F$13,2,0) -> 159
Y79: обед
Y80: р.д. | AC80: =IFERROR(AC78-AC77-AC79,0) -> 0 | AI80: =IFERROR(AI78-AI77-AI79,0) -> 00:00:00 | AO80: 00:00:00 | AU80: 00:00:00 | BA80: =IFERROR(BA78-BA77-BA79,0) -> 00:00:00 | BG80: =IFERROR(BG78-BG77-BG79,0) -> 00:00:00 | BM80: 0 | BS80: 0 | BY80: 00:00:00 | CE80: 00:00:00 | CK80: =IFERROR(CK78-CK77-CK79,0) -> 00:00:00 | CQ80: 00:00:00 | CW80: 00:00:00 | DC80: 0 | DI80: 0 | DO80: =IFERROR(DO78-DO77-DO79,0) -> 00:00:00 | DU80: 00:00:00 | EA80: 00:00:00 | EG80: 00:00:00 | EM80: 00:00:00 | ES80: 0 | EY80: =IFERROR(EY78-EY77-EY79,0) -> 0 | FE80: 00:00:00 | FK80: 00:00:00 | FQ80: 00:00:00 | FW80: 00:00:00 | GC80: 00:00:00 | GI80: =IFERROR(GI78-GI77-GI79,0) -> 0 | GO80: =IFERROR(GO78-GO77-GO79,0) -> 0 | GU80: 00:00:00 | HA80: 0 | HY80: =SUM(AC80:HF80) -> 0
Y81: пр
Y82: от
F83: Кондратюк Н.В., сторож | X83: 1 | AC83: 0 | AO83: 0.7083333333 | AU83: 0 | BG83: 0.7083333333 | BM83: 0 | BY83: 0.7083333333 | CE83: 0 | CQ83: 0.7083333333 | CW83: 0 | DI83: 0.7083333333 | DO83: 0 | EA83: 0.7083333333 | EG83: 0 | ES83: 0.7083333333 | EY83: 0 | FK83: 0.7083333333 | FQ83: 0 | GC83: 0.7083333333 | GI83: 0 | GU83: 0.75 | HG83: =COUNT(AC83:HF83) -> 20 | HY83: =SUM(IF(ISNUMBER(AC83:HF83),AC84:HF84-AC83:HF83+(AC84:HF84<AC83:HF83),))*24 -> 159
AC84: 0.375 | AO84: 1 | AU84: 0.375 | BG84: 1 | BM84: 0.375 | BY84: 1 | CE84: 0.375 | CQ84: 1 | CW84: 0.375 | DI84: 1 | DO84: 0.375 | EA84: 1 | EG84: 0.375 | ES84: 1 | EY84: 0.375 | FK84: 1 | FQ84: 0.375 | GC84: 1 | GI84: 0.375 | GU84: 1
AC85: =IFERROR(AC84-AC83,0) -> 0.375 | AI85: =IFERROR(AI84-AI83,0) -> 0 | AO85: 0.2916666667 | AU85: 0.375 | BA85: 0 | BG85: 0.2916666667 | BM85: 0.375 | BS85: 0 | BY85: 0.2916666667 | CE85: 0.375 | CK85: 0 | CQ85: 0.2916666667 | CW85: =IFERROR(CW84-CW83,0) -> 0.375 | DC85: 0 | DI85: 0.2916666667 | DO85: 0.375 | DU85: 0 | EA85: 0.2916666667 | EG85: 0.375 | EM85: 0 | ES85: 0.2916666667 | EY85: 0.375 | FE85: 0 | FK85: =IFERROR(FK84-FK83,0) -> 0.2916666667 | FQ85: 0.375 | FW85: 0 | GC85: 0.2916666667 | GI85: 0.375 | GO85: 0 | GU85: 0.25 | HA85: 0 | HY85: =SUM(AC85:HF85) -> 6.625
X87: НОЧЬ | AC87: =(MIN(AC84,6/24)-MIN(AC83,6/24)+MAX(AC84,22/24)-MAX(AC83,22/24))*24+(AC84<AC83)*8 -> 6 | AI87: =(MIN(AI84,6/24)-MIN(AI83,6/24)+MAX(AI84,22/24)-MAX(AI83,22/24))*24+(AI84<AI83)*8 -> 0 | AO87: =(MIN(AO84,6/24)-MIN(AO83,6/24)+MAX(AO84,22/24)-MAX(AO83,22/24))*24+(AO84<AO83)*8 -> 2 | AU87: =(MIN(AU84,6/24)-MIN(AU83,6/24)+MAX(AU84,22/24)-MAX(AU83,22/24))*24+(AU84<AU83)*8 -> 6 | BA87: =(MIN(BA84,6/24)-MIN(BA83,6/24)+MAX(BA84,22/24)-MAX(BA83,22/24))*24+(BA84<BA83)*8 -> 0 | BG87: =(MIN(BG84,6/24)-MIN(BG83,6/24)+MAX(BG84,22/24)-MAX(BG83,22/24))*24+(BG84<BG83)*8 -> 2 | BM87: =(MIN(BM84,6/24)-MIN(BM83,6/24)+MAX(BM84,22/24)-MAX(BM83,22/24))*24+(BM84<BM83)*8 -> 6 | BS87: =(MIN(BS84,6/24)-MIN(BS83,6/24)+MAX(BS84,22/24)-MAX(BS83,22/24))*24+(BS84<BS83)*8 -> 0 | BY87: =(MIN(BY84,6/24)-MIN(BY83,6/24)+MAX(BY84,22/24)-MAX(BY83,22/24))*24+(BY84<BY83)*8 -> 2 | CE87: =(MIN(CE84,6/24)-MIN(CE83,6/24)+MAX(CE84,22/24)-MAX(CE83,22/24))*24+(CE84<CE83)*8 -> 6 | CK87: =(MIN(CK84,6/24)-MIN(CK83,6/24)+MAX(CK84,22/24)-MAX(CK83,22/24))*24+(CK84<CK83)*8 -> 0 | CQ87: =(MIN(CQ84,6/24)-MIN(CQ83,6/24)+MAX(CQ84,22/24)-MAX(CQ83,22/24))*24+(CQ84<CQ83)*8 -> 2 | CW87: =(MIN(CW84,6/24)-MIN(CW83,6/24)+MAX(CW84,22/24)-MAX(CW83,22/24))*24+(CW84<CW83)*8 -> 6 | DC87: =(MIN(DC84,6/24)-MIN(DC83,6/24)+MAX(DC84,22/24)-MAX(DC83,22/24))*24+(DC84<DC83)*8 -> 0 | DI87: =(MIN(DI84,6/24)-MIN(DI83,6/24)+MAX(DI84,22/24)-MAX(DI83,22/24))*24+(DI84<DI83)*8 -> 2 | DO87: =(MIN(DO84,6/24)-MIN(DO83,6/24)+MAX(DO84,22/24)-MAX(DO83,22/24))*24+(DO84<DO83)*8 -> 6 | DU87: =(MIN(DU84,6/24)-MIN(DU83,6/24)+MAX(DU84,22/24)-MAX(DU83,22/24))*24+(DU84<DU83)*8 -> 0 | EA87: =(MIN(EA84,6/24)-MIN(EA83,6/24)+MAX(EA84,22/24)-MAX(EA83,22/24))*24+(EA84<EA83)*8 -> 2 | EG87: =(MIN(EG84,6/24)-MIN(EG83,6/24)+MAX(EG84,22/24)-MAX(EG83,22/24))*24+(EG84<EG83)*8 -> 6 | EM87: =(MIN(EM84,6/24)-MIN(EM83,6/24)+MAX(EM84,22/24)-MAX(EM83,22/24))*24+(EM84<EM83)*8 -> 0 | ES87: =(MIN(ES84,6/24)-MIN(ES83,6/24)+MAX(ES84,22/24)-MAX(ES83,22/24))*24+(ES84<ES83)*8 -> 2 | EY87: =(MIN(EY84,6/24)-MIN(EY83,6/24)+MAX(EY84,22/24)-MAX(EY83,22/24))*24+(EY84<EY83)*8 -> 6 | FE87: =(MIN(FE84,6/24)-MIN(FE83,6/24)+MAX(FE84,22/24)-MAX(FE83,22/24))*24+(FE84<FE83)*8 -> 0 | FK87: =(MIN(FK84,6/24)-MIN(FK83,6/24)+MAX(FK84,22/24)-MAX(FK83,22/24))*24+(FK84<FK83)*8 -> 2 | FQ87: =(MIN(FQ84,6/24)-MIN(FQ83,6/24)+MAX(FQ84,22/24)-MAX(FQ83,22/24))*24+(FQ84<FQ83)*8 -> 6 | FW87: =(MIN(FW84,6/24)-MIN(FW83,6/24)+MAX(FW84,22/24)-MAX(FW83,22/24))*24+(FW84<FW83)*8 -> 0 | GC87: =(MIN(GC84,6/24)-MIN(GC83,6/24)+MAX(GC84,22/24)-MAX(GC83,22/24))*24+(GC84<GC83)*8 -> 2 | GI87: =(MIN(GI84,6/24)-MIN(GI83,6/24)+MAX(GI84,22/24)-MAX(GI83,22/24))*24+(GI84<GI83)*8 -> 6 | GO87: =(MIN(GO84,6/24)-MIN(GO83,6/24)+MAX(GO84,22/24)-MAX(GO83,22/24))*24+(GO84<GO83)*8 -> 0 | GU87: =(MIN(GU84,6/24)-MIN(GU83,6/24)+MAX(GU84,22/24)-MAX(GU83,22/24))*24+(GU84<GU83)*8 -> 2 | HA87: =(MIN(HA84,6/24)-MIN(HA83,6/24)+MAX(HA84,22/24)-MAX(HA83,22/24))*24+(HA84<HA83)*8 -> 0 | HY87: =SUM(AC87:HF87) -> 80
A88: 9
X89: пр | Y89: пр | AU89: 0.375 | HG89: =COUNT(AC89:HF89) -> 1 | HY89: =SUM(AC89:HF89) -> 0.375 | IA89: =VLOOKUP($HY$17,'[4]производственный календарь '!$B$2:$F$13,2,0) -> 159
Y90: от | HG90: 0
F93: С графиком ознакомлен(а):
F95: 1 | BL95: "___"______________2020
F96: 2 | BL96: "___"______________2020
F97: 3 | BL97: "___"______________2020
F98: 4 | BL98: "___"______________2020
F99: 5 | BL99: "___"______________2020
F100: 6 | BL100: "___"______________2020
F101: 7 | BL101: "___"______________2020
F102: 8 | BL102: "___"______________2020
F103: 9 | BL103: "___"______________2020
F104: 10 | BL104: "___"______________2020
F105: 11 | BL105: "___"______________2020
F106: 12 | BL106: "___"______________2020

Sheet ТАБЕЛЬ И.Б. НОЯБРЬ
A5: название структурного подразделения
I6: ГРАФИК РАБОТЫ | AQ6: с | AV6: по | AW6: 2020-05-31
E7: обслуживающего персонала на | R7: =IF(DAY(D48)>=28,EDATE(D48,1),D48) -> 2020-11-01 | X7: года | AR7: Рабочих дней | AV7: =VLOOKUP(AM8,'[4]производственный календарь '!$B$2:$D$13,3,0) -> 20 | AW7: Рабочих часов | BF7: =VLOOKUP(AM8,'[4]производственный календарь '!$B$2:D13,2,0) -> 159
R8: МАРТ | AM8: ноябрь
A9: № п/п | B9: Табельний номер | C9: Фамилия, и., о. | D9: Профессия, должность | E9: номер | F9: Отметки о явках и неявках на работу по числам месяца (часов) | AM9: отработано за месяц | AU9: Всего неявок | AV9: Дни неявок | BE9: Выходные дни
F10: 1 | G10: 2 | H10: 3 | I10: 4 | J10: 5 | K10: 6 | L10: 7 | M10: 8 | N10: 9 | O10: 10 | P10: 11 | Q10: 12 | R10: 13 | S10: 14 | T10: 15 | U10: X | V10: 16 | W10: 17 | X10: 18 | Y10: 19 | Z10: 20 | AA10: 21 | AB10: 22 | AC10: 23 | AD10: 24 | AE10: 25 | AF10: 26 | AG10: 27 | AH10: 28 | AI10: 29 | AJ10: 30 | AK10: 31 | AL10: дни явок | AM10: всего отработано | AN10: часов | AV10: Очередной отпуск | AW10: Больничные | AX10: Бесплатный отпуск (А) | AY10: Отпуск родовой | AZ10: Учеьный отпуск | BA10: Отпуск ЧАЭС | BB10: Прогул | BC10: Отпуск женский | BD10: Командировка
AN11: всего отработано | AO11: из них
AO12: Ночные | AP12: Вечерние | AQ12: Праздничные | AR12: Сверхурочные | AS12: Работы в выходной | AT12: Переработка
U13: Х
A14: 1 | B14: 2 | C14: 3 | D14: 4 | E14: 5 | U14: 6 | AL14: 7 | AN14: 9 | AU14: 10 | BE14: 11 | BH14: Столбец1
BH15: управляющий участка
D16: управляющий участка | F16: =IFERROR(INDEX('[4]ГРАФИК И.Б.НОЯБРЬ '!$AC25:$HF25,1,MATCH(F$10,'[4]ГРАФИК И.Б.НОЯБРЬ '!$AC$19:$HF$19,0)),"") -> 06:00:00 | G16: =IFERROR(INDEX('[4]ГРАФИК И.Б.НОЯБРЬ '!$AC25:$HF25,1,MATCH(G$10,'[4]ГРАФИК И.Б.НОЯБРЬ '!$AC$19:$HF$19,0)),"") -> 06:00:00 | H16: =IFERROR(INDEX('[4]ГРАФИК И.Б.НОЯБРЬ '!$AC25:$HF25,1,MATCH(H$10,'[4]ГРАФИК И.Б.НОЯБРЬ '!$AC$19:$HF$19,0)),"") -> 05:00:00 | I16: =IFERROR(INDEX('[4]ГРАФИК И.Б.НОЯБРЬ '!$AC25:$HF25,1,MATCH(I$10,'[4]ГРАФИК И.Б.НОЯБРЬ '!$AC$19:$HF$19,0)),"") -> 00:00:00 | J16: =IFERROR(INDEX('[4]ГРАФИК И.Б.НОЯБРЬ '!$AC25:$HF25,1,MATCH(J$10,'[4]ГРАФИК И.Б.НОЯБРЬ '!$AC$19:$HF$19,0)),"") -> 06:00:00 | K16: =IFERROR(INDEX('[4]ГРАФИК И.Б.НОЯБРЬ '!$AC25:$HF25,1,MATCH(K$10,'[4]ГРАФИК И.Б.НОЯБРЬ '!$AC$19:$HF$19,0)),"") -> 06:00:00 | L16: =IFERROR(INDEX('[4]ГРАФИК И.Б.НОЯБРЬ '!$AC25:$HF25,1,MATCH(L$10,'[4]ГРАФИК И.Б.НОЯБРЬ '!$AC$19:$HF$19,0)),"") -> 06:00:00 | M16: =IFERROR(INDEX('[4]ГРАФИК И.Б.НОЯБРЬ '!$AC25:$HF25,1,MATCH(M$10,'[4]ГРАФИК И.Б.НОЯБРЬ '!$AC$19:$HF$19,0)),"") -> 03:00:00 | N16: =IFERROR(INDEX('[4]ГРАФИК И.Б.НОЯБРЬ '!$AC25:$HF25,1,MATCH(N$10,'[4]ГРАФИК И.Б.НОЯБРЬ '!$AC$19:$HF$19,0)),"") -> 03:00:00 | O16: =IFERROR(INDEX('[4]ГРАФИК И.Б.НОЯБРЬ '!$AC25:$HF25,1,MATCH(O$10,'[4]ГРАФИК И.Б.НОЯБРЬ '!$AC$19:$HF$19,0)),"") -> 05:00:00 | P16: =IFERROR(INDEX('[4]ГРАФИК И.Б.НОЯБРЬ '!$AC25:$HF25,1,MATCH(P$10,'[4]ГРАФИК И.Б.НОЯБРЬ '!$AC$19:$HF$19,0)),"") -> 00:00:00 | Q16: =IFERROR(INDEX('[4]ГРАФИК И.Б.НОЯБРЬ '!$AC25:$HF25,1,MATCH(Q$10,'[4]ГРАФИК И.Б.НОЯБРЬ '!$AC$19:$HF$19,0)),"") -> 06:00:00 | R16: =IFERROR(INDEX('[4]ГРАФИК И.Б.НОЯБРЬ '!$AC25:$HF25,1,MATCH(R$10,'[4]ГРАФИК И.Б.НОЯБРЬ '!$AC$19:$HF$19,0)),"") -> 06:00:00 | S16: =IFERROR(INDEX('[4]ГРАФИК И.Б.НОЯБРЬ '!$AC25:$HF25,1,MATCH(S$10,'[4]ГРАФИК И.Б.НОЯБРЬ '!$AC$19:$HF$19,0)),"") -> 07:00:00 | T16: =IFERROR(INDEX('[4]ГРАФИК И.Б.НОЯБРЬ '!$AC25:$HF25,1,MATCH(T$10,'[4]ГРАФИК И.Б.НОЯБРЬ '!$AC$19:$HF$19,0)),"") -> 07:00:00 | U16: =IFERROR(INDEX('[4]ГРАФИК И.Б.НОЯБРЬ '!$AC25:$HF25,1,MATCH(U$10,'[4]ГРАФИК И.Б.НОЯБРЬ '!$AC$19:$HF$19,0)),"") ->  | V16: =IFERROR(INDEX('[4]ГРАФИК И.Б.НОЯБРЬ '!$AC25:$HF25,1,MATCH(V$10,'[4]ГРАФИК И.Б.НОЯБРЬ '!$AC$19:$HF$19,0)),"") -> 07:00:00 | W16: =IFERROR(INDEX('[4]ГРАФИК И.Б.НОЯБРЬ '!$AC25:$HF25,1,MATCH(W$10,'[4]ГРАФИК И.Б.НОЯБРЬ '!$AC$19:$HF$19,0)),"") -> 05:00:00 | X16: =IFERROR(INDEX('[4]ГРАФИК И.Б.НОЯБРЬ '!$AC25:$HF25,1,MATCH(X$10,'[4]ГРАФИК И.Б.НОЯБРЬ '!$AC$19:$HF$19,0)),"") -> 00:00:00 | Y16: =IFERROR(INDEX('[4]ГРАФИК И.Б.НОЯБРЬ '!$AC25:$HF25,1,MATCH(Y$10,'[4]ГРАФИК И.Б.НОЯБРЬ '!$AC$19:$HF$19,0)),"") -> 07:00:00 | Z16: =IFERROR(INDEX('[4]ГРАФИК И.Б.НОЯБРЬ '!$AC25:$HF25,1,MATCH(Z$10,'[4]ГРАФИК И.Б.НОЯБРЬ '!$AC$19:$HF$19,0)),"") -> 07:00:00 | AA16: =IFERROR(INDEX('[4]ГРАФИК И.Б.НОЯБРЬ '!$AC25:$HF25,1,MATCH(AA$10,'[4]ГРАФИК И.Б.НОЯБРЬ '!$AC$19:$HF$19,0)),"") -> 07:00:00 | AB16: =IFERROR(INDEX('[4]ГРАФИК И.Б.НОЯБРЬ '!$AC25:$HF25,1,MATCH(AB$10,'[4]ГРАФИК И.Б.НОЯБРЬ '!$AC$19:$HF$19,0)),"") -> 07:00:00 | AC16: =IFERROR(INDEX('[4]ГРАФИК И.Б.НОЯБРЬ '!$AC25:$HF25,1,MATCH(AC$10,'[4]ГРАФИК И.Б.НОЯБРЬ '!$AC$19:$HF$19,0)),"") -> 07:00:00 | AD16: =IFERROR(INDEX('[4]ГРАФИК И.Б.НОЯБРЬ '!$AC25:$HF25,1,MATCH(AD$10,'[4]ГРАФИК И.Б.НОЯБРЬ '!$AC$19:$HF$19,0)),"") -> 05:00:00 | AE16: =IFERROR(INDEX('[4]ГРАФИК И.Б.НОЯБРЬ '!$AC25:$HF25,1,MATCH(AE$10,'[4]ГРАФИК И.Б.НОЯБРЬ '!$AC$19:$HF$19,0)),"") -> 00:00:00 | AF16: =IFERROR(INDEX('[4]ГРАФИК И.Б.НОЯБРЬ '!$AC25:$HF25,1,MATCH(AF$10,'[4]ГРАФИК И.Б.НОЯБРЬ '!$AC$19:$HF$19,0)),"") -> 07:00:00 | AG16: =IFERROR(INDEX('[4]ГРАФИК И.Б.НОЯБРЬ '!$AC25:$HF25,1,MATCH(AG$10,'[4]ГРАФИК И.Б.НОЯБРЬ '!$AC$19:$HF$19,0)),"") -> 07:00:00 | AH16: =IFERROR(INDEX('[4]ГРАФИК И.Б.НОЯБРЬ '!$AC25:$HF25,1,MATCH(AH$10,'[4]ГРАФИК И.Б.НОЯБРЬ '!$AC$19:$HF$19,0)),"") -> 07:00:00 | AI16: =IFERROR(INDEX('[4]ГРАФИК И.Б.НОЯБРЬ '!$AC25:$HF25,1,MATCH(AI$10,'[4]ГРАФИК И.Б.НОЯБРЬ '!$AC$19:$HF$19,0)),"") -> 07:00:00 | AJ16: =IFERROR(INDEX('[4]ГРАФИК И.Б.НОЯБРЬ '!$AC25:$HF25,1,MATCH(AJ$10,'[4]ГРАФИК И.Б.НОЯБРЬ '!$AC$19:$HF$19,0)),"") -> 07:00:00 | AK16: =IFERROR(INDEX('[4]ГРАФИК И.Б.НОЯБРЬ '!$AC25:$HF25,1,MATCH(AK$10,'[4]ГРАФИК И.Б.НОЯБРЬ '!$AC$19:$HF$19,0)),"") ->  | AL16: =COUNTIF($F16:$AK16,">0") -> 26 | AM16: =SUM($F$16:$AK$16) -> 6.625 | AV16: =COUNTIF($F17:$AK17,"=От") -> 0 | BE16: =COUNTIF(F17:AK17,"В") -> 4 | BH16: слесарь-ремонтник
F17: =IF('[4]ГРАФИК И.Б.НОЯБРЬ '!AC22="ОТ","ОТ",IF(F16=0,"В","Я")) -> Я | G17: =IF('[4]ГРАФИК И.Б.НОЯБРЬ '!AD22="ОТ","ОТ",IF(G16=0,"В","Я")) -> Я | H17: =IF('[4]ГРАФИК И.Б.НОЯБРЬ '!AE22="ОТ","ОТ",IF(H16=0,"В","Я")) -> Я | I17: =IF('[4]ГРАФИК И.Б.НОЯБРЬ '!AF22="ОТ","ОТ",IF(I16=0,"В","Я")) -> В | J17: =IF('[4]ГРАФИК И.Б.НОЯБРЬ '!AG22="ОТ","ОТ",IF(J16=0,"В","Я")) -> Я | K17: =IF('[4]ГРАФИК И.Б.НОЯБРЬ '!AH22="ОТ","ОТ",IF(K16=0,"В","Я")) -> Я | L17: =IF('[4]ГРАФИК И.Б.НОЯБРЬ '!AI22="ОТ","ОТ",IF(L16=0,"В","Я")) -> Я | M17: =IF('[4]ГРАФИК И.Б.НОЯБРЬ '!AJ22="ОТ","ОТ",IF(M16=0,"В","Я")) -> Я | N17: =IF('[4]ГРАФИК И.Б.НОЯБРЬ '!AK22="ОТ","ОТ",IF(N16=0,"В","Я")) -> Я | O17: =IF('[4]ГРАФИК И.Б.НОЯБРЬ '!AL22="ОТ","ОТ",IF(O16=0,"В","Я")) -> Я | P17: =IF('[4]ГРАФИК И.Б.НОЯБРЬ '!AM22="ОТ","ОТ",IF(P16=0,"В","Я")) -> В | Q17: =IF('[4]ГРАФИК И.Б.НОЯБРЬ '!AN22="ОТ","ОТ",IF(Q16=0,"В","Я")) -> Я | R17: =IF('[4]ГРАФИК И.Б.НОЯБРЬ '!AO22="ОТ","ОТ",IF(R16=0,"В","Я")) -> Я | S17: =IF('[4]ГРАФИК И.Б.НОЯБРЬ '!AP22="ОТ","ОТ",IF(S16=0,"В","Я")) -> Я | T17: =IF('[4]ГРАФИК И.Б.НОЯБРЬ '!AQ22="ОТ","ОТ",IF(T16=0,"В","Я")) -> Я | V17: =IF('[4]ГРАФИК И.Б.НОЯБРЬ '!AS22="ОТ","ОТ",IF(V16=0,"В","Я")) -> Я | W17: =IF('[4]ГРАФИК И.Б.НОЯБРЬ '!AT22="ОТ","ОТ",IF(W16=0,"В","Я")) -> Я | X17: =IF('[4]ГРАФИК И.Б.НОЯБРЬ '!AU22="ОТ","ОТ",IF(X16=0,"В","Я")) -> В | Y17: =IF('[4]ГРАФИК И.Б.НОЯБРЬ '!AV22="ОТ","ОТ",IF(Y16=0,"В","Я")) -> Я | Z17: =IF('[4]ГРАФИК И.Б.НОЯБРЬ '!AW22="ОТ","ОТ",IF(Z16=0,"В","Я")) -> Я | AA17: =IF('[4]ГРАФИК И.Б.НОЯБРЬ '!AX22="ОТ","ОТ",IF(AA16=0,"В","Я")) -> Я | AB17: =IF('[4]ГРАФИК И.Б.НОЯБРЬ '!AY22="ОТ","ОТ",IF(AB16=0,"В","Я")) -> Я | AC17: =IF('[4]ГРАФИК И.Б.НОЯБРЬ '!AZ22="ОТ","ОТ",IF(AC16=0,"В","Я")) -> Я | AD17: =IF('[4]ГРАФИК И.Б.НОЯБРЬ '!BA22="ОТ","ОТ",IF(AD16=0,"В","Я")) -> Я | AE17: =IF('[4]ГРАФИК И.Б.НОЯБРЬ '!BB22="ОТ","ОТ",IF(AE16=0,"В","Я")) -> В | AF17: =IF('[4]ГРАФИК И.Б.НОЯБРЬ '!BC22="ОТ","ОТ",IF(AF16=0,"В","Я")) -> Я | AG17: =IF('[4]ГРАФИК И.Б.НОЯБРЬ '!BD22="ОТ","ОТ",IF(AG16=0,"В","Я")) -> Я | AH17: =IF('[4]ГРАФИК И.Б.НОЯБРЬ '!BE22="ОТ","ОТ",IF(AH16=0,"В","Я")) -> Я | AI17: =IF('[4]ГРАФИК И.Б.НОЯБРЬ '!BF22="ОТ","ОТ",IF(AI16=0,"В","Я")) -> Я | AJ17: =IF('[4]ГРАФИК И.Б.НОЯБРЬ '!BG22="ОТ","ОТ",IF(AJ16=0,"В","Я")) -> Я | BH17: кассир билетный
D18: слесарь-ремонтник | F18: =IFERROR(INDEX('[4]ГРАФИК И.Б.НОЯБРЬ '!$AC31:$HF31,1,MATCH(F$10,'[4]ГРАФИК И.Б.НОЯБРЬ '!$AC$19:$HF$19,0)),"") -> 00:00:00 | G18: =IFERROR(INDEX('[4]ГРАФИК И.Б.НОЯБРЬ '!$AC31:$HF31,1,MATCH(G$10,'[4]ГРАФИК И.Б.НОЯБРЬ '!$AC$19:$HF$19,0)),"") -> 00:00:00 | H18: =IFERROR(INDEX('[4]ГРАФИК И.Б.НОЯБРЬ '!$AC31:$HF31,1,MATCH(H$10,'[4]ГРАФИК И.Б.НОЯБРЬ '!$AC$19:$HF$19,0)),"") -> 09:00:00 | I18: =IFERROR(INDEX('[4]ГРАФИК И.Б.НОЯБРЬ '!$AC31:$HF31,1,MATCH(I$10,'[4]ГРАФИК И.Б.НОЯБРЬ '!$AC$19:$HF$19,0)),"") -> 00:00:00 | J18: =IFERROR(INDEX('[4]ГРАФИК И.Б.НОЯБРЬ '!$AC31:$HF31,1,MATCH(J$10,'[4]ГРАФИК И.Б.НОЯБРЬ '!$AC$19:$HF$19,0)),"") -> 09:00:00 | K18: =IFERROR(INDEX('[4]ГРАФИК И.Б.НОЯБРЬ '!$AC31:$HF31,1,MATCH(K$10,'[4]ГРАФИК И.Б.НОЯБРЬ '!$AC$19:$HF$19,0)),"") -> 09:00:00 | L18: =IFERROR(INDEX('[4]ГРАФИК И.Б.НОЯБРЬ '!$AC31:$HF31,1,MATCH(L$10,'[4]ГРАФИК И.Б.НОЯБРЬ '!$AC$19:$HF$19,0)),"") -> 09:00:00 | M18: =IFERROR(INDEX('[4]ГРАФИК И.Б.НОЯБРЬ '!$AC31:$HF31,1,MATCH(M$10,'[4]ГРАФИК И.Б.НОЯБРЬ '!$AC$19:$HF$19,0)),"") -> 00:00:00 | N18: =IFERROR(INDEX('[4]ГРАФИК И.Б.НОЯБРЬ '!$AC31:$HF31,1,MATCH(N$10,'[4]ГРАФИК И.Б.НОЯБРЬ '!$AC$19:$HF$19,0)),"") -> 00:00:00 | O18: =IFERROR(INDEX('[4]ГРАФИК И.Б.НОЯБРЬ '!$AC31:$HF31,1,MATCH(O$10,'[4]ГРАФИК И.Б.НОЯБРЬ '!$AC$19:$HF$19,0)),"") -> 09:00:00 | P18: =IFERROR(INDEX('[4]ГРАФИК И.Б.НОЯБРЬ '!$AC31:$HF31,1,MATCH(P$10,'[4]ГРАФИК И.Б.НОЯБРЬ '!$AC$19:$HF$19,0)),"") -> 09:00:00 | Q18: =IFERROR(INDEX('[4]ГРАФИК И.Б.НОЯБРЬ '!$AC31:$HF31,1,MATCH(Q$10,'[4]ГРАФИК И.Б.НОЯБРЬ '!$AC$19:$HF$19,0)),"") -> 09:00:00 | R18: =IFERROR(INDEX('[4]ГРАФИК И.Б.НОЯБРЬ '!$AC31:$HF31,1,MATCH(R$10,'[4]ГРАФИК И.Б.НОЯБРЬ '!$AC$19:$HF$19,0)),"") -> 08:00:00 | S18: =IFERROR(INDEX('[4]ГРАФИК И.Б.НОЯБРЬ '!$AC31:$HF31,1,MATCH(S$10,'[4]ГРАФИК И.Б.НОЯБРЬ '!$AC$19:$HF$19,0)),"") -> 08:00:00 | T18: =IFERROR(INDEX('[4]ГРАФИК И.Б.НОЯБРЬ '!$AC31:$HF31,1,MATCH(T$10,'[4]ГРАФИК И.Б.НОЯБРЬ '!$AC$19:$HF$19,0)),"") -> 00:00:00 | U18: =IFERROR(INDEX('[4]ГРАФИК И.Б.НОЯБРЬ '!$AC31:$HF31,1,MATCH(U$10,'[4]ГРАФИК И.Б.НОЯБРЬ '!$AC$19:$HF$19,0)),"") ->  | V18: =IFERROR(INDEX('[4]ГРАФИК И.Б.НОЯБРЬ '!$AC31:$HF31,1,MATCH(V$10,'[4]ГРАФИК И.Б.НОЯБРЬ '!$AC$19:$HF$19,0)),"") -> 00:00:00 | W18: =IFERROR(INDEX('[4]ГРАФИК И.Б.НОЯБРЬ '!$AC31:$HF31,1,MATCH(W$10,'[4]ГРАФИК И.Б.НОЯБРЬ '!$AC$19:$HF$19,0)),"") -> 08:00:00 | X18: =IFERROR(INDEX('[4]ГРАФИК И.Б.НОЯБРЬ '!$AC31:$HF31,1,MATCH(X$10,'[4]ГРАФИК И.Б.НОЯБРЬ '!$AC$19:$HF$19,0)),"") -> 08:00:00 | Y18: =IFERROR(INDEX('[4]ГРАФИК И.Б.НОЯБРЬ '!$AC31:$HF31,1,MATCH(Y$10,'[4]ГРАФИК И.Б.НОЯБРЬ '!$AC$19:$HF$19,0)),"") -> 08:00:00 | Z18: =IFERROR(INDEX('[4]ГРАФИК И.Б.НОЯБРЬ '!$AC31:$HF31,1,MATCH(Z$10,'[4]ГРАФИК И.Б.НОЯБРЬ '!$AC$19:$HF$19,0)),"") -> 08:00:00 | AA18: =IFERROR(INDEX('[4]ГРАФИК И.Б.НОЯБРЬ '!$AC31:$HF31,1,MATCH(AA$10,'[4]ГРАФИК И.Б.НОЯБРЬ '!$AC$19:$HF$19,0)),"") -> 08:00:00 | AB18: =IFERROR(INDEX('[4]ГРАФИК И.Б.НОЯБРЬ '!$AC31:$HF31,1,MATCH(AB$10,'[4]ГРАФИК И.Б.НОЯБРЬ '!$AC$19:$HF$19,0)),"") -> 00:00:00 | AC18: =IFERROR(INDEX('[4]ГРАФИК И.Б.НОЯБРЬ '!$AC31:$HF31,1,MATCH(AC$10,'[4]ГРАФИК И.Б.НОЯБРЬ '!$AC$19:$HF$19,0)),"") -> 00:00:00 | AD18: =IFERROR(INDEX('[4]ГРАФИК И.Б.НОЯБРЬ '!$AC31:$HF31,1,MATCH(AD$10,'[4]ГРАФИК И.Б.НОЯБРЬ '!$AC$19:$HF$19,0)),"") -> 08:00:00 | AE18: =IFERROR(INDEX('[4]ГРАФИК И.Б.НОЯБРЬ '!$AC31:$HF31,1,MATCH(AE$10,'[4]ГРАФИК И.Б.НОЯБРЬ '!$AC$19:$HF$19,0)),"") -> 08:00:00 | AF18: =IFERROR(INDEX('[4]ГРАФИК И.Б.НОЯБРЬ '!$AC31:$HF31,1,MATCH(AF$10,'[4]ГРАФИК И.Б.НОЯБРЬ '!$AC$19:$HF$19,0)),"") -> 08:00:00 | AG18: =IFERROR(INDEX('[4]ГРАФИК И.Б.НОЯБРЬ '!$AC31:$HF31,1,MATCH(AG$10,'[4]ГРАФИК И.Б.НОЯБРЬ '!$AC$19:$HF$19,0)),"") -> 08:00:00 | AH18: =IFERROR(INDEX('[4]ГРАФИК И.Б.НОЯБРЬ '!$AC31:$HF31,1,MATCH(AH$10,'[4]ГРАФИК И.Б.НОЯБРЬ '!$AC$19:$HF$19,0)),"") -> 08:00:00 | AI18: =IFERROR(INDEX('[4]ГРАФИК И.Б.НОЯБРЬ '!$AC31:$HF31,1,MATCH(AI$10,'[4]ГРАФИК И.Б.НОЯБРЬ '!$AC$19:$HF$19,0)),"") -> 00:00:00 | AJ18: =IFERROR(INDEX('[4]ГРАФИК И.Б.НОЯБРЬ '!$AC31:$HF31,1,MATCH(AJ$10,'[4]ГРАФИК И.Б.НОЯБРЬ '!$AC$19:$HF$19,0)),"") -> 00:00:00 | AK18: =IFERROR(INDEX('[4]ГРАФИК И.Б.НОЯБРЬ '!$AC31:$HF31,1,MATCH(AK$10,'[4]ГРАФИК И.Б.НОЯБРЬ '!$AC$19:$HF$19,0)),"") ->  | AL18: =COUNTIF($F18:$AK18,">0") -> 19 | AM18: =SUM($F$18:$AK$18) -> 6.625 | BE18: =COUNTIF(F19:AK19,"В") -> 11 | BH18: контролёр-посадчик аттракциона
F19: =IF('[4]ГРАФИК И.Б.НОЯБРЬ '!AC28="ОТ","ОТ",IF(F18=0,"В","Я")) -> В | G19: =IF('[4]ГРАФИК И.Б.НОЯБРЬ '!AD28="ОТ","ОТ",IF(G18=0,"В","Я")) -> В | H19: =IF('[4]ГРАФИК И.Б.НОЯБРЬ '!AE28="ОТ","ОТ",IF(H18=0,"В","Я")) -> Я | I19: =IF('[4]ГРАФИК И.Б.НОЯБРЬ '!AF28="ОТ","ОТ",IF(I18=0,"В","Я")) -> В | J19: =IF('[4]ГРАФИК И.Б.НОЯБРЬ '!AG28="ОТ","ОТ",IF(J18=0,"В","Я")) -> Я | K19: =IF('[4]ГРАФИК И.Б.НОЯБРЬ '!AH28="ОТ","ОТ",IF(K18=0,"В","Я")) -> Я | L19: =IF('[4]ГРАФИК И.Б.НОЯБРЬ '!AI28="ОТ","ОТ",IF(L18=0,"В","Я")) -> Я | M19: =IF('[4]ГРАФИК И.Б.НОЯБРЬ '!AJ28="ОТ","ОТ",IF(M18=0,"В","Я")) -> В | N19: =IF('[4]ГРАФИК И.Б.НОЯБРЬ '!AK28="ОТ","ОТ",IF(N18=0,"В","Я")) -> В | O19: =IF('[4]ГРАФИК И.Б.НОЯБРЬ '!AL28="ОТ","ОТ",IF(O18=0,"В","Я")) -> Я | P19: =IF('[4]ГРАФИК И.Б.НОЯБРЬ '!AM28="ОТ","ОТ",IF(P18=0,"В","Я")) -> Я | Q19: =IF('[4]ГРАФИК И.Б.НОЯБРЬ '!AN28="ОТ","ОТ",IF(Q18=0,"В","Я")) -> Я | R19: =IF('[4]ГРАФИК И.Б.НОЯБРЬ '!AO28="ОТ","ОТ",IF(R18=0,"В","Я")) -> Я | S19: =IF('[4]ГРАФИК И.Б.НОЯБРЬ '!AP28="ОТ","ОТ",IF(S18=0,"В","Я")) -> Я | T19: =IF('[4]ГРАФИК И.Б.НОЯБРЬ '!AQ28="ОТ","ОТ",IF(T18=0,"В","Я")) -> В | V19: =IF('[4]ГРАФИК И.Б.НОЯБРЬ '!AS28="ОТ","ОТ",IF(V18=0,"В","Я")) -> В | W19: =IF('[4]ГРАФИК И.Б.НОЯБРЬ '!AT28="ОТ","ОТ",IF(W18=0,"В","Я")) -> Я | X19: =IF('[4]ГРАФИК И.Б.НОЯБРЬ '!AU28="ОТ","ОТ",IF(X18=0,"В","Я")) -> Я | Y19: =IF('[4]ГРАФИК И.Б.НОЯБРЬ '!AV28="ОТ","ОТ",IF(Y18=0,"В","Я")) -> Я | Z19: =IF('[4]ГРАФИК И.Б.НОЯБРЬ '!AW28="ОТ","ОТ",IF(Z18=0,"В","Я")) -> Я | AA19: =IF('[4]ГРАФИК И.Б.НОЯБРЬ '!AX28="ОТ","ОТ",IF(AA18=0,"В","Я")) -> Я | AB19: =IF('[4]ГРАФИК И.Б.НОЯБРЬ '!AY28="ОТ","ОТ",IF(AB18=0,"В","Я")) -> В | AC19: =IF('[4]ГРАФИК И.Б.НОЯБРЬ '!AZ28="ОТ","ОТ",IF(AC18=0,"В","Я")) -> В | AD19: =IF('[4]ГРАФИК И.Б.НОЯБРЬ '!BA28="ОТ","ОТ",IF(AD18=0,"В","Я")) -> Я | AE19: =IF('[4]ГРАФИК И.Б.НОЯБРЬ '!BB28="ОТ","ОТ",IF(AE18=0,"В","Я")) -> Я | AF19: =IF('[4]ГРАФИК И.Б.НОЯБРЬ '!BC28="ОТ","ОТ",IF(AF18=0,"В","Я")) -> Я | AG19: =IF('[4]ГРАФИК И.Б.НОЯБРЬ '!BD28="ОТ","ОТ",IF(AG18=0,"В","Я")) -> Я | AH19: =IF('[4]ГРАФИК И.Б.НОЯБРЬ '!BE28="ОТ","ОТ",IF(AH18=0,"В","Я")) -> Я | AI19: =IF('[4]ГРАФИК И.Б.НОЯБРЬ '!BF28="ОТ","ОТ",IF(AI18=0,"В","Я")) -> В | AJ19: =IF('[4]ГРАФИК И.Б.НОЯБРЬ '!BG28="ОТ","ОТ",IF(AJ18=0,"В","Я")) -> В | BH19: сторож
D20: кассир билетный | F20: =INDEX('[4]ГРАФИК И.Б.НОЯБРЬ '!$AC37:$HF37,1,MATCH(F$10,'[4]ГРАФИК И.Б.НОЯБРЬ '!$AC$19:$HF$19,0)) -> 00:00:00 | G20: =INDEX('[4]ГРАФИК И.Б.НОЯБРЬ '!$AC37:$HF37,1,MATCH(G$10,'[4]ГРАФИК И.Б.НОЯБРЬ '!$AC$19:$HF$19,0)) -> 11:00:00 | H20: =INDEX('[4]ГРАФИК И.Б.НОЯБРЬ '!$AC37:$HF37,1,MATCH(H$10,'[4]ГРАФИК И.Б.НОЯБРЬ '!$AC$19:$HF$19,0)) -> 00:00:00 | I20: =INDEX('[4]ГРАФИК И.Б.НОЯБРЬ '!$AC37:$HF37,1,MATCH(I$10,'[4]ГРАФИК И.Б.НОЯБРЬ '!$AC$19:$HF$19,0)) -> 11:00:00 | J20: =INDEX('[4]ГРАФИК И.Б.НОЯБРЬ '!$AC37:$HF37,1,MATCH(J$10,'[4]ГРАФИК И.Б.НОЯБРЬ '!$AC$19:$HF$19,0)) -> 00:00:00 | K20: =INDEX('[4]ГРАФИК И.Б.НОЯБРЬ '!$AC37:$HF37,1,MATCH(K$10,'[4]ГРАФИК И.Б.НОЯБРЬ '!$AC$19:$HF$19,0)) -> 11:00:00 | L20: =INDEX('[4]ГРАФИК И.Б.НОЯБРЬ '!$AC37:$HF37,1,MATCH(L$10,'[4]ГРАФИК И.Б.НОЯБРЬ '!$AC$19:$HF$19,0)) -> 00:00:00 | M20: =INDEX('[4]ГРАФИК И.Б.НОЯБРЬ '!$AC37:$HF37,1,MATCH(M$10,'[4]ГРАФИК И.Б.НОЯБРЬ '!$AC$19:$HF$19,0)) -> 11:00:00 | N20: =INDEX('[4]ГРАФИК И.Б.НОЯБРЬ '!$AC37:$HF37,1,MATCH(N$10,'[4]ГРАФИК И.Б.НОЯБРЬ '!$AC$19:$HF$19,0)) -> 00:00:00 | O20: =INDEX('[4]ГРАФИК И.Б.НОЯБРЬ '!$AC37:$HF37,1,MATCH(O$10,'[4]ГРАФИК И.Б.НОЯБРЬ '!$AC$19:$HF$19,0)) -> 11:00:00 | P20: =INDEX('[4]ГРАФИК И.Б.НОЯБРЬ '!$AC37:$HF37,1,MATCH(P$10,'[4]ГРАФИК И.Б.НОЯБРЬ '!$AC$19:$HF$19,0)) -> 00:00:00 | Q20: =INDEX('[4]ГРАФИК И.Б.НОЯБРЬ '!$AC37:$HF37,1,MATCH(Q$10,'[4]ГРАФИК И.Б.НОЯБРЬ '!$AC$19:$HF$19,0)) -> 11:00:00 | R20: =INDEX('[4]ГРАФИК И.Б.НОЯБРЬ '!$AC37:$HF37,1,MATCH(R$10,'[4]ГРАФИК И.Б.НОЯБРЬ '!$AC$19:$HF$19,0)) -> 00:00:00 | S20: =INDEX('[4]ГРАФИК И.Б.НОЯБРЬ '!$AC37:$HF37,1,MATCH(S$10,'[4]ГРАФИК И.Б.НОЯБРЬ '!$AC$19:$HF$19,0)) -> 11:00:00 | T20: =INDEX('[4]ГРАФИК И.Б.НОЯБРЬ '!$AC37:$HF37,1,MATCH(T$10,'[4]ГРАФИК И.Б.НОЯБРЬ '!$AC$19:$HF$19,0)) -> 00:00:00 | V20: =INDEX('[4]ГРАФИК И.Б.НОЯБРЬ '!$AC37:$HF37,1,MATCH(V$10,'[4]ГРАФИК И.Б.НОЯБРЬ '!$AC$19:$HF$19,0)) -> 11:00:00 | W20: =INDEX('[4]ГРАФИК И.Б.НОЯБРЬ '!$AC37:$HF37,1,MATCH(W$10,'[4]ГРАФИК И.Б.НОЯБРЬ '!$AC$19:$HF$19,0)) -> 00:00:00 | X20: =INDEX('[4]ГРАФИК И.Б.НОЯБРЬ '!$AC37:$HF37,1,MATCH(X$10,'[4]ГРАФИК И.Б.НОЯБРЬ '!$AC$19:$HF$19,0)) -> 11:00:00 | Y20: =INDEX('[4]ГРАФИК И.Б.НОЯБРЬ '!$AC37:$HF37,1,MATCH(Y$10,'[4]ГРАФИК И.Б.НОЯБРЬ '!$AC$19:$HF$19,0)) -> 00:00:00 | Z20: =INDEX('[4]ГРАФИК И.Б.НОЯБРЬ '!$AC37:$HF37,1,MATCH(Z$10,'[4]ГРАФИК И.Б.НОЯБРЬ '!$AC$19:$HF$19,0)) -> 10:00:00 | AA20: =INDEX('[4]ГРАФИК И.Б.НОЯБРЬ '!$AC37:$HF37,1,MATCH(AA$10,'[4]ГРАФИК И.Б.НОЯБРЬ '!$AC$19:$HF$19,0)) -> 00:00:00 | AB20: =INDEX('[4]ГРАФИК И.Б.НОЯБРЬ '!$AC37:$HF37,1,MATCH(AB$10,'[4]ГРАФИК И.Б.НОЯБРЬ '!$AC$19:$HF$19,0)) -> 10:00:00 | AC20: =INDEX('[4]ГРАФИК И.Б.НОЯБРЬ '!$AC37:$HF37,1,MATCH(AC$10,'[4]ГРАФИК И.Б.НОЯБРЬ '!$AC$19:$HF$19,0)) -> 00:00:00 | AD20: =INDEX('[4]ГРАФИК И.Б.НОЯБРЬ '!$AC37:$HF37,1,MATCH(AD$10,'[4]ГРАФИК И.Б.НОЯБРЬ '!$AC$19:$HF$19,0)) -> 10:00:00 | AE20: =INDEX('[4]ГРАФИК И.Б.НОЯБРЬ '!$AC37:$HF37,1,MATCH(AE$10,'[4]ГРАФИК И.Б.НОЯБРЬ '!$AC$19:$HF$19,0)) -> 00:00:00 | AF20: =INDEX('[4]ГРАФИК И.Б.НОЯБРЬ '!$AC37:$HF37,1,MATCH(AF$10,'[4]ГРАФИК И.Б.НОЯБРЬ '!$AC$19:$HF$19,0)) -> 10:00:00 | AG20: =INDEX('[4]ГРАФИК И.Б.НОЯБРЬ '!$AC37:$HF37,1,MATCH(AG$10,'[4]ГРАФИК И.Б.НОЯБРЬ '!$AC$19:$HF$19,0)) -> 00:00:00 | AH20: =INDEX('[4]ГРАФИК И.Б.НОЯБРЬ '!$AC37:$HF37,1,MATCH(AH$10,'[4]ГРАФИК И.Б.НОЯБРЬ '!$AC$19:$HF$19,0)) -> 10:00:00 | AI20: =INDEX('[4]ГРАФИК И.Б.НОЯБРЬ '!$AC37:$HF37,1,MATCH(AI$10,'[4]ГРАФИК И.Б.НОЯБРЬ '!$AC$19:$HF$19,0)) -> 00:00:00 | AJ20: =INDEX('[4]ГРАФИК И.Б.НОЯБРЬ '!$AC37:$HF37,1,MATCH(AJ$10,'[4]ГРАФИК И.Б.НОЯБРЬ '!$AC$19:$HF$19,0)) -> 10:00:00 | AL20: =COUNTIF($F20:$AK20,">0") -> 15 | AM20: =SUM($F$20:$AK$20) -> 6.625 | BE20: =COUNTIF(F21:AK21,"В") -> 15 | BH20: дворник
F21: =IF('[4]ГРАФИК И.Б.НОЯБРЬ '!AC34="ОТ","ОТ",IF(F20=0,"В","Я")) -> В | G21: =IF('[4]ГРАФИК И.Б.НОЯБРЬ '!AD34="ОТ","ОТ",IF(G20=0,"В","Я")) -> Я | H21: =IF('[4]ГРАФИК И.Б.НОЯБРЬ '!AE34="ОТ","ОТ",IF(H20=0,"В","Я")) -> В | I21: =IF('[4]ГРАФИК И.Б.НОЯБРЬ '!AF34="ОТ","ОТ",IF(I20=0,"В","Я")) -> Я | J21: =IF('[4]ГРАФИК И.Б.НОЯБРЬ '!AG34="ОТ","ОТ",IF(J20=0,"В","Я")) -> В | K21: =IF('[4]ГРАФИК И.Б.НОЯБРЬ '!AH34="ОТ","ОТ",IF(K20=0,"В","Я")) -> Я | L21: =IF('[4]ГРАФИК И.Б.НОЯБРЬ '!AI34="ОТ","ОТ",IF(L20=0,"В","Я")) -> В | M21: =IF('[4]ГРАФИК И.Б.НОЯБРЬ '!AJ34="ОТ","ОТ",IF(M20=0,"В","Я")) -> Я | N21: =IF('[4]ГРАФИК И.Б.НОЯБРЬ '!AK34="ОТ","ОТ",IF(N20=0,"В","Я")) -> В | O21: =IF('[4]ГРАФИК И.Б.НОЯБРЬ '!AL34="ОТ","ОТ",IF(O20=0,"В","Я")) -> Я | P21: =IF('[4]ГРАФИК И.Б.НОЯБРЬ '!AM34="ОТ","ОТ",IF(P20=0,"В","Я")) -> В | Q21: =IF('[4]ГРАФИК И.Б.НОЯБРЬ '!AN34="ОТ","ОТ",IF(Q20=0,"В","Я")) -> Я | R21: =IF('[4]ГРАФИК И.Б.НОЯБРЬ '!AO34="ОТ","ОТ",IF(R20=0,"В","Я")) -> В | S21: =IF('[4]ГРАФИК И.Б.НОЯБРЬ '!AP34="ОТ","ОТ",IF(S20=0,"В","Я")) -> Я | T21: =IF('[4]ГРАФИК И.Б.НОЯБРЬ '!AQ34="ОТ","ОТ",IF(T20=0,"В","Я")) -> В | V21: =IF('[4]ГРАФИК И.Б.НОЯБРЬ '!AS34="ОТ","ОТ",IF(V20=0,"В","Я")) -> Я | W21: =IF('[4]ГРАФИК И.Б.НОЯБРЬ '!AT34="ОТ","ОТ",IF(W20=0,"В","Я")) -> В | X21: =IF('[4]ГРАФИК И.Б.НОЯБРЬ '!AU34="ОТ","ОТ",IF(X20=0,"В","Я")) -> Я | Y21: =IF('[4]ГРАФИК И.Б.НОЯБРЬ '!AV34="ОТ","ОТ",IF(Y20=0,"В","Я")) -> В | Z21: =IF('[4]ГРАФИК И.Б.НОЯБРЬ '!AW34="ОТ","ОТ",IF(Z20=0,"В","Я")) -> Я | AA21: =IF('[4]ГРАФИК И.Б.НОЯБРЬ '!AX34="ОТ","ОТ",IF(AA20=0,"В","Я")) -> В | AB21: =IF('[4]ГРАФИК И.Б.НОЯБРЬ '!AY34="ОТ","ОТ",IF(AB20=0,"В","Я")) -> Я | AC21: =IF('[4]ГРАФИК И.Б.НОЯБРЬ '!AZ34="ОТ","ОТ",IF(AC20=0,"В","Я")) -> В | AD21: =IF('[4]ГРАФИК И.Б.НОЯБРЬ '!BA34="ОТ","ОТ",IF(AD20=0,"В","Я")) -> Я | AE21: =IF('[4]ГРАФИК И.Б.НОЯБРЬ '!BB34="ОТ","ОТ",IF(AE20=0,"В","Я")) -> В | AF21: =IF('[4]ГРАФИК И.Б.НОЯБРЬ '!BC34="ОТ","ОТ",IF(AF20=0,"В","Я")) -> Я | AG21: =IF('[4]ГРАФИК И.Б.НОЯБРЬ '!BD34="ОТ","ОТ",IF(AG20=0,"В","Я")) -> В | AH21: =IF('[4]ГРАФИК И.Б.НОЯБРЬ '!BE34="ОТ","ОТ",IF(AH20=0,"В","Я")) -> Я | AI21: =IF('[4]ГРАФИК И.Б.НОЯБРЬ '!BF34="ОТ","ОТ",IF(AI20=0,"В","Я")) -> В | AJ21: =IF('[4]ГРАФИК И.Б.НОЯБРЬ '!BG34="ОТ","ОТ",IF(AJ20=0,"В","Я")) -> Я
D22: кассир билетный | F22: =IFERROR(INDEX('[4]ГРАФИК И.Б.НОЯБРЬ '!$AC43:$HF43,1,MATCH(F$10,'[4]ГРАФИК И.Б.НОЯБРЬ '!$AC$19:$HF$19,0)),"") -> 11:00:00 | G22: =IFERROR(INDEX('[4]ГРАФИК И.Б.НОЯБРЬ '!$AC43:$HF43,1,MATCH(G$10,'[4]ГРАФИК И.Б.НОЯБРЬ '!$AC$19:$HF$19,0)),"") -> 00:00:00 | H22: =IFERROR(INDEX('[4]ГРАФИК И.Б.НОЯБРЬ '!$AC43:$HF43,1,MATCH(H$10,'[4]ГРАФИК И.Б.НОЯБРЬ '!$AC$19:$HF$19,0)),"") -> 11:00:00 | I22: =IFERROR(INDEX('[4]ГРАФИК И.Б.НОЯБРЬ '!$AC43:$HF43,1,MATCH(I$10,'[4]ГРАФИК И.Б.НОЯБРЬ '!$AC$19:$HF$19,0)),"") -> 00:00:00 | J22: =IFERROR(INDEX('[4]ГРАФИК И.Б.НОЯБРЬ '!$AC43:$HF43,1,MATCH(J$10,'[4]ГРАФИК И.Б.НОЯБРЬ '!$AC$19:$HF$19,0)),"") -> 11:00:00 | K22: =IFERROR(INDEX('[4]ГРАФИК И.Б.НОЯБРЬ '!$AC43:$HF43,1,MATCH(K$10,'[4]ГРАФИК И.Б.НОЯБРЬ '!$AC$19:$HF$19,0)),"") -> 00:00:00 | L22: =IFERROR(INDEX('[4]ГРАФИК И.Б.НОЯБРЬ '!$AC43:$HF43,1,MATCH(L$10,'[4]ГРАФИК И.Б.НОЯБРЬ '!$AC$19:$HF$19,0)),"") -> 11:00:00 | M22: =IFERROR(INDEX('[4]ГРАФИК И.Б.НОЯБРЬ '!$AC43:$HF43,1,MATCH(M$10,'[4]ГРАФИК И.Б.НОЯБРЬ '!$AC$19:$HF$19,0)),"") -> 00:00:00 | N22: =IFERROR(INDEX('[4]ГРАФИК И.Б.НОЯБРЬ '!$AC43:$HF43,1,MATCH(N$10,'[4]ГРАФИК И.Б.НОЯБРЬ '!$AC$19:$HF$19,0)),"") -> 11:00:00 | O22: =IFERROR(INDEX('[4]ГРАФИК И.Б.НОЯБРЬ '!$AC43:$HF43,1,MATCH(O$10,'[4]ГРАФИК И.Б.НОЯБРЬ '!$AC$19:$HF$19,0)),"") -> 00:00:00 | P22: =IFERROR(INDEX('[4]ГРАФИК И.Б.НОЯБРЬ '!$AC43:$HF43,1,MATCH(P$10,'[4]ГРАФИК И.Б.НОЯБРЬ '!$AC$19:$HF$19,0)),"") -> 11:00:00 | Q22: =IFERROR(INDEX('[4]ГРАФИК И.Б.НОЯБРЬ '!$AC43:$HF43,1,MATCH(Q$10,'[4]ГРАФИК И.Б.НОЯБРЬ '!$AC$19:$HF$19,0)),"") -> 00:00:00 | R22: =IFERROR(INDEX('[4]ГРАФИК И.Б.НОЯБРЬ '!$AC43:$HF43,1,MATCH(R$10,'[4]ГРАФИК И.Б.НОЯБРЬ '!$AC$19:$HF$19,0)),"") -> 11:00:00 | S22: =IFERROR(INDEX('[4]ГРАФИК И.Б.НОЯБРЬ '!$AC43:$HF43,1,MATCH(S$10,'[4]ГРАФИК И.Б.НОЯБРЬ '!$AC$19:$HF$19,0)),"") -> 00:00:00 | T22: =IFERROR(INDEX('[4]ГРАФИК И.Б.НОЯБРЬ '!$AC43:$HF43,1,MATCH(T$10,'[4]ГРАФИК И.Б.НОЯБРЬ '!$AC$19:$HF$19,0)),"") -> 11:00:00 | U22: =IFERROR(INDEX('[4]ГРАФИК И.Б.НОЯБРЬ '!$AC43:$HF43,1,MATCH(U$10,'[4]ГРАФИК И.Б.НОЯБРЬ '!$AC$19:$HF$19,0)),"") ->  | V22: =IFERROR(INDEX('[4]ГРАФИК И.Б.НОЯБРЬ '!$AC43:$HF43,1,MATCH(V$10,'[4]ГРАФИК И.Б.НОЯБРЬ '!$AC$19:$HF$19,0)),"") -> 00:00:00 | W22: =IFERROR(INDEX('[4]ГРАФИК И.Б.НОЯБРЬ '!$AC43:$HF43,1,MATCH(W$10,'[4]ГРАФИК И.Б.НОЯБРЬ '!$AC$19:$HF$19,0)),"") -> 11:00:00 | X22: =IFERROR(INDEX('[4]ГРАФИК И.Б.НОЯБРЬ '!$AC43:$HF43,1,MATCH(X$10,'[4]ГРАФИК И.Б.НОЯБРЬ '!$AC$19:$HF$19,0)),"") -> 00:00:00 | Y22: =IFERROR(INDEX('[4]ГРАФИК И.Б.НОЯБРЬ '!$AC43:$HF43,1,MATCH(Y$10,'[4]ГРАФИК И.Б.НОЯБРЬ '!$AC$19:$HF$19,0)),"") -> 10:00:00 | Z22: =IFERROR(INDEX('[4]ГРАФИК И.Б.НОЯБРЬ '!$AC43:$HF43,1,MATCH(Z$10,'[4]ГРАФИК И.Б.НОЯБРЬ '!$AC$19:$HF$19,0)),"") -> 00:00:00 | AA22: =IFERROR(INDEX('[4]ГРАФИК И.Б.НОЯБРЬ '!$AC43:$HF43,1,MATCH(AA$10,'[4]ГРАФИК И.Б.НОЯБРЬ '!$AC$19:$HF$19,0)),"") -> 10:00:00 | AB22: =IFERROR(INDEX('[4]ГРАФИК И.Б.НОЯБРЬ '!$AC43:$HF43,1,MATCH(AB$10,'[4]ГРАФИК И.Б.НОЯБРЬ '!$AC$19:$HF$19,0)),"") -> 00:00:00 | AC22: =IFERROR(INDEX('[4]ГРАФИК И.Б.НОЯБРЬ '!$AC43:$HF43,1,MATCH(AC$10,'[4]ГРАФИК И.Б.НОЯБРЬ '!$AC$19:$HF$19,0)),"") -> 10:00:00 | AD22: =IFERROR(INDEX('[4]ГРАФИК И.Б.НОЯБРЬ '!$AC43:$HF43,1,MATCH(AD$10,'[4]ГРАФИК И.Б.НОЯБРЬ '!$AC$19:$HF$19,0)),"") -> 00:00:00 | AE22: =IFERROR(INDEX('[4]ГРАФИК И.Б.НОЯБРЬ '!$AC43:$HF43,1,MATCH(AE$10,'[4]ГРАФИК И.Б.НОЯБРЬ '!$AC$19:$HF$19,0)),"") -> 10:00:00 | AF22: =IFERROR(INDEX('[4]ГРАФИК И.Б.НОЯБРЬ '!$AC43:$HF43,1,MATCH(AF$10,'[4]ГРАФИК И.Б.НОЯБРЬ '!$AC$19:$HF$19,0)),"") -> 00:00:00 | AG22: =IFERROR(INDEX('[4]ГРАФИК И.Б.НОЯБРЬ '!$AC43:$HF43,1,MATCH(AG$10,'[4]ГРАФИК И.Б.НОЯБРЬ '!$AC$19:$HF$19,0)),"") -> 10:00:00 | AH22: =IFERROR(INDEX('[4]ГРАФИК И.Б.НОЯБРЬ '!$AC43:$HF43,1,MATCH(AH$10,'[4]ГРАФИК И.Б.НОЯБРЬ '!$AC$19:$HF$19,0)),"") -> 00:00:00 | AI22: =IFERROR(INDEX('[4]ГРАФИК И.Б.НОЯБРЬ '!$AC43:$HF43,1,MATCH(AI$10,'[4]ГРАФИК И.Б.НОЯБРЬ '!$AC$19:$HF$19,0)),"") -> 10:00:00 | AJ22: =IFERROR(INDEX('[4]ГРАФИК И.Б.НОЯБРЬ '!$AC43:$HF43,1,MATCH(AJ$10,'[4]ГРАФИК И.Б.НОЯБРЬ '!$AC$19:$HF$19,0)),"") -> 00:00:00 | AK22: =IFERROR(INDEX('[4]ГРАФИК И.Б.НОЯБРЬ '!$AC43:$HF43,1,MATCH(AK$10,'[4]ГРАФИК И.Б.НОЯБРЬ '!$AC$19:$HF$19,0)),"") ->  | AL22: =COUNTIF($F22:$AK22,">0") -> 15 | AM22: =SUM($F$22:$AK$22) -> 6.625 | BE22: =COUNTIF(F23:AK23,"В") -> 15
F23: =IF('[4]ГРАФИК И.Б.НОЯБРЬ '!AC40="ОТ","ОТ",IF(F22=0,"В","Я")) -> Я | G23: =IF('[4]ГРАФИК И.Б.НОЯБРЬ '!AD40="ОТ","ОТ",IF(G22=0,"В","Я")) -> В | H23: =IF('[4]ГРАФИК И.Б.НОЯБРЬ '!AE40="ОТ","ОТ",IF(H22=0,"В","Я")) -> Я | I23: =IF('[4]ГРАФИК И.Б.НОЯБРЬ '!AF40="ОТ","ОТ",IF(I22=0,"В","Я")) -> В | J23: =IF('[4]ГРАФИК И.Б.НОЯБРЬ '!AG40="ОТ","ОТ",IF(J22=0,"В","Я")) -> Я | K23: =IF('[4]ГРАФИК И.Б.НОЯБРЬ '!AH40="ОТ","ОТ",IF(K22=0,"В","Я")) -> В | L23: =IF('[4]ГРАФИК И.Б.НОЯБРЬ '!AI40="ОТ","ОТ",IF(L22=0,"В","Я")) -> Я | M23: =IF('[4]ГРАФИК И.Б.НОЯБРЬ '!AJ40="ОТ","ОТ",IF(M22=0,"В","Я")) -> В | N23: =IF('[4]ГРАФИК И.Б.НОЯБРЬ '!AK40="ОТ","ОТ",IF(N22=0,"В","Я")) -> Я | O23: =IF('[4]ГРАФИК И.Б.НОЯБРЬ '!AL40="ОТ","ОТ",IF(O22=0,"В","Я")) -> В | P23: =IF('[4]ГРАФИК И.Б.НОЯБРЬ '!AM40="ОТ","ОТ",IF(P22=0,"В","Я")) -> Я | Q23: =IF('[4]ГРАФИК И.Б.НОЯБРЬ '!AN40="ОТ","ОТ",IF(Q22=0,"В","Я")) -> В | R23: =IF('[4]ГРАФИК И.Б.НОЯБРЬ '!AO40="ОТ","ОТ",IF(R22=0,"В","Я")) -> Я | S23: =IF('[4]ГРАФИК И.Б.НОЯБРЬ '!AP40="ОТ","ОТ",IF(S22=0,"В","Я")) -> В | T23: =IF('[4]ГРАФИК И.Б.НОЯБРЬ '!AQ40="ОТ","ОТ",IF(T22=0,"В","Я")) -> Я | V23: =IF('[4]ГРАФИК И.Б.НОЯБРЬ '!AS40="ОТ","ОТ",IF(V22=0,"В","Я")) -> В | W23: =IF('[4]ГРАФИК И.Б.НОЯБРЬ '!AT40="ОТ","ОТ",IF(W22=0,"В","Я")) -> Я | X23: =IF('[4]ГРАФИК И.Б.НОЯБРЬ '!AU40="ОТ","ОТ",IF(X22=0,"В","Я")) -> В | Y23: =IF('[4]ГРАФИК И.Б.НОЯБРЬ '!AV40="ОТ","ОТ",IF(Y22=0,"В","Я")) -> Я | Z23: =IF('[4]ГРАФИК И.Б.НОЯБРЬ '!AW40="ОТ","ОТ",IF(Z22=0,"В","Я")) -> В | AA23: =IF('[4]ГРАФИК И.Б.НОЯБРЬ '!AX40="ОТ","ОТ",IF(AA22=0,"В","Я")) -> Я | AB23: =IF('[4]ГРАФИК И.Б.НОЯБРЬ '!AY40="ОТ","ОТ",IF(AB22=0,"В","Я")) -> В | AC23: =IF('[4]ГРАФИК И.Б.НОЯБРЬ '!AZ40="ОТ","ОТ",IF(AC22=0,"В","Я")) -> Я | AD23: =IF('[4]ГРАФИК И.Б.НОЯБРЬ '!BA40="ОТ","ОТ",IF(AD22=0,"В","Я")) -> В | AE23: =IF('[4]ГРАФИК И.Б.НОЯБРЬ '!BB40="ОТ","ОТ",IF(AE22=0,"В","Я")) -> Я | AF23: =IF('[4]ГРАФИК И.Б.НОЯБРЬ '!BC40="ОТ","ОТ",IF(AF22=0,"В","Я")) -> В | AG23: =IF('[4]ГРАФИК И.Б.НОЯБРЬ '!BD40="ОТ","ОТ",IF(AG22=0,"В","Я")) -> Я | AH23: =IF('[4]ГРАФИК И.Б.НОЯБРЬ '!BE40="ОТ","ОТ",IF(AH22=0,"В","Я")) -> В | AI23: =IF('[4]ГРАФИК И.Б.НОЯБРЬ '!BF40="ОТ","ОТ",IF(AI22=0,"В","Я")) -> Я | AJ23: =IF('[4]ГРАФИК И.Б.НОЯБРЬ '!BG40="ОТ","ОТ",IF(AJ22=0,"В","Я")) -> В
D24: дворник | F24: =IFERROR(INDEX('[4]ГРАФИК И.Б.НОЯБРЬ '!$AC49:$HF49,1,MATCH(F$10,'[4]ГРАФИК И.Б.НОЯБРЬ '!$AC$19:$HF$19,0)),"") -> 06:00:00 | G24: =IFERROR(INDEX('[4]ГРАФИК И.Б.НОЯБРЬ '!$AC49:$HF49,1,MATCH(G$10,'[4]ГРАФИК И.Б.НОЯБРЬ '!$AC$19:$HF$19,0)),"") -> 06:00:00 | H24: =IFERROR(INDEX('[4]ГРАФИК И.Б.НОЯБРЬ '!$AC49:$HF49,1,MATCH(H$10,'[4]ГРАФИК И.Б.НОЯБРЬ '!$AC$19:$HF$19,0)),"") -> 06:00:00 | I24: =IFERROR(INDEX('[4]ГРАФИК И.Б.НОЯБРЬ '!$AC49:$HF49,1,MATCH(I$10,'[4]ГРАФИК И.Б.НОЯБРЬ '!$AC$19:$HF$19,0)),"") -> 00:00:00 | J24: =IFERROR(INDEX('[4]ГРАФИК И.Б.НОЯБРЬ '!$AC49:$HF49,1,MATCH(J$10,'[4]ГРАФИК И.Б.НОЯБРЬ '!$AC$19:$HF$19,0)),"") -> 05:00:00 | K24: =IFERROR(INDEX('[4]ГРАФИК И.Б.НОЯБРЬ '!$AC49:$HF49,1,MATCH(K$10,'[4]ГРАФИК И.Б.НОЯБРЬ '!$AC$19:$HF$19,0)),"") -> 00:00:00 | L24: =IFERROR(INDEX('[4]ГРАФИК И.Б.НОЯБРЬ '!$AC49:$HF49,1,MATCH(L$10,'[4]ГРАФИК И.Б.НОЯБРЬ '!$AC$19:$HF$19,0)),"") -> 06:00:00 | M24: =IFERROR(INDEX('[4]ГРАФИК И.Б.НОЯБРЬ '!$AC49:$HF49,1,MATCH(M$10,'[4]ГРАФИК И.Б.НОЯБРЬ '!$AC$19:$HF$19,0)),"") -> 06:00:00 | N24: =IFERROR(INDEX('[4]ГРАФИК И.Б.НОЯБРЬ '!$AC49:$HF49,1,MATCH(N$10,'[4]ГРАФИК И.Б.НОЯБРЬ '!$AC$19:$HF$19,0)),"") -> 06:00:00 | O24: =IFERROR(INDEX('[4]ГРАФИК И.Б.НОЯБРЬ '!$AC49:$HF49,1,MATCH(O$10,'[4]ГРАФИК И.Б.НОЯБРЬ '!$AC$19:$HF$19,0)),"") -> 06:00:00 | P24: =IFERROR(INDEX('[4]ГРАФИК И.Б.НОЯБРЬ '!$AC49:$HF49,1,MATCH(P$10,'[4]ГРАФИК И.Б.НОЯБРЬ '!$AC$19:$HF$19,0)),"") -> 06:00:00 | Q24: =IFERROR(INDEX('[4]ГРАФИК И.Б.НОЯБРЬ '!$AC49:$HF49,1,MATCH(Q$10,'[4]ГРАФИК И.Б.НОЯБРЬ '!$AC$19:$HF$19,0)),"") -> 05:00:00 | R24: =IFERROR(INDEX('[4]ГРАФИК И.Б.НОЯБРЬ '!$AC49:$HF49,1,MATCH(R$10,'[4]ГРАФИК И.Б.НОЯБРЬ '!$AC$19:$HF$19,0)),"") -> 00:00:00 | S24: =IFERROR(INDEX('[4]ГРАФИК И.Б.НОЯБРЬ '!$AC49:$HF49,1,MATCH(S$10,'[4]ГРАФИК И.Б.НОЯБРЬ '!$AC$19:$HF$19,0)),"") -> 07:00:00 | T24: =IFERROR(INDEX('[4]ГРАФИК И.Б.НОЯБРЬ '!$AC49:$HF49,1,MATCH(T$10,'[4]ГРАФИК И.Б.НОЯБРЬ '!$AC$19:$HF$19,0)),"") -> 07:00:00 | U24: =IFERROR(INDEX('[4]ГРАФИК И.Б.НОЯБРЬ '!$AC49:$HF49,1,MATCH(U$10,'[4]ГРАФИК И.Б.НОЯБРЬ '!$AC$19:$HF$19,0)),"") ->  | V24: =IFERROR(INDEX('[4]ГРАФИК И.Б.НОЯБРЬ '!$AC49:$HF49,1,MATCH(V$10,'[4]ГРАФИК И.Б.НОЯБРЬ '!$AC$19:$HF$19,0)),"") -> 07:00:00 | W24: =IFERROR(INDEX('[4]ГРАФИК И.Б.НОЯБРЬ '!$AC49:$HF49,1,MATCH(W$10,'[4]ГРАФИК И.Б.НОЯБРЬ '!$AC$19:$HF$19,0)),"") -> 07:00:00 | X24: =IFERROR(INDEX('[4]ГРАФИК И.Б.НОЯБРЬ '!$AC49:$HF49,1,MATCH(X$10,'[4]ГРАФИК И.Б.НОЯБРЬ '!$AC$19:$HF$19,0)),"") -> 07:00:00 | Y24: =IFERROR(INDEX('[4]ГРАФИК И.Б.НОЯБРЬ '!$AC49:$HF49,1,MATCH(Y$10,'[4]ГРАФИК И.Б.НОЯБРЬ '!$AC$19:$HF$19,0)),"") -> 05:00:00 | Z24: =IFERROR(INDEX('[4]ГРАФИК И.Б.НОЯБРЬ '!$AC49:$HF49,1,MATCH(Z$10,'[4]ГРАФИК И.Б.НОЯБРЬ '!$AC$19:$HF$19,0)),"") -> 00:00:00 | AA24: =IFERROR(INDEX('[4]ГРАФИК И.Б.НОЯБРЬ '!$AC49:$HF49,1,MATCH(AA$10,'[4]ГРАФИК И.Б.НОЯБРЬ '!$AC$19:$HF$19,0)),"") -> 07:00:00 | AB24: =IFERROR(INDEX('[4]ГРАФИК И.Б.НОЯБРЬ '!$AC49:$HF49,1,MATCH(AB$10,'[4]ГРАФИК И.Б.НОЯБРЬ '!$AC$19:$HF$19,0)),"") -> 07:00:00 | AC24: =IFERROR(INDEX('[4]ГРАФИК И.Б.НОЯБРЬ '!$AC49:$HF49,1,MATCH(AC$10,'[4]ГРАФИК И.Б.НОЯБРЬ '!$AC$19:$HF$19,0)),"") -> 07:00:00 | AD24: =IFERROR(INDEX('[4]ГРАФИК И.Б.НОЯБРЬ '!$AC49:$HF49,1,MATCH(AD$10,'[4]ГРАФИК И.Б.НОЯБРЬ '!$AC$19:$HF$19,0)),"") -> 07:00:00 | AE24: =IFERROR(INDEX('[4]ГРАФИК И.Б.НОЯБРЬ '!$AC49:$HF49,1,MATCH(AE$10,'[4]ГРАФИК И.Б.НОЯБРЬ '!$AC$19:$HF$19,0)),"") -> 07:00:00 | AF24: =IFERROR(INDEX('[4]ГРАФИК И.Б.НОЯБРЬ '!$AC49:$HF49,1,MATCH(AF$10,'[4]ГРАФИК И.Б.НОЯБРЬ '!$AC$19:$HF$19,0)),"") -> 05:00:00 | AG24: =IFERROR(INDEX('[4]ГРАФИК И.Б.НОЯБРЬ '!$AC49:$HF49,1,MATCH(AG$10,'[4]ГРАФИК И.Б.НОЯБРЬ '!$AC$19:$HF$19,0)),"") -> 00:00:00 | AH24: =IFERROR(INDEX('[4]ГРАФИК И.Б.НОЯБРЬ '!$AC49:$HF49,1,MATCH(AH$10,'[4]ГРАФИК И.Б.НОЯБРЬ '!$AC$19:$HF$19,0)),"") -> 07:00:00 | AI24: =IFERROR(INDEX('[4]ГРАФИК И.Б.НОЯБРЬ '!$AC49:$HF49,1,MATCH(AI$10,'[4]ГРАФИК И.Б.НОЯБРЬ '!$AC$19:$HF$19,0)),"") -> 07:00:00 | AJ24: =IFERROR(INDEX('[4]ГРАФИК И.Б.НОЯБРЬ '!$AC49:$HF49,1,MATCH(AJ$10,'[4]ГРАФИК И.Б.НОЯБРЬ '!$AC$19:$HF$19,0)),"") -> 07:00:00 | AK24: =IFERROR(INDEX('[4]ГРАФИК И.Б.НОЯБРЬ '!$AC49:$HF49,1,MATCH(AK$10,'[4]ГРАФИК И.Б.НОЯБРЬ '!$AC$19:$HF$19,0)),"") ->  | AL24: =COUNTIF($F24:$AK24,">0") -> 25 | AM24: =SUM($F$24:$AK$24) -> 6.625 | BE24: =COUNTIF(F25:AK25,"В") -> 5
F25: =IF('[4]ГРАФИК И.Б.НОЯБРЬ '!AC46="ОТ","ОТ",IF(F24=0,"В","Я")) -> Я | G25: =IF('[4]ГРАФИК И.Б.НОЯБРЬ '!AD46="ОТ","ОТ",IF(G24=0,"В","Я")) -> Я | H25: =IF('[4]ГРАФИК И.Б.НОЯБРЬ '!AE46="ОТ","ОТ",IF(H24=0,"В","Я")) -> Я | I25: =IF('[4]ГРАФИК И.Б.НОЯБРЬ '!AF46="ОТ","ОТ",IF(I24=0,"В","Я")) -> В | J25: =IF('[4]ГРАФИК И.Б.НОЯБРЬ '!AG46="ОТ","ОТ",IF(J24=0,"В","Я")) -> Я | K25: =IF('[4]ГРАФИК И.Б.НОЯБРЬ '!AH46="ОТ","ОТ",IF(K24=0,"В","Я")) -> В | L25: =IF('[4]ГРАФИК И.Б.НОЯБРЬ '!AI46="ОТ","ОТ",IF(L24=0,"В","Я")) -> Я | M25: =IF('[4]ГРАФИК И.Б.НОЯБРЬ '!AJ46="ОТ","ОТ",IF(M24=0,"В","Я")) -> Я | N25: =IF('[4]ГРАФИК И.Б.НОЯБРЬ '!AK46="ОТ","ОТ",IF(N24=0,"В","Я")) -> Я | O25: =IF('[4]ГРАФИК И.Б.НОЯБРЬ '!AL46="ОТ","ОТ",IF(O24=0,"В","Я")) -> Я | P25: =IF('[4]ГРАФИК И.Б.НОЯБРЬ '!AM46="ОТ","ОТ",IF(P24=0,"В","Я")) -> Я | Q25: =IF('[4]ГРАФИК И.Б.НОЯБРЬ '!AN46="ОТ","ОТ",IF(Q24=0,"В","Я")) -> Я | R25: =IF('[4]ГРАФИК И.Б.НОЯБРЬ '!AO46="ОТ","ОТ",IF(R24=0,"В","Я")) -> В | S25: =IF('[4]ГРАФИК И.Б.НОЯБРЬ '!AP46="ОТ","ОТ",IF(S24=0,"В","Я")) -> Я | T25: =IF('[4]ГРАФИК И.Б.НОЯБРЬ '!AQ46="ОТ","ОТ",IF(T24=0,"В","Я")) -> Я | V25: =IF('[4]ГРАФИК И.Б.НОЯБРЬ '!AS46="ОТ","ОТ",IF(V24=0,"В","Я")) -> Я | W25: =IF('[4]ГРАФИК И.Б.НОЯБРЬ '!AT46="ОТ","ОТ",IF(W24=0,"В","Я")) -> Я | X25: =IF('[4]ГРАФИК И.Б.НОЯБРЬ '!AU46="ОТ","ОТ",IF(X24=0,"В","Я")) -> Я | Y25: =IF('[4]ГРАФИК И.Б.НОЯБРЬ '!AV46="ОТ","ОТ",IF(Y24=0,"В","Я")) -> Я | Z25: =IF('[4]ГРАФИК И.Б.НОЯБРЬ '!AW46="ОТ","ОТ",IF(Z24=0,"В","Я")) -> В | AA25: =IF('[4]ГРАФИК И.Б.НОЯБРЬ '!AX46="ОТ","ОТ",IF(AA24=0,"В","Я")) -> Я | AB25: =IF('[4]ГРАФИК И.Б.НОЯБРЬ '!AY46="ОТ","ОТ",IF(AB24=0,"В","Я")) -> Я | AC25: =IF('[4]ГРАФИК И.Б.НОЯБРЬ '!AZ46="ОТ","ОТ",IF(AC24=0,"В","Я")) -> Я | AD25: =IF('[4]ГРАФИК И.Б.НОЯБРЬ '!BA46="ОТ","ОТ",IF(AD24=0,"В","Я")) -> Я | AE25: =IF('[4]ГРАФИК И.Б.НОЯБРЬ '!BB46="ОТ","ОТ",IF(AE24=0,"В","Я")) -> Я | AF25: =IF('[4]ГРАФИК И.Б.НОЯБРЬ '!BC46="ОТ","ОТ",IF(AF24=0,"В","Я")) -> Я | AG25: =IF('[4]ГРАФИК И.Б.НОЯБРЬ '!BD46="ОТ","ОТ",IF(AG24=0,"В","Я")) -> В | AH25: =IF('[4]ГРАФИК И.Б.НОЯБРЬ '!BE46="ОТ","ОТ",IF(AH24=0,"В","Я")) -> Я | AI25: =IF('[4]ГРАФИК И.Б.НОЯБРЬ '!BF46="ОТ","ОТ",IF(AI24=0,"В","Я")) -> Я | AJ25: =IF('[4]ГРАФИК И.Б.НОЯБРЬ '!BG46="ОТ","ОТ",IF(AJ24=0,"В","Я")) -> Я
D26: контролёр-посадчик аттракциона | F26: =IFERROR(INDEX('[4]ГРАФИК И.Б.НОЯБРЬ '!$AC55:$HF55,1,MATCH(F$10,'[4]ГРАФИК И.Б.НОЯБРЬ '!$AC$19:$HF$19,0)),"") -> 00:00:00 | G26: =IFERROR(INDEX('[4]ГРАФИК И.Б.НОЯБРЬ '!$AC55:$HF55,1,MATCH(G$10,'[4]ГРАФИК И.Б.НОЯБРЬ '!$AC$19:$HF$19,0)),"") -> 11:00:00 | H26: =IFERROR(INDEX('[4]ГРАФИК И.Б.НОЯБРЬ '!$AC55:$HF55,1,MATCH(H$10,'[4]ГРАФИК И.Б.НОЯБРЬ '!$AC$19:$HF$19,0)),"") -> 00:00:00 | I26: =IFERROR(INDEX('[4]ГРАФИК И.Б.НОЯБРЬ '!$AC55:$HF55,1,MATCH(I$10,'[4]ГРАФИК И.Б.НОЯБРЬ '!$AC$19:$HF$19,0)),"") -> 11:00:00 | J26: =IFERROR(INDEX('[4]ГРАФИК И.Б.НОЯБРЬ '!$AC55:$HF55,1,MATCH(J$10,'[4]ГРАФИК И.Б.НОЯБРЬ '!$AC$19:$HF$19,0)),"") -> 00:00:00 | K26: =IFERROR(INDEX('[4]ГРАФИК И.Б.НОЯБРЬ '!$AC55:$HF55,1,MATCH(K$10,'[4]ГРАФИК И.Б.НОЯБРЬ '!$AC$19:$HF$19,0)),"") -> 11:00:00 | L26: =IFERROR(INDEX('[4]ГРАФИК И.Б.НОЯБРЬ '!$AC55:$HF55,1,MATCH(L$10,'[4]ГРАФИК И.Б.НОЯБРЬ '!$AC$19:$HF$19,0)),"") -> 00:00:00 | M26: =IFERROR(INDEX('[4]ГРАФИК И.Б.НОЯБРЬ '!$AC55:$HF55,1,MATCH(M$10,'[4]ГРАФИК И.Б.НОЯБРЬ '!$AC$19:$HF$19,0)),"") -> 11:00:00 | N26: =IFERROR(INDEX('[4]ГРАФИК И.Б.НОЯБРЬ '!$AC55:$HF55,1,MATCH(N$10,'[4]ГРАФИК И.Б.НОЯБРЬ '!$AC$19:$HF$19,0)),"") -> 00:00:00 | O26: =IFERROR(INDEX('[4]ГРАФИК И.Б.НОЯБРЬ '!$AC55:$HF55,1,MATCH(O$10,'[4]ГРАФИК И.Б.НОЯБРЬ '!$AC$19:$HF$19,0)),"") -> 11:00:00 | P26: =IFERROR(INDEX('[4]ГРАФИК И.Б.НОЯБРЬ '!$AC55:$HF55,1,MATCH(P$10,'[4]ГРАФИК И.Б.НОЯБРЬ '!$AC$19:$HF$19,0)),"") -> 00:00:00 | Q26: =IFERROR(INDEX('[4]ГРАФИК И.Б.НОЯБРЬ '!$AC55:$HF55,1,MATCH(Q$10,'[4]ГРАФИК И.Б.НОЯБРЬ '!$AC$19:$HF$19,0)),"") -> 11:00:00 | R26: =IFERROR(INDEX('[4]ГРАФИК И.Б.НОЯБРЬ '!$AC55:$HF55,1,MATCH(R$10,'[4]ГРАФИК И.Б.НОЯБРЬ '!$AC$19:$HF$19,0)),"") -> 00:00:00 | S26: =IFERROR(INDEX('[4]ГРАФИК И.Б.НОЯБРЬ '!$AC55:$HF55,1,MATCH(S$10,'[4]ГРАФИК И.Б.НОЯБРЬ '!$AC$19:$HF$19,0)),"") -> 11:00:00 | T26: =IFERROR(INDEX('[4]ГРАФИК И.Б.НОЯБРЬ '!$AC55:$HF55,1,MATCH(T$10,'[4]ГРАФИК И.Б.НОЯБРЬ '!$AC$19:$HF$19,0)),"") -> 00:00:00 | U26: =IFERROR(INDEX('[4]ГРАФИК И.Б.НОЯБРЬ '!$AC55:$HF55,1,MATCH(U$10,'[4]ГРАФИК И.Б.НОЯБРЬ '!$AC$19:$HF$19,0)),"") ->  | V26: =IFERROR(INDEX('[4]ГРАФИК И.Б.НОЯБРЬ '!$AC55:$HF55,1,MATCH(V$10,'[4]ГРАФИК И.Б.НОЯБРЬ '!$AC$19:$HF$19,0)),"") -> 11:00:00 | W26: =IFERROR(INDEX('[4]ГРАФИК И.Б.НОЯБРЬ '!$AC55:$HF55,1,MATCH(W$10,'[4]ГРАФИК И.Б.НОЯБРЬ '!$AC$19:$HF$19,0)),"") -> 00:00:00 | X26: =IFERROR(INDEX('[4]ГРАФИК И.Б.НОЯБРЬ '!$AC55:$HF55,1,MATCH(X$10,'[4]ГРАФИК И.Б.НОЯБРЬ '!$AC$19:$HF$19,0)),"") -> 11:00:00 | Y26: =IFERROR(INDEX('[4]ГРАФИК И.Б.НОЯБРЬ '!$AC55:$HF55,1,MATCH(Y$10,'[4]ГРАФИК И.Б.НОЯБРЬ '!$AC$19:$HF$19,0)),"") -> 00:00:00 | Z26: =IFERROR(INDEX('[4]ГРАФИК И.Б.НОЯБРЬ '!$AC55:$HF55,1,MATCH(Z$10,'[4]ГРАФИК И.Б.НОЯБРЬ '!$AC$19:$HF$19,0)),"") -> 10:00:00 | AA26: =IFERROR(INDEX('[4]ГРАФИК И.Б.НОЯБРЬ '!$AC55:$HF55,1,MATCH(AA$10,'[4]ГРАФИК И.Б.НОЯБРЬ '!$AC$19:$HF$19,0)),"") -> 00:00:00 | AB26: =IFERROR(INDEX('[4]ГРАФИК И.Б.НОЯБРЬ '!$AC55:$HF55,1,MATCH(AB$10,'[4]ГРАФИК И.Б.НОЯБРЬ '!$AC$19:$HF$19,0)),"") -> 10:00:00 | AC26: =IFERROR(INDEX('[4]ГРАФИК И.Б.НОЯБРЬ '!$AC55:$HF55,1,MATCH(AC$10,'[4]ГРАФИК И.Б.НОЯБРЬ '!$AC$19:$HF$19,0)),"") -> 00:00:00 | AD26: =IFERROR(INDEX('[4]ГРАФИК И.Б.НОЯБРЬ '!$AC55:$HF55,1,MATCH(AD$10,'[4]ГРАФИК И.Б.НОЯБРЬ '!$AC$19:$HF$19,0)),"") -> 10:00:00 | AE26: =IFERROR(INDEX('[4]ГРАФИК И.Б.НОЯБРЬ '!$AC55:$HF55,1,MATCH(AE$10,'[4]ГРАФИК И.Б.НОЯБРЬ '!$AC$19:$HF$19,0)),"") -> 00:00:00 | AF26: =IFERROR(INDEX('[4]ГРАФИК И.Б.НОЯБРЬ '!$AC55:$HF55,1,MATCH(AF$10,'[4]ГРАФИК И.Б.НОЯБРЬ '!$AC$19:$HF$19,0)),"") -> 10:00:00 | AG26: =IFERROR(INDEX('[4]ГРАФИК И.Б.НОЯБРЬ '!$AC55:$HF55,1,MATCH(AG$10,'[4]ГРАФИК И.Б.НОЯБРЬ '!$AC$19:$HF$19,0)),"") -> 00:00:00 | AH26: =IFERROR(INDEX('[4]ГРАФИК И.Б.НОЯБРЬ '!$AC55:$HF55,1,MATCH(AH$10,'[4]ГРАФИК И.Б.НОЯБРЬ '!$AC$19:$HF$19,0)),"") -> 10:00:00 | AI26: =IFERROR(INDEX('[4]ГРАФИК И.Б.НОЯБРЬ '!$AC55:$HF55,1,MATCH(AI$10,'[4]ГРАФИК И.Б.НОЯБРЬ '!$AC$19:$HF$19,0)),"") -> 00:00:00 | AJ26: =IFERROR(INDEX('[4]ГРАФИК И.Б.НОЯБРЬ '!$AC55:$HF55,1,MATCH(AJ$10,'[4]ГРАФИК И.Б.НОЯБРЬ '!$AC$19:$HF$19,0)),"") -> 10:00:00 | AK26: =IFERROR(INDEX('[4]ГРАФИК И.Б.НОЯБРЬ '!$AC55:$HF55,1,MATCH(AK$10,'[4]ГРАФИК И.Б.НОЯБРЬ '!$AC$19:$HF$19,0)),"") ->  | AL26: =COUNTIF($F26:$AK26,">0") -> 15 | AM26: =SUM($F$26:$AK$26) -> 6.625 | BE26: =COUNTIF(F27:AK27,"В") -> 15
F27: =IF('[4]ГРАФИК И.Б.НОЯБРЬ '!AC52="ОТ","ОТ",IF(F26=0,"В","Я")) -> В | G27: =IF('[4]ГРАФИК И.Б.НОЯБРЬ '!AD52="ОТ","ОТ",IF(G26=0,"В","Я")) -> Я | H27: =IF('[4]ГРАФИК И.Б.НОЯБРЬ '!AE52="ОТ","ОТ",IF(H26=0,"В","Я")) -> В | I27: =IF('[4]ГРАФИК И.Б.НОЯБРЬ '!AF52="ОТ","ОТ",IF(I26=0,"В","Я")) -> Я | J27: =IF('[4]ГРАФИК И.Б.НОЯБРЬ '!AG52="ОТ","ОТ",IF(J26=0,"В","Я")) -> В | K27: =IF('[4]ГРАФИК И.Б.НОЯБРЬ '!AH52="ОТ","ОТ",IF(K26=0,"В","Я")) -> Я | L27: =IF('[4]ГРАФИК И.Б.НОЯБРЬ '!AI52="ОТ","ОТ",IF(L26=0,"В","Я")) -> В | M27: =IF('[4]ГРАФИК И.Б.НОЯБРЬ '!AJ52="ОТ","ОТ",IF(M26=0,"В","Я")) -> Я | N27: =IF('[4]ГРАФИК И.Б.НОЯБРЬ '!AK52="ОТ","ОТ",IF(N26=0,"В","Я")) -> В | O27: =IF('[4]ГРАФИК И.Б.НОЯБРЬ '!AL52="ОТ","ОТ",IF(O26=0,"В","Я")) -> Я | P27: =IF('[4]ГРАФИК И.Б.НОЯБРЬ '!AM52="ОТ","ОТ",IF(P26=0,"В","Я")) -> В | Q27: =IF('[4]ГРАФИК И.Б.НОЯБРЬ '!AN52="ОТ","ОТ",IF(Q26=0,"В","Я")) -> Я | R27: =IF('[4]ГРАФИК И.Б.НОЯБРЬ '!AO52="ОТ","ОТ",IF(R26=0,"В","Я")) -> В | S27: =IF('[4]ГРАФИК И.Б.НОЯБРЬ '!AP52="ОТ","ОТ",IF(S26=0,"В","Я")) -> Я | T27: =IF('[4]ГРАФИК И.Б.НОЯБРЬ '!AQ52="ОТ","ОТ",IF(T26=0,"В","Я")) -> В | V27: =IF('[4]ГРАФИК И.Б.НОЯБРЬ '!AS52="ОТ","ОТ",IF(V26=0,"В","Я")) -> Я | W27: =IF('[4]ГРАФИК И.Б.НОЯБРЬ '!AT52="ОТ","ОТ",IF(W26=0,"В","Я")) -> В | X27: =IF('[4]ГРАФИК И.Б.НОЯБРЬ '!AU52="ОТ","ОТ",IF(X26=0,"В","Я")) -> Я | Y27: =IF('[4]ГРАФИК И.Б.НОЯБРЬ '!AV52="ОТ","ОТ",IF(Y26=0,"В","Я")) -> В | Z27: =IF('[4]ГРАФИК И.Б.НОЯБРЬ '!AW52="ОТ","ОТ",IF(Z26=0,"В","Я")) -> Я | AA27: =IF('[4]ГРАФИК И.Б.НОЯБРЬ '!AX52="ОТ","ОТ",IF(AA26=0,"В","Я")) -> В | AB27: =IF('[4]ГРАФИК И.Б.НОЯБРЬ '!AY52="ОТ","ОТ",IF(AB26=0,"В","Я")) -> Я | AC27: =IF('[4]ГРАФИК И.Б.НОЯБРЬ '!AZ52="ОТ","ОТ",IF(AC26=0,"В","Я")) -> В | AD27: =IF('[4]ГРАФИК И.Б.НОЯБРЬ '!BA52="ОТ","ОТ",IF(AD26=0,"В","Я")) -> Я | AE27: =IF('[4]ГРАФИК И.Б.НОЯБРЬ '!BB52="ОТ","ОТ",IF(AE26=0,"В","Я")) -> В | AF27: =IF('[4]ГРАФИК И.Б.НОЯБРЬ '!BC52="ОТ","ОТ",IF(AF26=0,"В","Я")) -> Я | AG27: =IF('[4]ГРАФИК И.Б.НОЯБРЬ '!BD52="ОТ","ОТ",IF(AG26=0,"В","Я")) -> В | AH27: =IF('[4]ГРАФИК И.Б.НОЯБРЬ '!BE52="ОТ","ОТ",IF(AH26=0,"В","Я")) -> Я | AI27: =IF('[4]ГРАФИК И.Б.НОЯБРЬ '!BF52="ОТ","ОТ",IF(AI26=0,"В","Я")) -> В | AJ27: =IF('[4]ГРАФИК И.Б.НОЯБРЬ '!BG52="ОТ","ОТ",IF(AJ26=0,"В","Я")) -> Я
C28: ='ГРАФИК И.Б.НОЯБРЬ '!F58 -> Нурлиева Е.А., котролёр-посадчик аттракциона НЧ | D28: контролёр-посадчик аттракциона | F28: =IFERROR(INDEX('[4]ГРАФИК И.Б.НОЯБРЬ '!$AC61:$HF61,1,MATCH(F$10,'[4]ГРАФИК И.Б.НОЯБРЬ '!$AC$19:$HF$19,0)),"") -> 11:00:00 | G28: =IFERROR(INDEX('[4]ГРАФИК И.Б.НОЯБРЬ '!$AC61:$HF61,1,MATCH(G$10,'[4]ГРАФИК И.Б.НОЯБРЬ '!$AC$19:$HF$19,0)),"") -> 00:00:00 | H28: =IFERROR(INDEX('[4]ГРАФИК И.Б.НОЯБРЬ '!$AC61:$HF61,1,MATCH(H$10,'[4]ГРАФИК И.Б.НОЯБРЬ '!$AC$19:$HF$19,0)),"") -> 11:00:00 | I28: =IFERROR(INDEX('[4]ГРАФИК И.Б.НОЯБРЬ '!$AC61:$HF61,1,MATCH(I$10,'[4]ГРАФИК И.Б.НОЯБРЬ '!$AC$19:$HF$19,0)),"") -> 00:00:00 | J28: =IFERROR(INDEX('[4]ГРАФИК И.Б.НОЯБРЬ '!$AC61:$HF61,1,MATCH(J$10,'[4]ГРАФИК И.Б.НОЯБРЬ '!$AC$19:$HF$19,0)),"") -> 11:00:00 | K28: =IFERROR(INDEX('[4]ГРАФИК И.Б.НОЯБРЬ '!$AC61:$HF61,1,MATCH(K$10,'[4]ГРАФИК И.Б.НОЯБРЬ '!$AC$19:$HF$19,0)),"") -> 00:00:00 | L28: =IFERROR(INDEX('[4]ГРАФИК И.Б.НОЯБРЬ '!$AC61:$HF61,1,MATCH(L$10,'[4]ГРАФИК И.Б.НОЯБРЬ '!$AC$19:$HF$19,0)),"") -> 11:00:00 | M28: =IFERROR(INDEX('[4]ГРАФИК И.Б.НОЯБРЬ '!$AC61:$HF61,1,MATCH(M$10,'[4]ГРАФИК И.Б.НОЯБРЬ '!$AC$19:$HF$19,0)),"") -> 00:00:00 | N28: =IFERROR(INDEX('[4]ГРАФИК И.Б.НОЯБРЬ '!$AC61:$HF61,1,MATCH(N$10,'[4]ГРАФИК И.Б.НОЯБРЬ '!$AC$19:$HF$19,0)),"") -> 11:00:00 | O28: =IFERROR(INDEX('[4]ГРАФИК И.Б.НОЯБРЬ '!$AC61:$HF61,1,MATCH(O$10,'[4]ГРАФИК И.Б.НОЯБРЬ '!$AC$19:$HF$19,0)),"") -> 00:00:00 | P28: =IFERROR(INDEX('[4]ГРАФИК И.Б.НОЯБРЬ '!$AC61:$HF61,1,MATCH(P$10,'[4]ГРАФИК И.Б.НОЯБРЬ '!$AC$19:$HF$19,0)),"") -> 11:00:00 | Q28: =IFERROR(INDEX('[4]ГРАФИК И.Б.НОЯБРЬ '!$AC61:$HF61,1,MATCH(Q$10,'[4]ГРАФИК И.Б.НОЯБРЬ '!$AC$19:$HF$19,0)),"") -> 00:00:00 | R28: =IFERROR(INDEX('[4]ГРАФИК И.Б.НОЯБРЬ '!$AC61:$HF61,1,MATCH(R$10,'[4]ГРАФИК И.Б.НОЯБРЬ '!$AC$19:$HF$19,0)),"") -> 11:00:00 | S28: =IFERROR(INDEX('[4]ГРАФИК И.Б.НОЯБРЬ '!$AC61:$HF61,1,MATCH(S$10,'[4]ГРАФИК И.Б.НОЯБРЬ '!$AC$19:$HF$19,0)),"") -> 00:00:00 | T28: =IFERROR(INDEX('[4]ГРАФИК И.Б.НОЯБРЬ '!$AC61:$HF61,1,MATCH(T$10,'[4]ГРАФИК И.Б.НОЯБРЬ '!$AC$19:$HF$19,0)),"") -> 11:00:00 | U28: =IFERROR(INDEX('[4]ГРАФИК И.Б.НОЯБРЬ '!$AC61:$HF61,1,MATCH(U$10,'[4]ГРАФИК И.Б.НОЯБРЬ '!$AC$19:$HF$19,0)),"") ->  | V28: =IFERROR(INDEX('[4]ГРАФИК И.Б.НОЯБРЬ '!$AC61:$HF61,1,MATCH(V$10,'[4]ГРАФИК И.Б.НОЯБРЬ '!$AC$19:$HF$19,0)),"") -> 00:00:00 | W28: =IFERROR(INDEX('[4]ГРАФИК И.Б.НОЯБРЬ '!$AC61:$HF61,1,MATCH(W$10,'[4]ГРАФИК И.Б.НОЯБРЬ '!$AC$19:$HF$19,0)),"") -> 00:00:00 | X28: =IFERROR(INDEX('[4]ГРАФИК И.Б.НОЯБРЬ '!$AC61:$HF61,1,MATCH(X$10,'[4]ГРАФИК И.Б.НОЯБРЬ '!$AC$19:$HF$19,0)),"") -> 00:00:00 | Y28: =IFERROR(INDEX('[4]ГРАФИК И.Б.НОЯБРЬ '!$AC61:$HF61,1,MATCH(Y$10,'[4]ГРАФИК И.Б.НОЯБРЬ '!$AC$19:$HF$19,0)),"") -> 00:00:00 | Z28: =IFERROR(INDEX('[4]ГРАФИК И.Б.НОЯБРЬ '!$AC61:$HF61,1,MATCH(Z$10,'[4]ГРАФИК И.Б.НОЯБРЬ '!$AC$19:$HF$19,0)),"") -> 00:00:00 | AA28: =IFERROR(INDEX('[4]ГРАФИК И.Б.НОЯБРЬ '!$AC61:$HF61,1,MATCH(AA$10,'[4]ГРАФИК И.Б.НОЯБРЬ '!$AC$19:$HF$19,0)),"") -> 00:00:00 | AB28: =IFERROR(INDEX('[4]ГРАФИК И.Б.НОЯБРЬ '!$AC61:$HF61,1,MATCH(AB$10,'[4]ГРАФИК И.Б.НОЯБРЬ '!$AC$19:$HF$19,0)),"") -> 00:00:00 | AC28: =IFERROR(INDEX('[4]ГРАФИК И.Б.НОЯБРЬ '!$AC61:$HF61,1,MATCH(AC$10,'[4]ГРАФИК И.Б.НОЯБРЬ '!$AC$19:$HF$19,0)),"") -> 00:00:00 | AD28: =IFERROR(INDEX('[4]ГРАФИК И.Б.НОЯБРЬ '!$AC61:$HF61,1,MATCH(AD$10,'[4]ГРАФИК И.Б.НОЯБРЬ '!$AC$19:$HF$19,0)),"") -> 00:00:00 | AE28: =IFERROR(INDEX('[4]ГРАФИК И.Б.НОЯБРЬ '!$AC61:$HF61,1,MATCH(AE$10,'[4]ГРАФИК И.Б.НОЯБРЬ '!$AC$19:$HF$19,0)),"") -> 00:00:00 | AF28: =IFERROR(INDEX('[4]ГРАФИК И.Б.НОЯБРЬ '!$AC61:$HF61,1,MATCH(AF$10,'[4]ГРАФИК И.Б.НОЯБРЬ '!$AC$19:$HF$19,0)),"") -> 00:00:00 | AG28: =IFERROR(INDEX('[4]ГРАФИК И.Б.НОЯБРЬ '!$AC61:$HF61,1,MATCH(AG$10,'[4]ГРАФИК И.Б.НОЯБРЬ '!$AC$19:$HF$19,0)),"") -> 00:00:00 | AH28: =IFERROR(INDEX('[4]ГРАФИК И.Б.НОЯБРЬ '!$AC61:$HF61,1,MATCH(AH$10,'[4]ГРАФИК И.Б.НОЯБРЬ '!$AC$19:$HF$19,0)),"") -> 00:00:00 | AI28: =IFERROR(INDEX('[4]ГРАФИК И.Б.НОЯБРЬ '!$AC61:$HF61,1,MATCH(AI$10,'[4]ГРАФИК И.Б.НОЯБРЬ '!$AC$19:$HF$19,0)),"") -> 00:00:00 | AJ28: =IFERROR(INDEX('[4]ГРАФИК И.Б.НОЯБРЬ '!$AC61:$HF61,1,MATCH(AJ$10,'[4]ГРАФИК И.Б.НОЯБРЬ '!$AC$19:$HF$19,0)),"") -> 00:00:00 | AK28: =IFERROR(INDEX('[4]ГРАФИК И.Б.НОЯБРЬ '!$AC61:$HF61,1,MATCH(AK$10,'[4]ГРАФИК И.Б.НОЯБРЬ '!$AC$19:$HF$19,0)),"") ->  | AL28: =COUNTIF($F28:$AK28,">0") -> 8 | AM28: =SUM($F$28:$AK$28) -> 3.666666667 | BE28: =COUNTIF(F29:AK29,"В") -> 8
F29: =IF(F28=0,IF(INDEX('ГРАФИК И.Б.НОЯБРЬ '!$AC$21:$HF$64,MATCH($C28,'ГРАФИК И.Б.НОЯБРЬ '!$F$21:$F$64,),MATCH(F$10,'ГРАФИК И.Б.НОЯБРЬ '!$AC$19:$HA$19,))="ОТ","ОТ","В"),"Я") -> Я | G29: =IF(G28=0,IF(INDEX('ГРАФИК И.Б.НОЯБРЬ '!$AC$21:$HF$64,MATCH($C28,'ГРАФИК И.Б.НОЯБРЬ '!$F$21:$F$64,),MATCH(G$10,'ГРАФИК И.Б.НОЯБРЬ '!$AC$19:$HA$19,))="ОТ","ОТ","В"),"Я") -> В | H29: =IF(H28=0,IF(INDEX('ГРАФИК И.Б.НОЯБРЬ '!$AC$21:$HF$64,MATCH($C28,'ГРАФИК И.Б.НОЯБРЬ '!$F$21:$F$64,),MATCH(H$10,'ГРАФИК И.Б.НОЯБРЬ '!$AC$19:$HA$19,))="ОТ","ОТ","В"),"Я") -> Я | I29: =IF(I28=0,IF(INDEX('ГРАФИК И.Б.НОЯБРЬ '!$AC$21:$HF$64,MATCH($C28,'ГРАФИК И.Б.НОЯБРЬ '!$F$21:$F$64,),MATCH(I$10,'ГРАФИК И.Б.НОЯБРЬ '!$AC$19:$HA$19,))="ОТ","ОТ","В"),"Я") -> В | J29: =IF(J28=0,IF(INDEX('ГРАФИК И.Б.НОЯБРЬ '!$AC$21:$HF$64,MATCH($C28,'ГРАФИК И.Б.НОЯБРЬ '!$F$21:$F$64,),MATCH(J$10,'ГРАФИК И.Б.НОЯБРЬ '!$AC$19:$HA$19,))="ОТ","ОТ","В"),"Я") -> Я | K29: =IF(K28=0,IF(INDEX('ГРАФИК И.Б.НОЯБРЬ '!$AC$21:$HF$64,MATCH($C28,'ГРАФИК И.Б.НОЯБРЬ '!$F$21:$F$64,),MATCH(K$10,'ГРАФИК И.Б.НОЯБРЬ '!$AC$19:$HA$19,))="ОТ","ОТ","В"),"Я") -> В | L29: =IF(L28=0,IF(INDEX('ГРАФИК И.Б.НОЯБРЬ '!$AC$21:$HF$64,MATCH($C28,'ГРАФИК И.Б.НОЯБРЬ '!$F$21:$F$64,),MATCH(L$10,'ГРАФИК И.Б.НОЯБРЬ '!$AC$19:$HA$19,))="ОТ","ОТ","В"),"Я") -> Я | M29: =IF(M28=0,IF(INDEX('ГРАФИК И.Б.НОЯБРЬ '!$AC$21:$HF$64,MATCH($C28,'ГРАФИК И.Б.НОЯБРЬ '!$F$21:$F$64,),MATCH(M$10,'ГРАФИК И.Б.НОЯБРЬ '!$AC$19:$HA$19,))="ОТ","ОТ","В"),"Я") -> В | N29: =IF(N28=0,IF(INDEX('ГРАФИК И.Б.НОЯБРЬ '!$AC$21:$HF$64,MATCH($C28,'ГРАФИК И.Б.НОЯБРЬ '!$F$21:$F$64,),MATCH(N$10,'ГРАФИК И.Б.НОЯБРЬ '!$AC$19:$HA$19,))="ОТ","ОТ","В"),"Я") -> Я | O29: =IF(O28=0,IF(INDEX('ГРАФИК И.Б.НОЯБРЬ '!$AC$21:$HF$64,MATCH($C28,'ГРАФИК И.Б.НОЯБРЬ '!$F$21:$F$64,),MATCH(O$10,'ГРАФИК И.Б.НОЯБРЬ '!$AC$19:$HA$19,))="ОТ","ОТ","В"),"Я") -> В | P29: =IF(P28=0,IF(INDEX('ГРАФИК И.Б.НОЯБРЬ '!$AC$21:$HF$64,MATCH($C28,'ГРАФИК И.Б.НОЯБРЬ '!$F$21:$F$64,),MATCH(P$10,'ГРАФИК И.Б.НОЯБРЬ '!$AC$19:$HA$19,))="ОТ","ОТ","В"),"Я") -> Я | Q29: =IF(Q28=0,IF(INDEX('ГРАФИК И.Б.НОЯБРЬ '!$AC$21:$HF$64,MATCH($C28,'ГРАФИК И.Б.НОЯБРЬ '!$F$21:$F$64,),MATCH(Q$10,'ГРАФИК И.Б.НОЯБРЬ '!$AC$19:$HA$19,))="ОТ","ОТ","В"),"Я") -> В | R29: =IF(R28=0,IF(INDEX('ГРАФИК И.Б.НОЯБРЬ '!$AC$21:$HF$64,MATCH($C28,'ГРАФИК И.Б.НОЯБРЬ '!$F$21:$F$64,),MATCH(R$10,'ГРАФИК И.Б.НОЯБРЬ '!$AC$19:$HA$19,))="ОТ","ОТ","В"),"Я") -> Я | S29: =IF(S28=0,IF(INDEX('ГРАФИК И.Б.НОЯБРЬ '!$AC$21:$HF$64,MATCH($C28,'ГРАФИК И.Б.НОЯБРЬ '!$F$21:$F$64,),MATCH(S$10,'ГРАФИК И.Б.НОЯБРЬ '!$AC$19:$HA$19,))="ОТ","ОТ","В"),"Я") -> В | T29: =IF(T28=0,IF(INDEX('ГРАФИК И.Б.НОЯБРЬ '!$AC$21:$HF$64,MATCH($C28,'ГРАФИК И.Б.НОЯБРЬ '!$F$21:$F$64,),MATCH(T$10,'ГРАФИК И.Б.НОЯБРЬ '!$AC$19:$HA$19,))="ОТ","ОТ","В"),"Я") -> Я | U29: =IF(U28=0,IF(INDEX('ГРАФИК И.Б.НОЯБРЬ '!$AC$21:$HF$64,MATCH($C28,'ГРАФИК И.Б.НОЯБРЬ '!$F$21:$F$64,),MATCH(U$10,'ГРАФИК И.Б.НОЯБРЬ '!$AC$19:$HA$19,))="ОТ","ОТ","В"),"Я") -> Я | V29: =IF(V28=0,IF(INDEX('ГРАФИК И.Б.НОЯБРЬ '!$AC$21:$HF$64,MATCH($C28,'ГРАФИК И.Б.НОЯБРЬ '!$F$21:$F$64,),MATCH(V$10,'ГРАФИК И.Б.НОЯБРЬ '!$AC$19:$HA$19,))="ОТ","ОТ","В"),"Я") -> В | W29: =IF(W28=0,IF(INDEX('ГРАФИК И.Б.НОЯБРЬ '!$AC$21:$HF$64,MATCH($C28,'ГРАФИК И.Б.НОЯБРЬ '!$F$21:$F$64,),MATCH(W$10,'ГРАФИК И.Б.НОЯБРЬ '!$AC$19:$HA$19,))="ОТ","ОТ","В"),"Я") -> ОТ | X29: =IF(X28=0,IF(INDEX('ГРАФИК И.Б.НОЯБРЬ '!$AC$21:$HF$64,MATCH($C28,'ГРАФИК И.Б.НОЯБРЬ '!$F$21:$F$64,),MATCH(X$10,'ГРАФИК И.Б.НОЯБРЬ '!$AC$19:$HA$19,))="ОТ","ОТ","В"),"Я") -> ОТ | Y29: =IF(Y28=0,IF(INDEX('ГРАФИК И.Б.НОЯБРЬ '!$AC$21:$HF$64,MATCH($C28,'ГРАФИК И.Б.НОЯБРЬ '!$F$21:$F$64,),MATCH(Y$10,'ГРАФИК И.Б.НОЯБРЬ '!$AC$19:$HA$19,))="ОТ","ОТ","В"),"Я") -> ОТ | Z29: =IF(Z28=0,IF(INDEX('ГРАФИК И.Б.НОЯБРЬ '!$AC$21:$HF$64,MATCH($C28,'ГРАФИК И.Б.НОЯБРЬ '!$F$21:$F$64,),MATCH(Z$10,'ГРАФИК И.Б.НОЯБРЬ '!$AC$19:$HA$19,))="ОТ","ОТ","В"),"Я") -> ОТ | AA29: =IF(AA28=0,IF(INDEX('ГРАФИК И.Б.НОЯБРЬ '!$AC$21:$HF$64,MATCH($C28,'ГРАФИК И.Б.НОЯБРЬ '!$F$21:$F$64,),MATCH(AA$10,'ГРАФИК И.Б.НОЯБРЬ '!$AC$19:$HA$19,))="ОТ","ОТ","В"),"Я") -> ОТ | AB29: =IF(AB28=0,IF(INDEX('ГРАФИК И.Б.НОЯБРЬ '!$AC$21:$HF$64,MATCH($C28,'ГРАФИК И.Б.НОЯБРЬ '!$F$21:$F$64,),MATCH(AB$10,'ГРАФИК И.Б.НОЯБРЬ '!$AC$19:$HA$19,))="ОТ","ОТ","В"),"Я") -> ОТ | AC29: =IF(AC28=0,IF(INDEX('ГРАФИК И.Б.НОЯБРЬ '!$AC$21:$HF$64,MATCH($C28,'ГРАФИК И.Б.НОЯБРЬ '!$F$21:$F$64,),MATCH(AC$10,'ГРАФИК И.Б.НОЯБРЬ '!$AC$19:$HA$19,))="ОТ","ОТ","В"),"Я") -> ОТ | AD29: =IF(AD28=0,IF(INDEX('ГРАФИК И.Б.НОЯБРЬ '!$AC$21:$HF$64,MATCH($C28,'ГРАФИК И.Б.НОЯБРЬ '!$F$21:$F$64,),MATCH(AD$10,'ГРАФИК И.Б.НОЯБРЬ '!$AC$19:$HA$19,))="ОТ","ОТ","В"),"Я") -> ОТ | AE29: =IF(AE28=0,IF(INDEX('ГРАФИК И.Б.НОЯБРЬ '!$AC$21:$HF$64,MATCH($C28,'ГРАФИК И.Б.НОЯБРЬ '!$F$21:$F$64,),MATCH(AE$10,'ГРАФИК И.Б.НОЯБРЬ '!$AC$19:$HA$19,))="ОТ","ОТ","В"),"Я") -> ОТ | AF29: =IF(AF28=0,IF(INDEX('ГРАФИК И.Б.НОЯБРЬ '!$AC$21:$HF$64,MATCH($C28,'ГРАФИК И.Б.НОЯБРЬ '!$F$21:$F$64,),MATCH(AF$10,'ГРАФИК И.Б.НОЯБРЬ '!$AC$19:$HA$19,))="ОТ","ОТ","В"),"Я") -> ОТ | AG29: =IF(AG28=0,IF(INDEX('ГРАФИК И.Б.НОЯБРЬ '!$AC$21:$HF$64,MATCH($C28,'ГРАФИК И.Б.НОЯБРЬ '!$F$21:$F$64,),MATCH(AG$10,'ГРАФИК И.Б.НОЯБРЬ '!$AC$19:$HA$19,))="ОТ","ОТ","В"),"Я") -> ОТ | AH29: =IF(AH28=0,IF(INDEX('ГРАФИК И.Б.НОЯБРЬ '!$AC$21:$HF$64,MATCH($C28,'ГРАФИК И.Б.НОЯБРЬ '!$F$21:$F$64,),MATCH(AH$10,'ГРАФИК И.Б.НОЯБРЬ '!$AC$19:$HA$19,))="ОТ","ОТ","В"),"Я") -> ОТ | AI29: =IF(AI28=0,IF(INDEX('ГРАФИК И.Б.НОЯБРЬ '!$AC$21:$HF$64,MATCH($C28,'ГРАФИК И.Б.НОЯБРЬ '!$F$21:$F$64,),MATCH(AI$10,'ГРАФИК И.Б.НОЯБРЬ '!$AC$19:$HA$19,))="ОТ","ОТ","В"),"Я") -> ОТ | AJ29: =IF(AJ28=0,IF(INDEX('ГРАФИК И.Б.НОЯБРЬ '!$AC$21:$HF$64,MATCH($C28,'ГРАФИК И.Б.НОЯБРЬ '!$F$21:$F$64,),MATCH(AJ$10,'ГРАФИК И.Б.НОЯБРЬ '!$AC$19:$HA$19,))="ОТ","ОТ","В"),"Я") -> ОТ | AK29: =IF(AK28=0,IF(INDEX('ГРАФИК И.Б.НОЯБРЬ '!$AC$21:$HF$64,MATCH($C28,'ГРАФИК И.Б.НОЯБРЬ '!$F$21:$F$64,),MATCH(AK$10,'ГРАФИК И.Б.НОЯБРЬ '!$AC$19:$HA$19,))="ОТ","ОТ","В"),"Я") -> Я
D30: контролёр-посадчик аттракциона | F30: =IFERROR(INDEX('[4]ГРАФИК И.Б.НОЯБРЬ '!$AC68:$HF68,1,MATCH(F$10,'[4]ГРАФИК И.Б.НОЯБРЬ '!$AC$19:$HF$19,0)),"") -> 00:00:00 | G30: =IFERROR(INDEX('[4]ГРАФИК И.Б.НОЯБРЬ '!$AC68:$HF68,1,MATCH(G$10,'[4]ГРАФИК И.Б.НОЯБРЬ '!$AC$19:$HF$19,0)),"") -> 11:00:00 | H30: =IFERROR(INDEX('[4]ГРАФИК И.Б.НОЯБРЬ '!$AC68:$HF68,1,MATCH(H$10,'[4]ГРАФИК И.Б.НОЯБРЬ '!$AC$19:$HF$19,0)),"") -> 00:00:00 | I30: =IFERROR(INDEX('[4]ГРАФИК И.Б.НОЯБРЬ '!$AC68:$HF68,1,MATCH(I$10,'[4]ГРАФИК И.Б.НОЯБРЬ '!$AC$19:$HF$19,0)),"") -> 11:00:00 | J30: =IFERROR(INDEX('[4]ГРАФИК И.Б.НОЯБРЬ '!$AC68:$HF68,1,MATCH(J$10,'[4]ГРАФИК И.Б.НОЯБРЬ '!$AC$19:$HF$19,0)),"") -> 00:00:00 | K30: =IFERROR(INDEX('[4]ГРАФИК И.Б.НОЯБРЬ '!$AC68:$HF68,1,MATCH(K$10,'[4]ГРАФИК И.Б.НОЯБРЬ '!$AC$19:$HF$19,0)),"") -> 11:00:00 | L30: =IFERROR(INDEX('[4]ГРАФИК И.Б.НОЯБРЬ '!$AC68:$HF68,1,MATCH(L$10,'[4]ГРАФИК И.Б.НОЯБРЬ '!$AC$19:$HF$19,0)),"") -> 00:00:00 | M30: =IFERROR(INDEX('[4]ГРАФИК И.Б.НОЯБРЬ '!$AC68:$HF68,1,MATCH(M$10,'[4]ГРАФИК И.Б.НОЯБРЬ '!$AC$19:$HF$19,0)),"") -> 11:00:00 | N30: =IFERROR(INDEX('[4]ГРАФИК И.Б.НОЯБРЬ '!$AC68:$HF68,1,MATCH(N$10,'[4]ГРАФИК И.Б.НОЯБРЬ '!$AC$19:$HF$19,0)),"") -> 00:00:00 | O30: =IFERROR(INDEX('[4]ГРАФИК И.Б.НОЯБРЬ '!$AC68:$HF68,1,MATCH(O$10,'[4]ГРАФИК И.Б.НОЯБРЬ '!$AC$19:$HF$19,0)),"") -> 11:00:00 | P30: =IFERROR(INDEX('[4]ГРАФИК И.Б.НОЯБРЬ '!$AC68:$HF68,1,MATCH(P$10,'[4]ГРАФИК И.Б.НОЯБРЬ '!$AC$19:$HF$19,0)),"") -> 00:00:00 | Q30: =IFERROR(INDEX('[4]ГРАФИК И.Б.НОЯБРЬ '!$AC68:$HF68,1,MATCH(Q$10,'[4]ГРАФИК И.Б.НОЯБРЬ '!$AC$19:$HF$19,0)),"") -> 11:00:00 | R30: =IFERROR(INDEX('[4]ГРАФИК И.Б.НОЯБРЬ '!$AC68:$HF68,1,MATCH(R$10,'[4]ГРАФИК И.Б.НОЯБРЬ '!$AC$19:$HF$19,0)),"") -> 00:00:00 | S30: =IFERROR(INDEX('[4]ГРАФИК И.Б.НОЯБРЬ '!$AC68:$HF68,1,MATCH(S$10,'[4]ГРАФИК И.Б.НОЯБРЬ '!$AC$19:$HF$19,0)),"") -> 11:00:00 | T30: =IFERROR(INDEX('[4]ГРАФИК И.Б.НОЯБРЬ '!$AC68:$HF68,1,MATCH(T$10,'[4]ГРАФИК И.Б.НОЯБРЬ '!$AC$19:$HF$19,0)),"") -> 00:00:00 | U30: =IFERROR(INDEX('[4]ГРАФИК И.Б.НОЯБРЬ '!$AC68:$HF68,1,MATCH(U$10,'[4]ГРАФИК И.Б.НОЯБРЬ '!$AC$19:$HF$19,0)),"") ->  | V30: =IFERROR(INDEX('[4]ГРАФИК И.Б.НОЯБРЬ '!$AC68:$HF68,1,MATCH(V$10,'[4]ГРАФИК И.Б.НОЯБРЬ '!$AC$19:$HF$19,0)),"") -> 11:00:00 | W30: =IFERROR(INDEX('[4]ГРАФИК И.Б.НОЯБРЬ '!$AC68:$HF68,1,MATCH(W$10,'[4]ГРАФИК И.Б.НОЯБРЬ '!$AC$19:$HF$19,0)),"") -> 00:00:00 | X30: =IFERROR(INDEX('[4]ГРАФИК И.Б.НОЯБРЬ '!$AC68:$HF68,1,MATCH(X$10,'[4]ГРАФИК И.Б.НОЯБРЬ '!$AC$19:$HF$19,0)),"") -> 11:00:00 | Y30: =IFERROR(INDEX('[4]ГРАФИК И.Б.НОЯБРЬ '!$AC68:$HF68,1,MATCH(Y$10,'[4]ГРАФИК И.Б.НОЯБРЬ '!$AC$19:$HF$19,0)),"") -> 00:00:00 | Z30: =IFERROR(INDEX('[4]ГРАФИК И.Б.НОЯБРЬ '!$AC68:$HF68,1,MATCH(Z$10,'[4]ГРАФИК И.Б.НОЯБРЬ '!$AC$19:$HF$19,0)),"") -> 10:00:00 | AA30: =IFERROR(INDEX('[4]ГРАФИК И.Б.НОЯБРЬ '!$AC68:$HF68,1,MATCH(AA$10,'[4]ГРАФИК И.Б.НОЯБРЬ '!$AC$19:$HF$19,0)),"") -> 00:00:00 | AB30: =IFERROR(INDEX('[4]ГРАФИК И.Б.НОЯБРЬ '!$AC68:$HF68,1,MATCH(AB$10,'[4]ГРАФИК И.Б.НОЯБРЬ '!$AC$19:$HF$19,0)),"") -> 10:00:00 | AC30: =IFERROR(INDEX('[4]ГРАФИК И.Б.НОЯБРЬ '!$AC68:$HF68,1,MATCH(AC$10,'[4]ГРАФИК И.Б.НОЯБРЬ '!$AC$19:$HF$19,0)),"") -> 00:00:00 | AD30: =IFERROR(INDEX('[4]ГРАФИК И.Б.НОЯБРЬ '!$AC68:$HF68,1,MATCH(AD$10,'[4]ГРАФИК И.Б.НОЯБРЬ '!$AC$19:$HF$19,0)),"") -> 10:00:00 | AE30: =IFERROR(INDEX('[4]ГРАФИК И.Б.НОЯБРЬ '!$AC68:$HF68,1,MATCH(AE$10,'[4]ГРАФИК И.Б.НОЯБРЬ '!$AC$19:$HF$19,0)),"") -> 00:00:00 | AF30: =IFERROR(INDEX('[4]ГРАФИК И.Б.НОЯБРЬ '!$AC68:$HF68,1,MATCH(AF$10,'[4]ГРАФИК И.Б.НОЯБРЬ '!$AC$19:$HF$19,0)),"") -> 10:00:00 | AG30: =IFERROR(INDEX('[4]ГРАФИК И.Б.НОЯБРЬ '!$AC68:$HF68,1,MATCH(AG$10,'[4]ГРАФИК И.Б.НОЯБРЬ '!$AC$19:$HF$19,0)),"") -> 00:00:00 | AH30: =IFERROR(INDEX('[4]ГРАФИК И.Б.НОЯБРЬ '!$AC68:$HF68,1,MATCH(AH$10,'[4]ГРАФИК И.Б.НОЯБРЬ '!$AC$19:$HF$19,0)),"") -> 10:00:00 | AI30: =IFERROR(INDEX('[4]ГРАФИК И.Б.НОЯБРЬ '!$AC68:$HF68,1,MATCH(AI$10,'[4]ГРАФИК И.Б.НОЯБРЬ '!$AC$19:$HF$19,0)),"") -> 00:00:00 | AJ30: =IFERROR(INDEX('[4]ГРАФИК И.Б.НОЯБРЬ '!$AC68:$HF68,1,MATCH(AJ$10,'[4]ГРАФИК И.Б.НОЯБРЬ '!$AC$19:$HF$19,0)),"") -> 10:00:00 | AK30: =IFERROR(INDEX('[4]ГРАФИК И.Б.НОЯБРЬ '!$AC68:$HF68,1,MATCH(AK$10,'[4]ГРАФИК И.Б.НОЯБРЬ '!$AC$19:$HF$19,0)),"") ->  | AL30: =COUNTIF($F30:$AK30,">0") -> 15 | AM30: =SUM($F$30:$AK$30) -> 6.625 | AO30: =SUMIF($F30:$AK30,">8",$F31:$AK31) -> 0 | AP30: =COUNTIF($F30:$AK30,"=12")+COUNTIF($F31:$AK31,"=8")*2 -> 0 | AQ30: =SUMIF($F$12:$AK$12,"ЧП",$F30:$AK30) -> 0 | AR30: =SUMPRODUCT(IF(ISNUMBER(F30:AK30),(F30:AK30>8)*(F30:AK30-8),0)) -> 0 | AS30: =SUMIF(#REF!,"в",$F30:$AK30) ->  | AT30: =IF($AN30>$BF$7,$AN30-$BF$7,"–") -> – | AU30: =SUM($AV30:$BD31) -> 0 | AV30: =COUNTIF($F30:$AK30,"=От") -> 0 | AW30: =COUNTIF($F30:$AK30,"=Б") -> 0 | AX30: =COUNTIF($F30:$AK30,"=А") -> 0 | AY30: =COUNTIF($F30:$AK30,"=Ор") -> 0 | AZ30: =COUNTIF($F30:$AK30,"=У") -> 0 | BA30: =COUNTIF($F30:$AK30,"=Ч") -> 0 | BB30: =COUNTIF($F30:$AK30,"=Пр") -> 0 | BC30: =COUNTIF($F30:$AK30,"=Ож") -> 0 | BD30: =COUNTIF($F30:$AK30,"=К") -> 0 | BE30: =COUNTIF(F31:AK31,"В") -> 15
F31: =IF('[4]ГРАФИК И.Б.НОЯБРЬ '!AC65="ОТ","ОТ",IF(F30=0,"В","Я")) -> В | G31: =IF('[4]ГРАФИК И.Б.НОЯБРЬ '!AD65="ОТ","ОТ",IF(G30=0,"В","Я")) -> Я | H31: =IF('[4]ГРАФИК И.Б.НОЯБРЬ '!AE65="ОТ","ОТ",IF(H30=0,"В","Я")) -> В | I31: =IF('[4]ГРАФИК И.Б.НОЯБРЬ '!AF65="ОТ","ОТ",IF(I30=0,"В","Я")) -> Я | J31: =IF('[4]ГРАФИК И.Б.НОЯБРЬ '!AG65="ОТ","ОТ",IF(J30=0,"В","Я")) -> В | K31: =IF('[4]ГРАФИК И.Б.НОЯБРЬ '!AH65="ОТ","ОТ",IF(K30=0,"В","Я")) -> Я | L31: =IF('[4]ГРАФИК И.Б.НОЯБРЬ '!AI65="ОТ","ОТ",IF(L30=0,"В","Я")) -> В | M31: =IF('[4]ГРАФИК И.Б.НОЯБРЬ '!AJ65="ОТ","ОТ",IF(M30=0,"В","Я")) -> Я | N31: =IF('[4]ГРАФИК И.Б.НОЯБРЬ '!AK65="ОТ","ОТ",IF(N30=0,"В","Я")) -> В | O31: =IF('[4]ГРАФИК И.Б.НОЯБРЬ '!AL65="ОТ","ОТ",IF(O30=0,"В","Я")) -> Я | P31: =IF('[4]ГРАФИК И.Б.НОЯБРЬ '!AM65="ОТ","ОТ",IF(P30=0,"В","Я")) -> В | Q31: =IF('[4]ГРАФИК И.Б.НОЯБРЬ '!AN65="ОТ","ОТ",IF(Q30=0,"В","Я")) -> Я | R31: =IF('[4]ГРАФИК И.Б.НОЯБРЬ '!AO65="ОТ","ОТ",IF(R30=0,"В","Я")) -> В | S31: =IF('[4]ГРАФИК И.Б.НОЯБРЬ '!AP65="ОТ","ОТ",IF(S30=0,"В","Я")) -> Я | T31: =IF('[4]ГРАФИК И.Б.НОЯБРЬ '!AQ65="ОТ","ОТ",IF(T30=0,"В","Я")) -> В | V31: =IF('[4]ГРАФИК И.Б.НОЯБРЬ '!AS65="ОТ","ОТ",IF(V30=0,"В","Я")) -> Я | W31: =IF('[4]ГРАФИК И.Б.НОЯБРЬ '!AT65="ОТ","ОТ",IF(W30=0,"В","Я")) -> В | X31: =IF('[4]ГРАФИК И.Б.НОЯБРЬ '!AU65="ОТ","ОТ",IF(X30=0,"В","Я")) -> Я | Y31: =IF('[4]ГРАФИК И.Б.НОЯБРЬ '!AV65="ОТ","ОТ",IF(Y30=0,"В","Я")) -> В | Z31: =IF('[4]ГРАФИК И.Б.НОЯБРЬ '!AW65="ОТ","ОТ",IF(Z30=0,"В","Я")) -> Я | AA31: =IF('[4]ГРАФИК И.Б.НОЯБРЬ '!AX65="ОТ","ОТ",IF(AA30=0,"В","Я")) -> В | AB31: =IF('[4]ГРАФИК И.Б.НОЯБРЬ '!AY65="ОТ","ОТ",IF(AB30=0,"В","Я")) -> Я | AC31: =IF('[4]ГРАФИК И.Б.НОЯБРЬ '!AZ65="ОТ","ОТ",IF(AC30=0,"В","Я")) -> В | AD31: =IF('[4]ГРАФИК И.Б.НОЯБРЬ '!BA65="ОТ","ОТ",IF(AD30=0,"В","Я")) -> Я | AE31: =IF('[4]ГРАФИК И.Б.НОЯБРЬ '!BB65="ОТ","ОТ",IF(AE30=0,"В","Я")) -> В | AF31: =IF('[4]ГРАФИК И.Б.НОЯБРЬ '!BC65="ОТ","ОТ",IF(AF30=0,"В","Я")) -> Я | AG31: =IF('[4]ГРАФИК И.Б.НОЯБРЬ '!BD65="ОТ","ОТ",IF(AG30=0,"В","Я")) -> В | AH31: =IF('[4]ГРАФИК И.Б.НОЯБРЬ '!BE65="ОТ","ОТ",IF(AH30=0,"В","Я")) -> Я | AI31: =IF('[4]ГРАФИК И.Б.НОЯБРЬ '!BF65="ОТ","ОТ",IF(AI30=0,"В","Я")) -> В | AJ31: =IF('[4]ГРАФИК И.Б.НОЯБРЬ '!BG65="ОТ","ОТ",IF(AJ30=0,"В","Я")) -> Я
D32: сторож | F32: =IFERROR(INDEX('[4]ГРАФИК И.Б.НОЯБРЬ '!$AC85:$HF85,1,MATCH(F$10,'[4]ГРАФИК И.Б.НОЯБРЬ '!$AC$19:$HF$19,0)),"") -> 09:00:00 | G32: =IFERROR(INDEX('[4]ГРАФИК И.Б.НОЯБРЬ '!$AC85:$HF85,1,MATCH(G$10,'[4]ГРАФИК И.Б.НОЯБРЬ '!$AC$19:$HF$19,0)),"") -> 00:00:00 | H32: =IFERROR(INDEX('[4]ГРАФИК И.Б.НОЯБРЬ '!$AC85:$HF85,1,MATCH(H$10,'[4]ГРАФИК И.Б.НОЯБРЬ '!$AC$19:$HF$19,0)),"") -> 07:00:00 | I32: =IFERROR(INDEX('[4]ГРАФИК И.Б.НОЯБРЬ '!$AC85:$HF85,1,MATCH(I$10,'[4]ГРАФИК И.Б.НОЯБРЬ '!$AC$19:$HF$19,0)),"") -> 09:00:00 | J32: =IFERROR(INDEX('[4]ГРАФИК И.Б.НОЯБРЬ '!$AC85:$HF85,1,MATCH(J$10,'[4]ГРАФИК И.Б.НОЯБРЬ '!$AC$19:$HF$19,0)),"") -> 00:00:00 | K32: =IFERROR(INDEX('[4]ГРАФИК И.Б.НОЯБРЬ '!$AC85:$HF85,1,MATCH(K$10,'[4]ГРАФИК И.Б.НОЯБРЬ '!$AC$19:$HF$19,0)),"") -> 07:00:00 | L32: =IFERROR(INDEX('[4]ГРАФИК И.Б.НОЯБРЬ '!$AC85:$HF85,1,MATCH(L$10,'[4]ГРАФИК И.Б.НОЯБРЬ '!$AC$19:$HF$19,0)),"") -> 09:00:00 | M32: =IFERROR(INDEX('[4]ГРАФИК И.Б.НОЯБРЬ '!$AC85:$HF85,1,MATCH(M$10,'[4]ГРАФИК И.Б.НОЯБРЬ '!$AC$19:$HF$19,0)),"") -> 00:00:00 | N32: =IFERROR(INDEX('[4]ГРАФИК И.Б.НОЯБРЬ '!$AC85:$HF85,1,MATCH(N$10,'[4]ГРАФИК И.Б.НОЯБРЬ '!$AC$19:$HF$19,0)),"") -> 07:00:00 | O32: =IFERROR(INDEX('[4]ГРАФИК И.Б.НОЯБРЬ '!$AC85:$HF85,1,MATCH(O$10,'[4]ГРАФИК И.Б.НОЯБРЬ '!$AC$19:$HF$19,0)),"") -> 09:00:00 | P32: =IFERROR(INDEX('[4]ГРАФИК И.Б.НОЯБРЬ '!$AC85:$HF85,1,MATCH(P$10,'[4]ГРАФИК И.Б.НОЯБРЬ '!$AC$19:$HF$19,0)),"") -> 00:00:00 | Q32: =IFERROR(INDEX('[4]ГРАФИК И.Б.НОЯБРЬ '!$AC85:$HF85,1,MATCH(Q$10,'[4]ГРАФИК И.Б.НОЯБРЬ '!$AC$19:$HF$19,0)),"") -> 07:00:00 | R32: =IFERROR(INDEX('[4]ГРАФИК И.Б.НОЯБРЬ '!$AC85:$HF85,1,MATCH(R$10,'[4]ГРАФИК И.Б.НОЯБРЬ '!$AC$19:$HF$19,0)),"") -> 09:00:00 | S32: =IFERROR(INDEX('[4]ГРАФИК И.Б.НОЯБРЬ '!$AC85:$HF85,1,MATCH(S$10,'[4]ГРАФИК И.Б.НОЯБРЬ '!$AC$19:$HF$19,0)),"") -> 00:00:00 | T32: =IFERROR(INDEX('[4]ГРАФИК И.Б.НОЯБРЬ '!$AC85:$HF85,1,MATCH(T$10,'[4]ГРАФИК И.Б.НОЯБРЬ '!$AC$19:$HF$19,0)),"") -> 07:00:00 | U32: =IFERROR(INDEX('[4]ГРАФИК И.Б.НОЯБРЬ '!$AC85:$HF85,1,MATCH(U$10,'[4]ГРАФИК И.Б.НОЯБРЬ '!$AC$19:$HF$19,0)),"") ->  | V32: =IFERROR(INDEX('[4]ГРАФИК И.Б.НОЯБРЬ '!$AC85:$HF85,1,MATCH(V$10,'[4]ГРАФИК И.Б.НОЯБРЬ '!$AC$19:$HF$19,0)),"") -> 09:00:00 | W32: =IFERROR(INDEX('[4]ГРАФИК И.Б.НОЯБРЬ '!$AC85:$HF85,1,MATCH(W$10,'[4]ГРАФИК И.Б.НОЯБРЬ '!$AC$19:$HF$19,0)),"") -> 00:00:00 | X32: =IFERROR(INDEX('[4]ГРАФИК И.Б.НОЯБРЬ '!$AC85:$HF85,1,MATCH(X$10,'[4]ГРАФИК И.Б.НОЯБРЬ '!$AC$19:$HF$19,0)),"") -> 07:00:00 | Y32: =IFERROR(INDEX('[4]ГРАФИК И.Б.НОЯБРЬ '!$AC85:$HF85,1,MATCH(Y$10,'[4]ГРАФИК И.Б.НОЯБРЬ '!$AC$19:$HF$19,0)),"") -> 09:00:00 | Z32: =IFERROR(INDEX('[4]ГРАФИК И.Б.НОЯБРЬ '!$AC85:$HF85,1,MATCH(Z$10,'[4]ГРАФИК И.Б.НОЯБРЬ '!$AC$19:$HF$19,0)),"") -> 00:00:00 | AA32: =IFERROR(INDEX('[4]ГРАФИК И.Б.НОЯБРЬ '!$AC85:$HF85,1,MATCH(AA$10,'[4]ГРАФИК И.Б.НОЯБРЬ '!$AC$19:$HF$19,0)),"") -> 07:00:00 | AB32: =IFERROR(INDEX('[4]ГРАФИК И.Б.НОЯБРЬ '!$AC85:$HF85,1,MATCH(AB$10,'[4]ГРАФИК И.Б.НОЯБРЬ '!$AC$19:$HF$19,0)),"") -> 09:00:00 | AC32: =IFERROR(INDEX('[4]ГРАФИК И.Б.НОЯБРЬ '!$AC85:$HF85,1,MATCH(AC$10,'[4]ГРАФИК И.Б.НОЯБРЬ '!$AC$19:$HF$19,0)),"") -> 00:00:00 | AD32: =IFERROR(INDEX('[4]ГРАФИК И.Б.НОЯБРЬ '!$AC85:$HF85,1,MATCH(AD$10,'[4]ГРАФИК И.Б.НОЯБРЬ '!$AC$19:$HF$19,0)),"") -> 07:00:00 | AE32: =IFERROR(INDEX('[4]ГРАФИК И.Б.НОЯБРЬ '!$AC85:$HF85,1,MATCH(AE$10,'[4]ГРАФИК И.Б.НОЯБРЬ '!$AC$19:$HF$19,0)),"") -> 09:00:00 | AF32: =IFERROR(INDEX('[4]ГРАФИК И.Б.НОЯБРЬ '!$AC85:$HF85,1,MATCH(AF$10,'[4]ГРАФИК И.Б.НОЯБРЬ '!$AC$19:$HF$19,0)),"") -> 00:00:00 | AG32: =IFERROR(INDEX('[4]ГРАФИК И.Б.НОЯБРЬ '!$AC85:$HF85,1,MATCH(AG$10,'[4]ГРАФИК И.Б.НОЯБРЬ '!$AC$19:$HF$19,0)),"") -> 07:00:00 | AH32: =IFERROR(INDEX('[4]ГРАФИК И.Б.НОЯБРЬ '!$AC85:$HF85,1,MATCH(AH$10,'[4]ГРАФИК И.Б.НОЯБРЬ '!$AC$19:$HF$19,0)),"") -> 09:00:00 | AI32: =IFERROR(INDEX('[4]ГРАФИК И.Б.НОЯБРЬ '!$AC85:$HF85,1,MATCH(AI$10,'[4]ГРАФИК И.Б.НОЯБРЬ '!$AC$19:$HF$19,0)),"") -> 00:00:00 | AJ32: =IFERROR(INDEX('[4]ГРАФИК И.Б.НОЯБРЬ '!$AC85:$HF85,1,MATCH(AJ$10,'[4]ГРАФИК И.Б.НОЯБРЬ '!$AC$19:$HF$19,0)),"") -> 06:00:00 | AK32: =IFERROR(INDEX('[4]ГРАФИК И.Б.НОЯБРЬ '!$AC85:$HF85,1,MATCH(AK$10,'[4]ГРАФИК И.Б.НОЯБРЬ '!$AC$19:$HF$19,0)),"") ->  | AL32: =COUNTIF($F32:$AK32,">0") -> 20 | AM32: =SUM($F$32:$AK$32) -> 6.625 | BE32: 10
F33: =IF('[4]ГРАФИК И.Б.НОЯБРЬ '!AC83="ОТ","ОТ",IF(F32=0,"В","Я")) -> Я | G33: =IF('[4]ГРАФИК И.Б.НОЯБРЬ '!AD83="ОТ","ОТ",IF(G32=0,"В","Я")) -> В | H33: =IF('[4]ГРАФИК И.Б.НОЯБРЬ '!AE83="ОТ","ОТ",IF(H32=0,"В","Я")) -> Я | I33: =IF('[4]ГРАФИК И.Б.НОЯБРЬ '!AF83="ОТ","ОТ",IF(I32=0,"В","Я")) -> Я | J33: =IF('[4]ГРАФИК И.Б.НОЯБРЬ '!AG83="ОТ","ОТ",IF(J32=0,"В","Я")) -> В | K33: =IF('[4]ГРАФИК И.Б.НОЯБРЬ '!AH83="ОТ","ОТ",IF(K32=0,"В","Я")) -> Я | L33: =IF('[4]ГРАФИК И.Б.НОЯБРЬ '!AI83="ОТ","ОТ",IF(L32=0,"В","Я")) -> Я | M33: =IF('[4]ГРАФИК И.Б.НОЯБРЬ '!AJ83="ОТ","ОТ",IF(M32=0,"В","Я")) -> В | N33: =IF('[4]ГРАФИК И.Б.НОЯБРЬ '!AK83="ОТ","ОТ",IF(N32=0,"В","Я")) -> Я | O33: =IF('[4]ГРАФИК И.Б.НОЯБРЬ '!AL83="ОТ","ОТ",IF(O32=0,"В","Я")) -> Я | P33: =IF('[4]ГРАФИК И.Б.НОЯБРЬ '!AM83="ОТ","ОТ",IF(P32=0,"В","Я")) -> В | Q33: =IF('[4]ГРАФИК И.Б.НОЯБРЬ '!AN83="ОТ","ОТ",IF(Q32=0,"В","Я")) -> Я | R33: =IF('[4]ГРАФИК И.Б.НОЯБРЬ '!AO83="ОТ","ОТ",IF(R32=0,"В","Я")) -> Я | S33: =IF('[4]ГРАФИК И.Б.НОЯБРЬ '!AP83="ОТ","ОТ",IF(S32=0,"В","Я")) -> В | T33: =IF('[4]ГРАФИК И.Б.НОЯБРЬ '!AQ83="ОТ","ОТ",IF(T32=0,"В","Я")) -> Я | V33: =IF('[4]ГРАФИК И.Б.НОЯБРЬ '!AS83="ОТ","ОТ",IF(V32=0,"В","Я")) -> Я | W33: =IF('[4]ГРАФИК И.Б.НОЯБРЬ '!AT83="ОТ","ОТ",IF(W32=0,"В","Я")) -> В | X33: =IF('[4]ГРАФИК И.Б.НОЯБРЬ '!AU83="ОТ","ОТ",IF(X32=0,"В","Я")) -> Я | Y33: =IF('[4]ГРАФИК И.Б.НОЯБРЬ '!AV83="ОТ","ОТ",IF(Y32=0,"В","Я")) -> Я | Z33: =IF('[4]ГРАФИК И.Б.НОЯБРЬ '!AW83="ОТ","ОТ",IF(Z32=0,"В","Я")) -> В | AA33: =IF('[4]ГРАФИК И.Б.НОЯБРЬ '!AX83="ОТ","ОТ",IF(AA32=0,"В","Я")) -> Я | AB33: =IF('[4]ГРАФИК И.Б.НОЯБРЬ '!AY83="ОТ","ОТ",IF(AB32=0,"В","Я")) -> Я | AC33: =IF('[4]ГРАФИК И.Б.НОЯБРЬ '!AZ83="ОТ","ОТ",IF(AC32=0,"В","Я")) -> В | AD33: =IF('[4]ГРАФИК И.Б.НОЯБРЬ '!BA83="ОТ","ОТ",IF(AD32=0,"В","Я")) -> Я | AE33: =IF('[4]ГРАФИК И.Б.НОЯБРЬ '!BB83="ОТ","ОТ",IF(AE32=0,"В","Я")) -> Я | AF33: =IF('[4]ГРАФИК И.Б.НОЯБРЬ '!BC83="ОТ","ОТ",IF(AF32=0,"В","Я")) -> В | AG33: =IF('[4]ГРАФИК И.Б.НОЯБРЬ '!BD83="ОТ","ОТ",IF(AG32=0,"В","Я")) -> Я | AH33: =IF('[4]ГРАФИК И.Б.НОЯБРЬ '!BE83="ОТ","ОТ",IF(AH32=0,"В","Я")) -> Я | AI33: =IF('[4]ГРАФИК И.Б.НОЯБРЬ '!BF83="ОТ","ОТ",IF(AI32=0,"В","Я")) -> В | AJ33: =IF('[4]ГРАФИК И.Б.НОЯБРЬ '!BG83="ОТ","ОТ",IF(AJ32=0,"В","Я")) -> Я
D34: контролёр-посадчик аттракциона | F34: =IFERROR(INDEX('[4]ГРАФИК И.Б.НОЯБРЬ '!$AC74:$HF74,1,MATCH(F$10,'[4]ГРАФИК И.Б.НОЯБРЬ '!$AC$19:$HF$19,0)),"") -> 00:00:00 | G34: =IFERROR(INDEX('[4]ГРАФИК И.Б.НОЯБРЬ '!$AC74:$HF74,1,MATCH(G$10,'[4]ГРАФИК И.Б.НОЯБРЬ '!$AC$19:$HF$19,0)),"") -> 00:00:00 | H34: =IFERROR(INDEX('[4]ГРАФИК И.Б.НОЯБРЬ '!$AC74:$HF74,1,MATCH(H$10,'[4]ГРАФИК И.Б.НОЯБРЬ '!$AC$19:$HF$19,0)),"") -> 00:00:00 | I34: =IFERROR(INDEX('[4]ГРАФИК И.Б.НОЯБРЬ '!$AC74:$HF74,1,MATCH(I$10,'[4]ГРАФИК И.Б.НОЯБРЬ '!$AC$19:$HF$19,0)),"") -> 00:00:00 | J34: =IFERROR(INDEX('[4]ГРАФИК И.Б.НОЯБРЬ '!$AC74:$HF74,1,MATCH(J$10,'[4]ГРАФИК И.Б.НОЯБРЬ '!$AC$19:$HF$19,0)),"") -> 00:00:00 | K34: =IFERROR(INDEX('[4]ГРАФИК И.Б.НОЯБРЬ '!$AC74:$HF74,1,MATCH(K$10,'[4]ГРАФИК И.Б.НОЯБРЬ '!$AC$19:$HF$19,0)),"") -> 00:00:00 | L34: =IFERROR(INDEX('[4]ГРАФИК И.Б.НОЯБРЬ '!$AC74:$HF74,1,MATCH(L$10,'[4]ГРАФИК И.Б.НОЯБРЬ '!$AC$19:$HF$19,0)),"") -> 00:00:00 | M34: =IFERROR(INDEX('[4]ГРАФИК И.Б.НОЯБРЬ '!$AC74:$HF74,1,MATCH(M$10,'[4]ГРАФИК И.Б.НОЯБРЬ '!$AC$19:$HF$19,0)),"") -> 00:00:00 | N34: =IFERROR(INDEX('[4]ГРАФИК И.Б.НОЯБРЬ '!$AC74:$HF74,1,MATCH(N$10,'[4]ГРАФИК И.Б.НОЯБРЬ '!$AC$19:$HF$19,0)),"") -> 00:00:00 | O34: =IFERROR(INDEX('[4]ГРАФИК И.Б.НОЯБРЬ '!$AC74:$HF74,1,MATCH(O$10,'[4]ГРАФИК И.Б.НОЯБРЬ '!$AC$19:$HF$19,0)),"") -> 00:00:00 | P34: =IFERROR(INDEX('[4]ГРАФИК И.Б.НОЯБРЬ '!$AC74:$HF74,1,MATCH(P$10,'[4]ГРАФИК И.Б.НОЯБРЬ '!$AC$19:$HF$19,0)),"") -> 00:00:00 | Q34: =IFERROR(INDEX('[4]ГРАФИК И.Б.НОЯБРЬ '!$AC74:$HF74,1,MATCH(Q$10,'[4]ГРАФИК И.Б.НОЯБРЬ '!$AC$19:$HF$19,0)),"") -> 00:00:00 | R34: =IFERROR(INDEX('[4]ГРАФИК И.Б.НОЯБРЬ '!$AC74:$HF74,1,MATCH(R$10,'[4]ГРАФИК И.Б.НОЯБРЬ '!$AC$19:$HF$19,0)),"") -> 00:00:00 | S34: =IFERROR(INDEX('[4]ГРАФИК И.Б.НОЯБРЬ '!$AC74:$HF74,1,MATCH(S$10,'[4]ГРАФИК И.Б.НОЯБРЬ '!$AC$19:$HF$19,0)),"") -> 00:00:00 | T34: =IFERROR(INDEX('[4]ГРАФИК И.Б.НОЯБРЬ '!$AC74:$HF74,1,MATCH(T$10,'[4]ГРАФИК И.Б.НОЯБРЬ '!$AC$19:$HF$19,0)),"") -> 00:00:00 | U34: =IFERROR(INDEX('[4]ГРАФИК И.Б.НОЯБРЬ '!$AC74:$HF74,1,MATCH(U$10,'[4]ГРАФИК И.Б.НОЯБРЬ '!$AC$19:$HF$19,0)),"") ->  | V34: =IFERROR(INDEX('[4]ГРАФИК И.Б.НОЯБРЬ '!$AC74:$HF74,1,MATCH(V$10,'[4]ГРАФИК И.Б.НОЯБРЬ '!$AC$19:$HF$19,0)),"") -> 00:00:00 | W34: =IFERROR(INDEX('[4]ГРАФИК И.Б.НОЯБРЬ '!$AC74:$HF74,1,MATCH(W$10,'[4]ГРАФИК И.Б.НОЯБРЬ '!$AC$19:$HF$19,0)),"") -> 00:00:00 | X34: =IFERROR(INDEX('[4]ГРАФИК И.Б.НОЯБРЬ '!$AC74:$HF74,1,MATCH(X$10,'[4]ГРАФИК И.Б.НОЯБРЬ '!$AC$19:$HF$19,0)),"") -> 00:00:00 | Y34: =IFERROR(INDEX('[4]ГРАФИК И.Б.НОЯБРЬ '!$AC74:$HF74,1,MATCH(Y$10,'[4]ГРАФИК И.Б.НОЯБРЬ '!$AC$19:$HF$19,0)),"") -> 00:00:00 | Z34: =IFERROR(INDEX('[4]ГРАФИК И.Б.НОЯБРЬ '!$AC74:$HF74,1,MATCH(Z$10,'[4]ГРАФИК И.Б.НОЯБРЬ '!$AC$19:$HF$19,0)),"") -> 00:00:00 | AA34: =IFERROR(INDEX('[4]ГРАФИК И.Б.НОЯБРЬ '!$AC74:$HF74,1,MATCH(AA$10,'[4]ГРАФИК И.Б.НОЯБРЬ '!$AC$19:$HF$19,0)),"") -> 00:00:00 | AB34: =IFERROR(INDEX('[4]ГРАФИК И.Б.НОЯБРЬ '!$AC74:$HF74,1,MATCH(AB$10,'[4]ГРАФИК И.Б.НОЯБРЬ '!$AC$19:$HF$19,0)),"") -> 00:00:00 | AC34: =IFERROR(INDEX('[4]ГРАФИК И.Б.НОЯБРЬ '!$AC74:$HF74,1,MATCH(AC$10,'[4]ГРАФИК И.Б.НОЯБРЬ '!$AC$19:$HF$19,0)),"") -> 00:00:00 | AD34: =IFERROR(INDEX('[4]ГРАФИК И.Б.НОЯБРЬ '!$AC74:$HF74,1,MATCH(AD$10,'[4]ГРАФИК И.Б.НОЯБРЬ '!$AC$19:$HF$19,0)),"") -> 00:00:00 | AE34: =IFERROR(INDEX('[4]ГРАФИК И.Б.НОЯБРЬ '!$AC74:$HF74,1,MATCH(AE$10,'[4]ГРАФИК И.Б.НОЯБРЬ '!$AC$19:$HF$19,0)),"") -> 00:00:00 | AF34: =IFERROR(INDEX('[4]ГРАФИК И.Б.НОЯБРЬ '!$AC74:$HF74,1,MATCH(AF$10,'[4]ГРАФИК И.Б.НОЯБРЬ '!$AC$19:$HF$19,0)),"") -> 00:00:00 | AG34: =IFERROR(INDEX('[4]ГРАФИК И.Б.НОЯБРЬ '!$AC74:$HF74,1,MATCH(AG$10,'[4]ГРАФИК И.Б.НОЯБРЬ '!$AC$19:$HF$19,0)),"") -> 00:00:00 | AH34: =IFERROR(INDEX('[4]ГРАФИК И.Б.НОЯБРЬ '!$AC74:$HF74,1,MATCH(AH$10,'[4]ГРАФИК И.Б.НОЯБРЬ '!$AC$19:$HF$19,0)),"") -> 00:00:00 | AI34: =IFERROR(INDEX('[4]ГРАФИК И.Б.НОЯБРЬ '!$AC74:$HF74,1,MATCH(AI$10,'[4]ГРАФИК И.Б.НОЯБРЬ '!$AC$19:$HF$19,0)),"") -> 00:00:00 | AJ34: =IFERROR(INDEX('[4]ГРАФИК И.Б.НОЯБРЬ '!$AC74:$HF74,1,MATCH(AJ$10,'[4]ГРАФИК И.Б.НОЯБРЬ '!$AC$19:$HF$19,0)),"") -> 00:00:00 | AK34: =IFERROR(INDEX('[4]ГРАФИК И.Б.НОЯБРЬ '!$AC74:$HF74,1,MATCH(AK$10,'[4]ГРАФИК И.Б.НОЯБРЬ '!$AC$19:$HF$19,0)),"") ->  | AL34: =COUNTIF($F34:$AK34,">0") -> 0 | AM34: =SUM($F$34:$AK$34) -> 0 | BE34: 30
F35: =IF('[4]ГРАФИК И.Б.НОЯБРЬ '!AC71="ОТ","ОТ",IF(F34=0,"В","Я")) -> В | G35: =IF('[4]ГРАФИК И.Б.НОЯБРЬ '!AD71="ОТ","ОТ",IF(G34=0,"В","Я")) -> В | H35: =IF('[4]ГРАФИК И.Б.НОЯБРЬ '!AE71="ОТ","ОТ",IF(H34=0,"В","Я")) -> В | I35: =IF('[4]ГРАФИК И.Б.НОЯБРЬ '!AF71="ОТ","ОТ",IF(I34=0,"В","Я")) -> В | J35: =IF('[4]ГРАФИК И.Б.НОЯБРЬ '!AG71="ОТ","ОТ",IF(J34=0,"В","Я")) -> В | K35: =IF('[4]ГРАФИК И.Б.НОЯБРЬ '!AH71="ОТ","ОТ",IF(K34=0,"В","Я")) -> В | L35: =IF('[4]ГРАФИК И.Б.НОЯБРЬ '!AI71="ОТ","ОТ",IF(L34=0,"В","Я")) -> В | M35: =IF('[4]ГРАФИК И.Б.НОЯБРЬ '!AJ71="ОТ","ОТ",IF(M34=0,"В","Я")) -> В | N35: =IF('[4]ГРАФИК И.Б.НОЯБРЬ '!AK71="ОТ","ОТ",IF(N34=0,"В","Я")) -> В | O35: =IF('[4]ГРАФИК И.Б.НОЯБРЬ '!AL71="ОТ","ОТ",IF(O34=0,"В","Я")) -> В | P35: =IF('[4]ГРАФИК И.Б.НОЯБРЬ '!AM71="ОТ","ОТ",IF(P34=0,"В","Я")) -> В | Q35: =IF('[4]ГРАФИК И.Б.НОЯБРЬ '!AN71="ОТ","ОТ",IF(Q34=0,"В","Я")) -> В | R35: =IF('[4]ГРАФИК И.Б.НОЯБРЬ '!AO71="ОТ","ОТ",IF(R34=0,"В","Я")) -> В | S35: =IF('[4]ГРАФИК И.Б.НОЯБРЬ '!AP71="ОТ","ОТ",IF(S34=0,"В","Я")) -> В | T35: =IF('[4]ГРАФИК И.Б.НОЯБРЬ '!AQ71="ОТ","ОТ",IF(T34=0,"В","Я")) -> В | V35: =IF('[4]ГРАФИК И.Б.НОЯБРЬ '!AS71="ОТ","ОТ",IF(V34=0,"В","Я")) -> В | W35: =IF('[4]ГРАФИК И.Б.НОЯБРЬ '!AT71="ОТ","ОТ",IF(W34=0,"В","Я")) -> В | X35: =IF('[4]ГРАФИК И.Б.НОЯБРЬ '!AU71="ОТ","ОТ",IF(X34=0,"В","Я")) -> В | Y35: =IF('[4]ГРАФИК И.Б.НОЯБРЬ '!AV71="ОТ","ОТ",IF(Y34=0,"В","Я")) -> В | Z35: =IF('[4]ГРАФИК И.Б.НОЯБРЬ '!AW71="ОТ","ОТ",IF(Z34=0,"В","Я")) -> В | AA35: =IF('[4]ГРАФИК И.Б.НОЯБРЬ '!AX71="ОТ","ОТ",IF(AA34=0,"В","Я")) -> В | AB35: =IF('[4]ГРАФИК И.Б.НОЯБРЬ '!AY71="ОТ","ОТ",IF(AB34=0,"В","Я")) -> В | AC35: =IF('[4]ГРАФИК И.Б.НОЯБРЬ '!AZ71="ОТ","ОТ",IF(AC34=0,"В","Я")) -> В | AD35: =IF('[4]ГРАФИК И.Б.НОЯБРЬ '!BA71="ОТ","ОТ",IF(AD34=0,"В","Я")) -> В | AE35: =IF('[4]ГРАФИК И.Б.НОЯБРЬ '!BB71="ОТ","ОТ",IF(AE34=0,"В","Я")) -> В | AF35: =IF('[4]ГРАФИК И.Б.НОЯБРЬ '!BC71="ОТ","ОТ",IF(AF34=0,"В","Я")) -> В | AG35: =IF('[4]ГРАФИК И.Б.НОЯБРЬ '!BD71="ОТ","ОТ",IF(AG34=0,"В","Я")) -> В | AH35: =IF('[4]ГРАФИК И.Б.НОЯБРЬ '!BE71="ОТ","ОТ",IF(AH34=0,"В","Я")) -> В | AI35: =IF('[4]ГРАФИК И.Б.НОЯБРЬ '!BF71="ОТ","ОТ",IF(AI34=0,"В","Я")) -> В | AJ35: =IF('[4]ГРАФИК И.Б.НОЯБРЬ '!BG71="ОТ","ОТ",IF(AJ34=0,"В","Я")) -> В
B36: 101 | D36: контролёр-посадчик аттракциона | F36: =IFERROR(INDEX('[4]ГРАФИК И.Б.НОЯБРЬ '!$AC80:$HF80,1,MATCH(F$10,'[4]ГРАФИК И.Б.НОЯБРЬ '!$AC$19:$HF$19,0)),"") -> 00:00:00 | G36: =IFERROR(INDEX('[4]ГРАФИК И.Б.НОЯБРЬ '!$AC80:$HF80,1,MATCH(G$10,'[4]ГРАФИК И.Б.НОЯБРЬ '!$AC$19:$HF$19,0)),"") -> 00:00:00 | H36: =IFERROR(INDEX('[4]ГРАФИК И.Б.НОЯБРЬ '!$AC80:$HF80,1,MATCH(H$10,'[4]ГРАФИК И.Б.НОЯБРЬ '!$AC$19:$HF$19,0)),"") -> 00:00:00 | I36: =IFERROR(INDEX('[4]ГРАФИК И.Б.НОЯБРЬ '!$AC80:$HF80,1,MATCH(I$10,'[4]ГРАФИК И.Б.НОЯБРЬ '!$AC$19:$HF$19,0)),"") -> 00:00:00 | J36: =IFERROR(INDEX('[4]ГРАФИК И.Б.НОЯБРЬ '!$AC80:$HF80,1,MATCH(J$10,'[4]ГРАФИК И.Б.НОЯБРЬ '!$AC$19:$HF$19,0)),"") -> 00:00:00 | K36: =IFERROR(INDEX('[4]ГРАФИК И.Б.НОЯБРЬ '!$AC80:$HF80,1,MATCH(K$10,'[4]ГРАФИК И.Б.НОЯБРЬ '!$AC$19:$HF$19,0)),"") -> 00:00:00 | L36: =IFERROR(INDEX('[4]ГРАФИК И.Б.НОЯБРЬ '!$AC80:$HF80,1,MATCH(L$10,'[4]ГРАФИК И.Б.НОЯБРЬ '!$AC$19:$HF$19,0)),"") -> 00:00:00 | M36: =IFERROR(INDEX('[4]ГРАФИК И.Б.НОЯБРЬ '!$AC80:$HF80,1,MATCH(M$10,'[4]ГРАФИК И.Б.НОЯБРЬ '!$AC$19:$HF$19,0)),"") -> 00:00:00 | N36: =IFERROR(INDEX('[4]ГРАФИК И.Б.НОЯБРЬ '!$AC80:$HF80,1,MATCH(N$10,'[4]ГРАФИК И.Б.НОЯБРЬ '!$AC$19:$HF$19,0)),"") -> 00:00:00 | O36: =IFERROR(INDEX('[4]ГРАФИК И.Б.НОЯБРЬ '!$AC80:$HF80,1,MATCH(O$10,'[4]ГРАФИК И.Б.НОЯБРЬ '!$AC$19:$HF$19,0)),"") -> 00:00:00 | P36: =IFERROR(INDEX('[4]ГРАФИК И.Б.НОЯБРЬ '!$AC80:$HF80,1,MATCH(P$10,'[4]ГРАФИК И.Б.НОЯБРЬ '!$AC$19:$HF$19,0)),"") -> 00:00:00 | Q36: =IFERROR(INDEX('[4]ГРАФИК И.Б.НОЯБРЬ '!$AC80:$HF80,1,MATCH(Q$10,'[4]ГРАФИК И.Б.НОЯБРЬ '!$AC$19:$HF$19,0)),"") -> 00:00:00 | R36: =IFERROR(INDEX('[4]ГРАФИК И.Б.НОЯБРЬ '!$AC80:$HF80,1,MATCH(R$10,'[4]ГРАФИК И.Б.НОЯБРЬ '!$AC$19:$HF$19,0)),"") -> 00:00:00 | S36: =IFERROR(INDEX('[4]ГРАФИК И.Б.НОЯБРЬ '!$AC80:$HF80,1,MATCH(S$10,'[4]ГРАФИК И.Б.НОЯБРЬ '!$AC$19:$HF$19,0)),"") -> 00:00:00 | T36: =IFERROR(INDEX('[4]ГРАФИК И.Б.НОЯБРЬ '!$AC80:$HF80,1,MATCH(T$10,'[4]ГРАФИК И.Б.НОЯБРЬ '!$AC$19:$HF$19,0)),"") -> 00:00:00 | U36: =IFERROR(INDEX('[4]ГРАФИК И.Б.НОЯБРЬ '!$AC80:$HF80,1,MATCH(U$10,'[4]ГРАФИК И.Б.НОЯБРЬ '!$AC$19:$HF$19,0)),"") ->  | V36: =IFERROR(INDEX('[4]ГРАФИК И.Б.НОЯБРЬ '!$AC80:$HF80,1,MATCH(V$10,'[4]ГРАФИК И.Б.НОЯБРЬ '!$AC$19:$HF$19,0)),"") -> 00:00:00 | W36: =IFERROR(INDEX('[4]ГРАФИК И.Б.НОЯБРЬ '!$AC80:$HF80,1,MATCH(W$10,'[4]ГРАФИК И.Б.НОЯБРЬ '!$AC$19:$HF$19,0)),"") -> 00:00:00 | X36: =IFERROR(INDEX('[4]ГРАФИК И.Б.НОЯБРЬ '!$AC80:$HF80,1,MATCH(X$10,'[4]ГРАФИК И.Б.НОЯБРЬ '!$AC$19:$HF$19,0)),"") -> 00:00:00 | Y36: =IFERROR(INDEX('[4]ГРАФИК И.Б.НОЯБРЬ '!$AC80:$HF80,1,MATCH(Y$10,'[4]ГРАФИК И.Б.НОЯБРЬ '!$AC$19:$HF$19,0)),"") -> 00:00:00 | Z36: =IFERROR(INDEX('[4]ГРАФИК И.Б.НОЯБРЬ '!$AC80:$HF80,1,MATCH(Z$10,'[4]ГРАФИК И.Б.НОЯБРЬ '!$AC$19:$HF$19,0)),"") -> 00:00:00 | AA36: =IFERROR(INDEX('[4]ГРАФИК И.Б.НОЯБРЬ '!$AC80:$HF80,1,MATCH(AA$10,'[4]ГРАФИК И.Б.НОЯБРЬ '!$AC$19:$HF$19,0)),"") -> 00:00:00 | AB36: =IFERROR(INDEX('[4]ГРАФИК И.Б.НОЯБРЬ '!$AC80:$HF80,1,MATCH(AB$10,'[4]ГРАФИК И.Б.НОЯБРЬ '!$AC$19:$HF$19,0)),"") -> 00:00:00 | AC36: =IFERROR(INDEX('[4]ГРАФИК И.Б.НОЯБРЬ '!$AC80:$HF80,1,MATCH(AC$10,'[4]ГРАФИК И.Б.НОЯБРЬ '!$AC$19:$HF$19,0)),"") -> 00:00:00 | AD36: =IFERROR(INDEX('[4]ГРАФИК И.Б.НОЯБРЬ '!$AC80:$HF80,1,MATCH(AD$10,'[4]ГРАФИК И.Б.НОЯБРЬ '!$AC$19:$HF$19,0)),"") -> 00:00:00 | AE36: =IFERROR(INDEX('[4]ГРАФИК И.Б.НОЯБРЬ '!$AC80:$HF80,1,MATCH(AE$10,'[4]ГРАФИК И.Б.НОЯБРЬ '!$AC$19:$HF$19,0)),"") -> 00:00:00 | AF36: =IFERROR(INDEX('[4]ГРАФИК И.Б.НОЯБРЬ '!$AC80:$HF80,1,MATCH(AF$10,'[4]ГРАФИК И.Б.НОЯБРЬ '!$AC$19:$HF$19,0)),"") -> 00:00:00 | AG36: =IFERROR(INDEX('[4]ГРАФИК И.Б.НОЯБРЬ '!$AC80:$HF80,1,MATCH(AG$10,'[4]ГРАФИК И.Б.НОЯБРЬ '!$AC$19:$HF$19,0)),"") -> 00:00:00 | AH36: =IFERROR(INDEX('[4]ГРАФИК И.Б.НОЯБРЬ '!$AC80:$HF80,1,MATCH(AH$10,'[4]ГРАФИК И.Б.НОЯБРЬ '!$AC$19:$HF$19,0)),"") -> 00:00:00 | AI36: =IFERROR(INDEX('[4]ГРАФИК И.Б.НОЯБРЬ '!$AC80:$HF80,1,MATCH(AI$10,'[4]ГРАФИК И.Б.НОЯБРЬ '!$AC$19:$HF$19,0)),"") -> 00:00:00 | AJ36: =IFERROR(INDEX('[4]ГРАФИК И.Б.НОЯБРЬ '!$AC80:$HF80,1,MATCH(AJ$10,'[4]ГРАФИК И.Б.НОЯБРЬ '!$AC$19:$HF$19,0)),"") -> 00:00:00 | AK36: =IFERROR(INDEX('[4]ГРАФИК И.Б.НОЯБРЬ '!$AC80:$HF80,1,MATCH(AK$10,'[4]ГРАФИК И.Б.НОЯБРЬ '!$AC$19:$HF$19,0)),"") ->  | AL36: =COUNTIF($F36:$AK36,">0") -> 0 | AM36: =SUM($F$36:$AK$36) -> 0 | AO36: =SUM(#REF!) ->  | AP36: =COUNTIF($F36:$AK36,"=12")+COUNTIF(#REF!,"=8")*2 ->  | AQ36: =SUMIF($F$12:$AK$12,"ЧП",$F36:$AK36) -> 0 | AR36: =SUMPRODUCT(IF(ISNUMBER(F36:AK36),(F36:AK36>8)*(F36:AK36-8),0)) -> 0 | AS36: =SUMIF(#REF!,"в",$F36:$AK36) ->  | AT36: =IF($AN36>$BF$7,$AN36-$BF$7,"–") -> – | AU36: =SUM($AV36:$BD36) -> 0 | AV36: =COUNTIF($F36:$AK36,"=От") -> 0 | AW36: =COUNTIF($F36:$AK36,"=Б") -> 0 | AX36: =COUNTIF($F36:$AK36,"=А") -> 0 | AY36: =COUNTIF($F36:$AK36,"=Ор") -> 0 | AZ36: =COUNTIF($F36:$AK36,"=У") -> 0 | BA36: =COUNTIF($F36:$AK36,"=Ч") -> 0 | BB36: =COUNTIF($F36:$AK36,"=Пр") -> 0 | BC36: =COUNTIF($F36:$AK36,"=Ож") -> 0 | BD36: =COUNTIF($F36:$AK36,"=К") -> 0 | BE36: 31
F37: =IF('[4]ГРАФИК И.Б.НОЯБРЬ '!AC77="ОТ","ОТ",IF(F36=0,"В","Я")) -> В | G37: =IF('[4]ГРАФИК И.Б.НОЯБРЬ '!AD77="ОТ","ОТ",IF(G36=0,"В","Я")) -> В | H37: =IF('[4]ГРАФИК И.Б.НОЯБРЬ '!AE77="ОТ","ОТ",IF(H36=0,"В","Я")) -> В | I37: =IF('[4]ГРАФИК И.Б.НОЯБРЬ '!AF77="ОТ","ОТ",IF(I36=0,"В","Я")) -> В | J37: =IF('[4]ГРАФИК И.Б.НОЯБРЬ '!AG77="ОТ","ОТ",IF(J36=0,"В","Я")) -> В | K37: =IF('[4]ГРАФИК И.Б.НОЯБРЬ '!AH77="ОТ","ОТ",IF(K36=0,"В","Я")) -> В | L37: =IF('[4]ГРАФИК И.Б.НОЯБРЬ '!AI77="ОТ","ОТ",IF(L36=0,"В","Я")) -> В | M37: =IF('[4]ГРАФИК И.Б.НОЯБРЬ '!AJ77="ОТ","ОТ",IF(M36=0,"В","Я")) -> В | N37: =IF('[4]ГРАФИК И.Б.НОЯБРЬ '!AK77="ОТ","ОТ",IF(N36=0,"В","Я")) -> В | O37: =IF('[4]ГРАФИК И.Б.НОЯБРЬ '!AL77="ОТ","ОТ",IF(O36=0,"В","Я")) -> В | P37: =IF('[4]ГРАФИК И.Б.НОЯБРЬ '!AM77="ОТ","ОТ",IF(P36=0,"В","Я")) -> В | Q37: =IF('[4]ГРАФИК И.Б.НОЯБРЬ '!AN77="ОТ","ОТ",IF(Q36=0,"В","Я")) -> В | R37: =IF('[4]ГРАФИК И.Б.НОЯБРЬ '!AO77="ОТ","ОТ",IF(R36=0,"В","Я")) -> В | S37: =IF('[4]ГРАФИК И.Б.НОЯБРЬ '!AP77="ОТ","ОТ",IF(S36=0,"В","Я")) -> В | T37: =IF('[4]ГРАФИК И.Б.НОЯБРЬ '!AQ77="ОТ","ОТ",IF(T36=0,"В","Я")) -> В | V37: =IF('[4]ГРАФИК И.Б.НОЯБРЬ '!AS77="ОТ","ОТ",IF(V36=0,"В","Я")) -> В | W37: =IF('[4]ГРАФИК И.Б.НОЯБРЬ '!AT77="ОТ","ОТ",IF(W36=0,"В","Я")) -> В | X37: =IF('[4]ГРАФИК И.Б.НОЯБРЬ '!AU77="ОТ","ОТ",IF(X36=0,"В","Я")) -> В | Y37: =IF('[4]ГРАФИК И.Б.НОЯБРЬ '!AV77="ОТ","ОТ",IF(Y36=0,"В","Я")) -> В | Z37: =IF('[4]ГРАФИК И.Б.НОЯБРЬ '!AW77="ОТ","ОТ",IF(Z36=0,"В","Я")) -> В | AA37: =IF('[4]ГРАФИК И.Б.НОЯБРЬ '!AX77="ОТ","ОТ",IF(AA36=0,"В","Я")) -> В | AB37: =IF('[4]ГРАФИК И.Б.НОЯБРЬ '!AY77="ОТ","ОТ",IF(AB36=0,"В","Я")) -> В | AC37: =IF('[4]ГРАФИК И.Б.НОЯБРЬ '!AZ77="ОТ","ОТ",IF(AC36=0,"В","Я")) -> В | AD37: =IF('[4]ГРАФИК И.Б.НОЯБРЬ '!BA77="ОТ","ОТ",IF(AD36=0,"В","Я")) -> В | AE37: =IF('[4]ГРАФИК И.Б.НОЯБРЬ '!BB77="ОТ","ОТ",IF(AE36=0,"В","Я")) -> В | AF37: =IF('[4]ГРАФИК И.Б.НОЯБРЬ '!BC77="ОТ","ОТ",IF(AF36=0,"В","Я")) -> В | AG37: =IF('[4]ГРАФИК И.Б.НОЯБРЬ '!BD77="ОТ","ОТ",IF(AG36=0,"В","Я")) -> В | AH37: =IF('[4]ГРАФИК И.Б.НОЯБРЬ '!BE77="ОТ","ОТ",IF(AH36=0,"В","Я")) -> В | AI37: =IF('[4]ГРАФИК И.Б.НОЯБРЬ '!BF77="ОТ","ОТ",IF(AI36=0,"В","Я")) -> В | AJ37: =IF('[4]ГРАФИК И.Б.НОЯБРЬ '!BG77="ОТ","ОТ",IF(AJ36=0,"В","Я")) -> В
F38: =COUNTIF(F16:F33,"Я") -> 5 | G38: =COUNTIF(G16:G33,"Я") -> 5 | H38: 6 | I38: 4 | J38: 5 | K38: 6 | L38: 6 | M38: 5 | N38: 5 | O38: 7 | P38: 4 | Q38: 7 | R38: 5 | S38: 6 | T38: 5 | U38: 1 | V38: 6 | W38: 4 | X38: 6 | Y38: 5 | Z38: 5 | AA38: 5 | AB38: 6 | AC38: 3 | AD38: 7 | AE38: 4 | AF38: 6 | AG38: 4 | AH38: 7 | AI38: 3 | AJ38: 6 | AM38: =SUM($F$38:$AJ$38) -> 159
F39: =SUM(F16,F$18,F$20,F$22,F$24,F$26,F$28,F$30,F$32) -> 1.791666667 | G39: =SUM(G16,G$18,G$20,G$22,G$24,G$26,G$28,G$30,G$32) -> 1.875 | H39: 2.041666667 | I39: 1.75 | J39: 1.75 | K39: 2.291666667 | L39: 2.166666667 | M39: 1.75 | N39: 1.583333333 | O39: 2.583333333 | P39: 1.541666667 | Q39: 2.5 | R39: 1.875 | S39: 2.291666667 | T39: 1.791666667 | U39: 0 | V39: 2.333333333 | W39: 1.291666667 | X39: 2.291666667 | Y39: 1.625 | Z39: 1.875 | AA39: 1.625 | AB39: 2.208333333 | AC39: 1 | AD39: 2.375 | AE39: 1.416666667 | AF39: 2.083333333 | AG39: 1.333333333 | AH39: 2.541666667 | AI39: 1 | AJ39: 2.083333333 | AM39: =SUM(H39:AL39) -> 53
C42: Нурлиева Е.А., котролёр-посадчик аттракциона НЧ
AE43: в ячейках жёлтого и зелёного цвета должно стать ОТ
C44: =C42=C28 -> TRUE
AA46: Помогите сделать так, чтобы в ячейку кроме Я и В выходил ОТ (отпуск) из графика.
D48: 2020-11-01
D49: 2020
D50: 11
D51: 1 | E51: 2 | F51: 3 | G51: 4 | H51: 5 | I51: 6 | J51: 7 | K51: 8 | L51: 9 | M51: 10 | N51: 11 | O51: 12 | P51: 13 | Q51: 14 | R51: 15 | S51: 16 | T51: 17 | U51: 18 | V51: 19 | W51: 20 | X51: 21 | Y51: 22 | Z51: 23 | AA51: 24 | AB51: 25 | AC51: 26 | AD51: 27 | AE51: 28 | AF51: 29 | AG51: 30 | AH51: 31
AM53: 2020-01-01
AM54: 2020-01-02
AM55: 2020-01-03
AM56: 2020-01-04
AM57: 2020-01-05
AM58: 2020-01-06
AM59: 2020-01-07
AM60: 2020-01-08
AM61: 2020-02-23
AM62: 2020-03-08
AM63: 2020-05-01
AM66: 2020-05-09
AM68: 2020-06-12
AM69: 2020-11-04
